BIOGUIDE_ID,OFFICE,QUARTER,CATEGORY,DATE,PAYEE,START DATE,END DATE,PURPOSE,AMOUNT,YEAR,TRANSCODE,TRANSCODELONG,RECORDID,RECIP (orig.)
,OFFICE OF THE SPEAKER,2014Q2,PERSONNEL BENEFITS,04-15,HON JOHN A BOEHNER,04/01/14,04/30/14,OFFICIAL EXPENSES FOR LEADERS,"2,083.33",2014,AP,Accounts payable,00722778,HON JOHN A BOEHNER
,OFFICE OF THE SPEAKER,2014Q2,PERSONNEL BENEFITS,05-14,HON JOHN A BOEHNER,05/01/14,05/31/14,OFFICIAL EXPENSES FOR LEADERS,"2,083.33",2014,AP,Accounts payable,00728016,HON JOHN A BOEHNER
,OFFICE OF THE SPEAKER,2014Q2,PERSONNEL BENEFITS,06-13,HON JOHN A BOEHNER,06/01/14,06/30/14,OFFICIAL EXPENSES FOR LEADERS,"2,083.33",2014,AP,Accounts payable,00733175,HON JOHN A BOEHNER
,OFFICE OF THE SPEAKER,2014Q2,PERSONNEL COMPENSATION,"","ALTMAN,MICHELLE E",04/01/14,06/30/14,SHARED EMPLOYEE,"20,000.01",2014,"","","","ALTMAN,MICHELLE E"
,OFFICE OF THE SPEAKER,2014Q2,PERSONNEL COMPENSATION,"","ANDREWS,THOMAS S",04/01/14,06/30/14,SPECIAL ASST TO THE SPEAKER,"14,166.66",2014,"","","","ANDREWS,THOMAS S"
,OFFICE OF THE SPEAKER,2014Q2,PERSONNEL COMPENSATION,"","BAILEY,BRADLEY",04/01/14,06/30/14,ASSIST TO SPEAKER FOR POLICY,"30,000.00",2014,"","","","BAILEY,BRADLEY"
,OFFICE OF THE SPEAKER,2014Q2,PERSONNEL COMPENSATION,"","BECKER,ALEXANDER M",04/01/14,06/30/14,FLOOR ASSISTANT,"10,416.66",2014,"","","","BECKER,ALEXANDER M"
,OFFICE OF THE SPEAKER,2014Q2,PERSONNEL COMPENSATION,"","BENJAMIN, WILLIAM C",04/01/14,06/30/14,DIR OF INFORMATION TECHNOLOGY,"23,666.67",2014,"","","","BENJAMIN, WILLIAM C"
,OFFICE OF THE SPEAKER,2014Q2,PERSONNEL COMPENSATION,"","BLAKE,KRISTENE",04/01/14,06/30/14,DIRECTOR OF SCHDLNG/EXEC ASST,"24,999.99",2014,"","","","BLAKE,KRISTENE"
,OFFICE OF THE SPEAKER,2014Q2,PERSONNEL COMPENSATION,"","BORDEN III, R C",04/01/14,06/30/14,SHARED EMPLOYEE,"42,000.00",2014,"","","","BORDEN III, R C"
,OFFICE OF THE SPEAKER,2014Q2,PERSONNEL COMPENSATION,"","BOYD,KATHRYN E",03/01/14,06/30/14,ASST COMMUNICATIONS DIRECTOR,"24,583.34",2014,"","","","BOYD,KATHRYN E"
,OFFICE OF THE SPEAKER,2014Q2,PERSONNEL COMPENSATION,"","BROWN,MARYAM S",04/01/14,06/30/14,ASST TO SPEAKER FOR POLICY,"42,000.00",2014,"","","","BROWN,MARYAM S"
,OFFICE OF THE SPEAKER,2014Q2,PERSONNEL COMPENSATION,"","BUCK, BRENDAN K",04/01/14,05/31/14,PRESS SECRETARY,"16,866.67",2014,"","","","BUCK, BRENDAN K"
,OFFICE OF THE SPEAKER,2014Q2,PERSONNEL COMPENSATION,"","BUCK, BRENDAN K",05/01/14,05/31/14,PRESS SECRETARY (OTHER COMPENSATION),"5,750.00",2014,"","","","BUCK, BRENDAN K"
,OFFICE OF THE SPEAKER,2014Q2,PERSONNEL COMPENSATION,"","CRAVEN, KELLY F",04/01/14,06/30/14,DIRECTOR OF HOUSE OPERATIONS,"43,125.00",2014,"","","","CRAVEN, KELLY F"
,OFFICE OF THE SPEAKER,2014Q2,PERSONNEL COMPENSATION,"","EASBY-SMITH,ANNE S",04/01/14,06/30/14,SPECIAL EVENTS ASSISTANT,"9,916.66",2014,"","","","EASBY-SMITH,ANNE S"
,OFFICE OF THE SPEAKER,2014Q2,PERSONNEL COMPENSATION,"","ECKARD,NASTASHA",04/01/14,06/30/14,ASSIST TO SPEAKER FOR POLICY,"22,958.33",2014,"","","","ECKARD,NASTASHA"
,OFFICE OF THE SPEAKER,2014Q2,PERSONNEL COMPENSATION,"","EICHHORN, JARED D",04/01/14,06/30/14,FLOOR ASSISTANT,"15,000.00",2014,"","","","EICHHORN, JARED D"
,OFFICE OF THE SPEAKER,2014Q2,PERSONNEL COMPENSATION,"","EMBLER, ELIZABETH G",03/01/14,06/30/14,DIRECTOR OF MEDIA AFFAIRS,"24,166.68",2014,"","","","EMBLER, ELIZABETH G"
,OFFICE OF THE SPEAKER,2014Q2,PERSONNEL COMPENSATION,"","FRANC,MICHAEL G",05/01/14,06/30/14,SHARED EMPLOYEE,"16,666.66",2014,"","","","FRANC,MICHAEL G"
,OFFICE OF THE SPEAKER,2014Q2,PERSONNEL COMPENSATION,"","FRANKS,JESSICA L",04/01/14,06/30/14,STAFF ASSISTANT,"7,916.67",2014,"","","","FRANKS,JESSICA L"
,OFFICE OF THE SPEAKER,2014Q2,PERSONNEL COMPENSATION,"","FRANKS,JESSICA L",03/01/14,05/31/14,STAFF ASSISTANT (OVERTIME),708.53,2014,"","","","FRANKS,JESSICA L"
,OFFICE OF THE SPEAKER,2014Q2,PERSONNEL COMPENSATION,"","GILLESPIE,MAURA M",04/01/14,05/31/14,DEPUTY SCHEDULER,"9,166.66",2014,"","","","GILLESPIE,MAURA M"
,OFFICE OF THE SPEAKER,2014Q2,PERSONNEL COMPENSATION,"","GILLESPIE,MAURA M",06/01/14,06/30/14,PRESS ADVISOR,"5,000.00",2014,"","","","GILLESPIE,MAURA M"
,OFFICE OF THE SPEAKER,2014Q2,PERSONNEL COMPENSATION,"","GREEN, JO-MARIE S",04/01/14,06/30/14,GEN COUNSEL/CHIEF OF LEG OPS,"43,125.00",2014,"","","","GREEN, JO-MARIE S"
,OFFICE OF THE SPEAKER,2014Q2,PERSONNEL COMPENSATION,"","GREENE,WILLIAM P",04/01/14,06/30/14,DIRECTOR-OUTREACH,"35,000.01",2014,"","","","GREENE,WILLIAM P"
,OFFICE OF THE SPEAKER,2014Q2,PERSONNEL COMPENSATION,"","GRIEVE,ALEXANDER G",03/25/14,06/30/14,STAFF ASSISTANT,"8,000.00",2014,"","","","GRIEVE,ALEXANDER G"
,OFFICE OF THE SPEAKER,2014Q2,PERSONNEL COMPENSATION,"","GRIEVE,ALEXANDER G",03/25/14,05/31/14,STAFF ASSISTANT (OVERTIME),778.84,2014,"","","","GRIEVE,ALEXANDER G"
,OFFICE OF THE SPEAKER,2014Q2,PERSONNEL COMPENSATION,"","HALEY, KATHERINE C",04/01/14,06/30/14,ASST TO SPEAKER FOR POLICY,"25,833.33",2014,"","","","HALEY, KATHERINE C"
,OFFICE OF THE SPEAKER,2014Q2,PERSONNEL COMPENSATION,"","HARROUN, TIMOTHY J",04/01/14,06/30/14,MANAGER REPUBLICAN CLOAKROOM,"33,287.49",2014,"","","","HARROUN, TIMOTHY J"
,OFFICE OF THE SPEAKER,2014Q2,PERSONNEL COMPENSATION,"","HENRIQUEZ,RAUL E",04/01/14,06/30/14,STAFF ASSISTANT,"7,916.67",2014,"","","","HENRIQUEZ,RAUL E"
,OFFICE OF THE SPEAKER,2014Q2,PERSONNEL COMPENSATION,"","HENRIQUEZ,RAUL E",03/01/14,05/31/14,STAFF ASSISTANT (OVERTIME),843.74,2014,"","","","HENRIQUEZ,RAUL E"
,OFFICE OF THE SPEAKER,2014Q2,PERSONNEL COMPENSATION,"","HERRLE, CYNTHIA A",04/01/14,06/30/14,ASST TO THE SPEAKER FOR POLICY,"42,000.00",2014,"","","","HERRLE, CYNTHIA A"
,OFFICE OF THE SPEAKER,2014Q2,PERSONNEL COMPENSATION,"","IVANCIC,CHARLOTTE S",04/01/14,06/30/14,ASSIST TO SPEAKER FOR POLICY,"37,367.91",2014,"","","","IVANCIC,CHARLOTTE S"
,OFFICE OF THE SPEAKER,2014Q2,PERSONNEL COMPENSATION,"","KOLEGO, TREVOR W",04/01/14,06/30/14,DIR OF MEMBER SERVICES,"41,500.00",2014,"","","","KOLEGO, TREVOR W"
,OFFICE OF THE SPEAKER,2014Q2,PERSONNEL COMPENSATION,"","LAMPERT,JUSTIN",04/01/14,06/30/14,RESEARCH ASSISTANT,"11,250.00",2014,"","","","LAMPERT,JUSTIN"
,OFFICE OF THE SPEAKER,2014Q2,PERSONNEL COMPENSATION,"","LEOPOLD,PATRICK R",04/01/14,06/30/14,SHARED EMPLOYEE,"20,000.01",2014,"","","","LEOPOLD,PATRICK R"
,OFFICE OF THE SPEAKER,2014Q2,PERSONNEL COMPENSATION,"","LOHMEYER,SONJA M",04/01/14,06/30/14,DIRECTOR OF PUBLIC LIAISON,"33,166.66",2014,"","","","LOHMEYER,SONJA M"
,OFFICE OF THE SPEAKER,2014Q2,PERSONNEL COMPENSATION,"","LOZUPONE, AMY S",03/01/14,06/30/14,DIRECTOR OF ADMIN OPERATIONS,"43,500.00",2014,"","","","LOZUPONE, AMY S"
,OFFICE OF THE SPEAKER,2014Q2,PERSONNEL COMPENSATION,"","MACDONALD, BRIAN C",04/01/14,06/30/14,SHARED EMPLOYEE,"20,000.01",2014,"","","","MACDONALD, BRIAN C"
,OFFICE OF THE SPEAKER,2014Q2,PERSONNEL COMPENSATION,"","MILAM, LAURA M",06/16/14,06/30/14,DEPUTY SCHEDULER,"1,666.67",2014,"","","","MILAM, LAURA M"
,OFFICE OF THE SPEAKER,2014Q2,PERSONNEL COMPENSATION,"","MILLER,WILLIAM",04/01/14,06/30/14,SENIOR STAFF ASSISTANT,"10,083.34",2014,"","","","MILLER,WILLIAM"
,OFFICE OF THE SPEAKER,2014Q2,PERSONNEL COMPENSATION,"","MILLER,WILLIAM",03/01/14,05/31/14,SENIOR STAFF ASSISTANT (OVERTIME),"1,986.75",2014,"","","","MILLER,WILLIAM"
,OFFICE OF THE SPEAKER,2014Q2,PERSONNEL COMPENSATION,"","MINGO,ZACHARY F",04/01/14,06/30/14,STAFF ASSISTANT,"7,500.00",2014,"","","","MINGO,ZACHARY F"
,OFFICE OF THE SPEAKER,2014Q2,PERSONNEL COMPENSATION,"","MINGO,ZACHARY F",03/01/14,05/31/14,STAFF ASSISTANT (OVERTIME),"1,033.04",2014,"","","","MINGO,ZACHARY F"
,OFFICE OF THE SPEAKER,2014Q2,PERSONNEL COMPENSATION,"","MINKLER,ANN W",04/01/14,06/30/14,FLOOR ASSISTANT,"11,333.33",2014,"","","","MINKLER,ANN W"
,OFFICE OF THE SPEAKER,2014Q2,PERSONNEL COMPENSATION,"","PALISI,ANNIE",04/01/14,06/30/14,DEPUTY DIRECTOR OF MEMBER SVCS,"37,916.67",2014,"","","","PALISI,ANNIE"
,OFFICE OF THE SPEAKER,2014Q2,PERSONNEL COMPENSATION,"","PALMER, ASHLEY M",04/01/14,06/30/14,SHARED EMPLOYEE,"5,000.01",2014,"","","","PALMER, ASHLEY M"
,OFFICE OF THE SPEAKER,2014Q2,PERSONNEL COMPENSATION,"","PIETKIEWICZ,ANNE K",04/01/14,06/30/14,STAFF ASSISTANT,"7,500.00",2014,"","","","PIETKIEWICZ,ANNE K"
,OFFICE OF THE SPEAKER,2014Q2,PERSONNEL COMPENSATION,"","PIETKIEWICZ,ANNE K",03/01/14,05/31/14,STAFF ASSISTANT (OVERTIME),465.14,2014,"","","","PIETKIEWICZ,ANNE K"
,OFFICE OF THE SPEAKER,2014Q2,PERSONNEL COMPENSATION,"","RATCLIFFE,RAMSEY E",04/01/14,06/30/14,SPECIAL EVENTS ASSISTANT,"9,916.66",2014,"","","","RATCLIFFE,RAMSEY E"
,OFFICE OF THE SPEAKER,2014Q2,PERSONNEL COMPENSATION,"","REED, HEATHER E",04/01/14,06/30/14,ASSISTANT PRESS SECRETARY,"12,500.01",2014,"","","","REED, HEATHER E"
,OFFICE OF THE SPEAKER,2014Q2,PERSONNEL COMPENSATION,"","RENZ, BRANDON",04/01/14,06/30/14,SHARED EMPLOYEE,"20,000.01",2014,"","","","RENZ, BRANDON"
,OFFICE OF THE SPEAKER,2014Q2,PERSONNEL COMPENSATION,"","RICCI,MICHAEL",04/01/14,06/30/14,DEPUTY COMMUNICATIONS DIRECTOR,"36,249.99",2014,"","","","RICCI,MICHAEL"
,OFFICE OF THE SPEAKER,2014Q2,PERSONNEL COMPENSATION,"","ROBINSON,GREGORY J",04/01/14,06/30/14,ASSOCIATE COUNSEL,"12,999.99",2014,"","","","ROBINSON,GREGORY J"
,OFFICE OF THE SPEAKER,2014Q2,PERSONNEL COMPENSATION,"","SAGER,MICHAEL J",04/01/14,06/30/14,SYSTEMS ADMINISTRATOR,"20,416.67",2014,"","","","SAGER,MICHAEL J"
,OFFICE OF THE SPEAKER,2014Q2,PERSONNEL COMPENSATION,"","SCHNITTGER, DAVID M",04/01/14,06/30/14,DEPUTY CHIEF OF STAFF,"43,125.00",2014,"","","","SCHNITTGER, DAVID M"
,OFFICE OF THE SPEAKER,2014Q2,PERSONNEL COMPENSATION,"","SMITH, CALEB J",04/01/14,06/30/14,DIGITAL COMMUNICATIONS DIRECTO,"22,500.00",2014,"","","","SMITH, CALEB J"
,OFFICE OF THE SPEAKER,2014Q2,PERSONNEL COMPENSATION,"","SMITH, KEVIN",03/01/14,06/30/14,DIRECTOR OF COMMUNICATIONS,"43,750.00",2014,"","","","SMITH, KEVIN"
,OFFICE OF THE SPEAKER,2014Q2,PERSONNEL COMPENSATION,"","SOMMERS, MICHAEL J",04/01/14,06/30/14,CHIEF OF STAFF,"43,125.00",2014,"","","","SOMMERS, MICHAEL J"
,OFFICE OF THE SPEAKER,2014Q2,PERSONNEL COMPENSATION,"","STEEL, MICHAEL",04/01/14,06/30/14,PRESS SECRETARY,"37,500.00",2014,"","","","STEEL, MICHAEL"
,OFFICE OF THE SPEAKER,2014Q2,PERSONNEL COMPENSATION,"","STEWART, DAVID B",04/01/14,06/30/14,POLICY DIRECTOR (STAT),"43,125.00",2014,"","","","STEWART, DAVID B"
,OFFICE OF THE SPEAKER,2014Q2,PERSONNEL COMPENSATION,"","STEWART, JENNIFER M",04/01/14,06/30/14,ASST TO SPEAKER FOR POLICY,"28,333.34",2014,"","","","STEWART, JENNIFER M"
,OFFICE OF THE SPEAKER,2014Q2,PERSONNEL COMPENSATION,"","STRUNK, LYDIA",04/01/14,06/30/14,DEPUTY FLOOR DIRECTOR,"24,999.99",2014,"","","","STRUNK, LYDIA"
,OFFICE OF THE SPEAKER,2014Q2,PERSONNEL COMPENSATION,"","TALLENT,REBECCA A",04/01/14,06/30/14,ASST TO SPEAKER FOR POLICY,"42,000.00",2014,"","","","TALLENT,REBECCA A"
,OFFICE OF THE SPEAKER,2014Q2,PERSONNEL COMPENSATION,"","THORSEN, ANNE B",03/01/14,06/30/14,FLOOR DIRECTOR,"43,750.00",2014,"","","","THORSEN, ANNE B"
,OFFICE OF THE SPEAKER,2014Q2,PERSONNEL COMPENSATION,"","WOLKING,MATTHEW D",04/12/14,06/30/14,COMMUNICATIONS ADVISOR,"19,750.00",2014,"","","","WOLKING,MATTHEW D"
,OFFICE OF THE SPEAKER,2014Q2,PERSONNEL COMPENSATION,"","WORTH,BRIAN A",04/01/14,04/30/14,SHARED EMPLOYEE,"8,333.33",2014,"","","","WORTH,BRIAN A"
,OFFICE OF THE SPEAKER,2014Q2,TRAVEL,04-03,"SCHNITTGER, DAVID M",03/21/14,03/21/14,TAXI/PARKING/TOLLS,20.00,2014,AP,Accounts payable,E0136972,"SCHNITTGER, DAVID M"
,OFFICE OF THE SPEAKER,2014Q2,TRAVEL,04-03,"LOHMEYER, SONJA M",03/24/14,03/24/14,TAXI/PARKING/TOLLS,20.00,2014,AP,Accounts payable,E0136978,"LOHMEYER, SONJA M"
,OFFICE OF THE SPEAKER,2014Q2,TRAVEL,04-03,"BAILEY,BRADLEY",03/27/14,03/27/14,TAXI/PARKING/TOLLS,24.00,2014,AP,Accounts payable,E0136983,"BAILEY,BRADLEY"
,OFFICE OF THE SPEAKER,2014Q2,TRAVEL,04-03,"SOMMERS,MICHAEL",03/19/14,03/19/14,TAXI/PARKING/TOLLS,20.00,2014,AP,Accounts payable,E0136988,"SOMMERS,MICHAEL"
,OFFICE OF THE SPEAKER,2014Q2,TRAVEL,04-23,"STEWART, DAVID B",02/12/14,02/12/14,TAXI/PARKING/TOLLS,30.00,2014,AP,Accounts payable,E0143912,"STEWART, DAVID B"
,OFFICE OF THE SPEAKER,2014Q2,TRAVEL,04-24,"TALLENT, REBECCA A",01/14/14,03/06/14,TAXI/PARKING/TOLLS,125.93,2014,AP,Accounts payable,E0143919,"TALLENT, REBECCA A"
,OFFICE OF THE SPEAKER,2014Q2,TRAVEL,05-07,"SMITH, CALEB",04/21/14,04/25/14,TRAVEL SUBSISTENCE,460.19,2014,AP,Accounts payable,E0149258,"SMITH, CALEB"
,OFFICE OF THE SPEAKER,2014Q2,TRAVEL,05-07,"SMITH, CALEB",04/19/14,04/25/14,COMMERCIAL TRANSPORTATION,"1,113.75",2014,AP,Accounts payable,E0149260,"SMITH, CALEB"
,OFFICE OF THE SPEAKER,2014Q2,TRAVEL,05-07,"SMITH, CALEB",04/21/14,04/25/14,TAXI/PARKING/TOLLS,55.00,2014,AP,Accounts payable,E0149261,"SMITH, CALEB"
,OFFICE OF THE SPEAKER,2014Q2,TRAVEL,05-27,"SMITH, KEVIN",01/21/14,03/19/14,TAXI/PARKING/TOLLS,104.00,2014,AP,Accounts payable,E0156475,"SMITH, KEVIN"
,OFFICE OF THE SPEAKER,2014Q2,"RENT, COMMUNICATION, UTILITIES",05-20,CITI PCARD-SXM SIRIUSXM.COM/ACCT,03/29/14,04/28/14,UTILITIES,232.61,2014,AP,Accounts payable,00732083,CITI PCARD-SXM SIRIUSXM.COM/ACCT
,OFFICE OF THE SPEAKER,2014Q2,PRINTING AND REPRODUCTION,04-25,"",04/01/14,04/30/14,PHOTOGRAPHIC (TRANSFER),240.00,2014,GL,General ledger,PIX0038591,""
,OFFICE OF THE SPEAKER,2014Q2,PRINTING AND REPRODUCTION,05-27,"",05/01/14,05/31/14,PHOTOGRAPHIC (TRANSFER),149.20,2014,GL,General ledger,PIX0039306,""
,OFFICE OF THE SPEAKER,2014Q2,PRINTING AND REPRODUCTION,06-24,"",06/01/14,06/30/14,PHOTOGRAPHIC (TRANSFER),105.60,2014,GL,General ledger,PIX0040022,""
,OFFICE OF THE SPEAKER,2014Q2,OTHER SERVICES,05-28,CAPITAL GIFTS AND AWARDS INC,05/20/14,05/20/14,REPRESENTATIONAL EXPENSES,"3,033.95",2014,AP,Accounts payable,E0156586,CAPITAL GIFTS AND AWARDS INC
,OFFICE OF THE SPEAKER,2014Q2,OTHER SERVICES,06-11,CAPITAL GIFTS AND AWARDS INC,06/02/14,06/02/14,REPRESENTATIONAL EXPENSES,262.00,2014,AP,Accounts payable,E0162643,CAPITAL GIFTS AND AWARDS INC
,OFFICE OF THE SPEAKER,2014Q2,SUPPLIES AND MATERIALS,04-11,COCA-COLA REFRESHMENTS,04/01/14,04/01/14,FOOD & BEVERAGE,112.80,2014,AP,Accounts payable,E0140491,COCA-COLA REFRESHMENTS
,OFFICE OF THE SPEAKER,2014Q2,SUPPLIES AND MATERIALS,04-11,LEXIS-NEXIS,04/01/14,04/30/14,PUBLICATIONS/REFERENCE MAT'L,"9,396.00",2014,AP,Accounts payable,E0140499,LEXIS-NEXIS
,OFFICE OF THE SPEAKER,2014Q2,SUPPLIES AND MATERIALS,04-21,CITI PCARD-CAPITOL HOST (RIDGEWEL,03/01/14,03/28/14,FOOD & BEVERAGE,255.00,2014,AP,Accounts payable,00726853,CITI PCARD-CAPITOL HOST (RIDGEWEL
,OFFICE OF THE SPEAKER,2014Q2,SUPPLIES AND MATERIALS,04-21,CITI PCARD-CORNER BAKERY,03/01/14,03/28/14,FOOD & BEVERAGE,"1,391.50",2014,AP,Accounts payable,00726853,CITI PCARD-CORNER BAKERY
,OFFICE OF THE SPEAKER,2014Q2,SUPPLIES AND MATERIALS,04-21,CITI PCARD-D J WALL-ST-JOURNAL,03/01/14,03/28/14,PUBLICATIONS/REFERENCE MAT'L,291.74,2014,AP,Accounts payable,00726853,CITI PCARD-D J WALL-ST-JOURNAL
,OFFICE OF THE SPEAKER,2014Q2,SUPPLIES AND MATERIALS,04-21,CITI PCARD-PORT OF PIRAEUS III,03/01/14,03/28/14,FOOD & BEVERAGE,353.41,2014,AP,Accounts payable,00726853,CITI PCARD-PORT OF PIRAEUS III
,OFFICE OF THE SPEAKER,2014Q2,SUPPLIES AND MATERIALS,04-21,CITI PCARD-TAYLOR GOURMET,03/01/14,03/28/14,FOOD & BEVERAGE,484.50,2014,AP,Accounts payable,00726853,CITI PCARD-TAYLOR GOURMET
,OFFICE OF THE SPEAKER,2014Q2,SUPPLIES AND MATERIALS,04-21,CITI PCARD-VUE COMPTIA MRKETPLCE,03/01/14,03/28/14,PUBLICATIONS/REFERENCE MAT'L,118.82,2014,AP,Accounts payable,00726853,CITI PCARD-VUE COMPTIA MRKETPLCE
,OFFICE OF THE SPEAKER,2014Q2,SUPPLIES AND MATERIALS,04-21,CITI PCARD-WHOLEFDS PST,03/01/14,03/28/14,FOOD & BEVERAGE,348.94,2014,AP,Accounts payable,00726853,CITI PCARD-WHOLEFDS PST
,OFFICE OF THE SPEAKER,2014Q2,SUPPLIES AND MATERIALS,04-23,FIRST CHOICE COFFEE SERVICES,03/28/14,03/28/14,FOOD & BEVERAGE,816.60,2014,AP,Accounts payable,E0143886,FIRST CHOICE COFFEE SERVICES
,OFFICE OF THE SPEAKER,2014Q2,SUPPLIES AND MATERIALS,04-23,FIRST CHOICE COFFEE SERVICES,03/24/14,03/24/14,FOOD & BEVERAGE,154.50,2014,AP,Accounts payable,E0143888,FIRST CHOICE COFFEE SERVICES
,OFFICE OF THE SPEAKER,2014Q2,SUPPLIES AND MATERIALS,04-23,FIRST CHOICE COFFEE SERVICES,02/12/14,02/12/14,FOOD & BEVERAGE,834.02,2014,AP,Accounts payable,E0143894,FIRST CHOICE COFFEE SERVICES
,OFFICE OF THE SPEAKER,2014Q2,SUPPLIES AND MATERIALS,04-23,FIRST CHOICE COFFEE SERVICES,03/06/14,03/06/14,FOOD & BEVERAGE,452.72,2014,AP,Accounts payable,E0143895,FIRST CHOICE COFFEE SERVICES
,OFFICE OF THE SPEAKER,2014Q2,SUPPLIES AND MATERIALS,04-23,FIRST CHOICE COFFEE SERVICES,02/27/14,02/27/14,FOOD & BEVERAGE,490.19,2014,AP,Accounts payable,E0143900,FIRST CHOICE COFFEE SERVICES
,OFFICE OF THE SPEAKER,2014Q2,SUPPLIES AND MATERIALS,04-23,FIRST CHOICE COFFEE SERVICES,02/06/14,02/06/14,FOOD & BEVERAGE,99.75,2014,AP,Accounts payable,E0143904,FIRST CHOICE COFFEE SERVICES
,OFFICE OF THE SPEAKER,2014Q2,SUPPLIES AND MATERIALS,04-23,FIRST CHOICE COFFEE SERVICES,02/05/14,02/05/14,FOOD & BEVERAGE,353.18,2014,AP,Accounts payable,E0143905,FIRST CHOICE COFFEE SERVICES
,OFFICE OF THE SPEAKER,2014Q2,SUPPLIES AND MATERIALS,04-23,FIRST CHOICE COFFEE SERVICES,02/06/14,02/06/14,FOOD & BEVERAGE,75.85,2014,AP,Accounts payable,E0143909,FIRST CHOICE COFFEE SERVICES
,OFFICE OF THE SPEAKER,2014Q2,SUPPLIES AND MATERIALS,04-23,FIRST CHOICE COFFEE SERVICES,03/13/14,03/13/14,FOOD & BEVERAGE,726.28,2014,AP,Accounts payable,E0143915,FIRST CHOICE COFFEE SERVICES
,OFFICE OF THE SPEAKER,2014Q2,SUPPLIES AND MATERIALS,04-23,FIRST CHOICE COFFEE SERVICES,03/04/14,03/04/14,FOOD & BEVERAGE,5.10,2014,AP,Accounts payable,E0143920,FIRST CHOICE COFFEE SERVICES
,OFFICE OF THE SPEAKER,2014Q2,SUPPLIES AND MATERIALS,05-07,COCA-COLA REFRESHMENTS,04/15/14,04/15/14,FOOD & BEVERAGE,184.08,2014,AP,Accounts payable,E0149259,COCA-COLA REFRESHMENTS
,OFFICE OF THE SPEAKER,2014Q2,SUPPLIES AND MATERIALS,05-07,LEADERSHIP DIRECTORIES INC,07/01/14,01/01/15,PUBLICATIONS/REFERENCE MAT'L,442.00,2014,AP,Accounts payable,E0149266,LEADERSHIP DIRECTORIES INC
,OFFICE OF THE SPEAKER,2014Q2,SUPPLIES AND MATERIALS,05-07,"SMITH, CALEB",03/29/14,04/30/14,PUBLICATIONS/REFERENCE MAT'L,110.00,2014,AP,Accounts payable,E0149268,"SMITH, CALEB"
,OFFICE OF THE SPEAKER,2014Q2,SUPPLIES AND MATERIALS,05-08,COCA-COLA REFRESHMENTS,05/06/14,05/06/14,FOOD & BEVERAGE,135.36,2014,AP,Accounts payable,E0150096,COCA-COLA REFRESHMENTS
,OFFICE OF THE SPEAKER,2014Q2,SUPPLIES AND MATERIALS,05-09,"HALEY, KATHERINE C",01/29/14,03/31/14,FOOD & BEVERAGE,64.45,2014,AP,Accounts payable,00727854,"HALEY, KATHERINE C"
,OFFICE OF THE SPEAKER,2014Q2,SUPPLIES AND MATERIALS,05-20,CITI PCARD-AMERICAN IMMIGRATION L,03/29/14,04/28/14,PUBLICATIONS/REFERENCE MAT'L,95.55,2014,AP,Accounts payable,00732083,CITI PCARD-AMERICAN IMMIGRATION L
,OFFICE OF THE SPEAKER,2014Q2,SUPPLIES AND MATERIALS,05-20,CITI PCARD-CAPITOL HOST (RIDGEWEL,03/29/14,04/28/14,FOOD & BEVERAGE,221.00,2014,AP,Accounts payable,00732083,CITI PCARD-CAPITOL HOST (RIDGEWEL
,OFFICE OF THE SPEAKER,2014Q2,SUPPLIES AND MATERIALS,05-20,CITI PCARD-CORNER BAKERY,03/29/14,04/28/14,FOOD & BEVERAGE,"1,207.30",2014,AP,Accounts payable,00732083,CITI PCARD-CORNER BAKERY
,OFFICE OF THE SPEAKER,2014Q2,SUPPLIES AND MATERIALS,05-20,CITI PCARD-CVS PHARMACY,03/29/14,04/28/14,FOOD & BEVERAGE,18.55,2014,AP,Accounts payable,00732083,CITI PCARD-CVS PHARMACY
,OFFICE OF THE SPEAKER,2014Q2,SUPPLIES AND MATERIALS,05-20,CITI PCARD-PF CHANGS,03/29/14,04/28/14,FOOD & BEVERAGE,480.37,2014,AP,Accounts payable,00732083,CITI PCARD-PF CHANGS
,OFFICE OF THE SPEAKER,2014Q2,SUPPLIES AND MATERIALS,05-20,CITI PCARD-PORT OF PIRAEUS III,03/29/14,04/28/14,FOOD & BEVERAGE,391.52,2014,AP,Accounts payable,00732083,CITI PCARD-PORT OF PIRAEUS III
,OFFICE OF THE SPEAKER,2014Q2,SUPPLIES AND MATERIALS,05-20,CITI PCARD-SOMETHING SWEET,03/29/14,04/28/14,FOOD & BEVERAGE,506.81,2014,AP,Accounts payable,00732083,CITI PCARD-SOMETHING SWEET
,OFFICE OF THE SPEAKER,2014Q2,SUPPLIES AND MATERIALS,05-20,CITI PCARD-TAYLOR GOURMET,03/29/14,04/28/14,FOOD & BEVERAGE,215.00,2014,AP,Accounts payable,00732083,CITI PCARD-TAYLOR GOURMET
,OFFICE OF THE SPEAKER,2014Q2,SUPPLIES AND MATERIALS,05-20,CITI PCARD-WHOLEFDS PST,03/29/14,04/28/14,FOOD & BEVERAGE,369.08,2014,AP,Accounts payable,00732083,CITI PCARD-WHOLEFDS PST
,OFFICE OF THE SPEAKER,2014Q2,SUPPLIES AND MATERIALS,06-11,FIRST CHOICE COFFEE SERVICES,05/01/14,05/01/14,FOOD & BEVERAGE,559.11,2014,AP,Accounts payable,E0162610,FIRST CHOICE COFFEE SERVICES
,OFFICE OF THE SPEAKER,2014Q2,SUPPLIES AND MATERIALS,06-11,FIRST CHOICE COFFEE SERVICES,05/15/14,05/15/14,FOOD & BEVERAGE,282.94,2014,AP,Accounts payable,E0162613,FIRST CHOICE COFFEE SERVICES
,OFFICE OF THE SPEAKER,2014Q2,SUPPLIES AND MATERIALS,06-11,FIRST CHOICE COFFEE SERVICES,04/03/14,04/03/14,FOOD & BEVERAGE,403.76,2014,AP,Accounts payable,E0162619,FIRST CHOICE COFFEE SERVICES
,OFFICE OF THE SPEAKER,2014Q2,SUPPLIES AND MATERIALS,06-11,FIRST CHOICE COFFEE SERVICES,04/24/14,04/24/14,FOOD & BEVERAGE,619.93,2014,AP,Accounts payable,E0162622,FIRST CHOICE COFFEE SERVICES
,OFFICE OF THE SPEAKER,2014Q2,SUPPLIES AND MATERIALS,06-11,FIRST CHOICE COFFEE SERVICES,05/12/14,05/12/14,FOOD & BEVERAGE,140.45,2014,AP,Accounts payable,E0162624,FIRST CHOICE COFFEE SERVICES
,OFFICE OF THE SPEAKER,2014Q2,SUPPLIES AND MATERIALS,06-11,FIRST CHOICE COFFEE SERVICES,05/08/14,05/08/14,FOOD & BEVERAGE,373.33,2014,AP,Accounts payable,E0162625,FIRST CHOICE COFFEE SERVICES
,OFFICE OF THE SPEAKER,2014Q2,SUPPLIES AND MATERIALS,06-11,COCA-COLA REFRESHMENTS,05/27/14,05/27/14,FOOD & BEVERAGE,174.72,2014,AP,Accounts payable,E0162628,COCA-COLA REFRESHMENTS
,OFFICE OF THE SPEAKER,2014Q2,SUPPLIES AND MATERIALS,06-11,FIRST CHOICE COFFEE SERVICES,05/15/14,05/15/14,FOOD & BEVERAGE,47.85,2014,AP,Accounts payable,E0162637,FIRST CHOICE COFFEE SERVICES
,OFFICE OF THE SPEAKER,2014Q2,SUPPLIES AND MATERIALS,06-11,FIRST CHOICE COFFEE SERVICES,05/22/14,05/22/14,FOOD & BEVERAGE,650.94,2014,AP,Accounts payable,E0162640,FIRST CHOICE COFFEE SERVICES
,OFFICE OF THE SPEAKER,2014Q2,SUPPLIES AND MATERIALS,06-11,FIRST CHOICE COFFEE SERVICES,05/07/14,05/07/14,FOOD & BEVERAGE,131.65,2014,AP,Accounts payable,E0162641,FIRST CHOICE COFFEE SERVICES
,OFFICE OF THE SPEAKER,2014Q2,SUPPLIES AND MATERIALS,06-11,FIRST CHOICE COFFEE SERVICES,05/30/14,05/30/14,FOOD & BEVERAGE,567.81,2014,AP,Accounts payable,E0162642,FIRST CHOICE COFFEE SERVICES
,OFFICE OF THE SPEAKER,2014Q2,SUPPLIES AND MATERIALS,06-11,FIRST CHOICE COFFEE SERVICES,04/10/14,04/10/14,FOOD & BEVERAGE,519.11,2014,AP,Accounts payable,E0162646,FIRST CHOICE COFFEE SERVICES
,OFFICE OF THE SPEAKER,2014Q2,SUPPLIES AND MATERIALS,06-13,"SMITH, CALEB",03/29/14,04/30/14,PUBLICATIONS/REFERENCE MAT'L,-110.00,2014,AP,Accounts payable,00733208,"SMITH, CALEB"
,OFFICE OF THE SPEAKER,2014Q2,SUPPLIES AND MATERIALS,06-16,COCA-COLA REFRESHMENTS,06/12/14,06/12/14,FOOD & BEVERAGE,206.40,2014,AP,Accounts payable,E0163827,COCA-COLA REFRESHMENTS
,OFFICE OF THE SPEAKER,2014Q2,SUPPLIES AND MATERIALS,06-19,CITI PCARD-CAPITOL HOST (RIDGEWEL,04/29/14,05/28/14,FOOD & BEVERAGE,"1,039.50",2014,AP,Accounts payable,00737272,CITI PCARD-CAPITOL HOST (RIDGEWEL
,OFFICE OF THE SPEAKER,2014Q2,SUPPLIES AND MATERIALS,06-19,CITI PCARD-CORNER BAKERY,04/29/14,05/28/14,FOOD & BEVERAGE,"1,205.50",2014,AP,Accounts payable,00737272,CITI PCARD-CORNER BAKERY
,OFFICE OF THE SPEAKER,2014Q2,SUPPLIES AND MATERIALS,06-19,CITI PCARD-PORT OF PIRAEUS III,04/29/14,05/28/14,FOOD & BEVERAGE,519.34,2014,AP,Accounts payable,00737272,CITI PCARD-PORT OF PIRAEUS III
,OFFICE OF THE SPEAKER,2014Q2,SUPPLIES AND MATERIALS,06-19,CITI PCARD-SURFSIDE,04/29/14,05/28/14,FOOD & BEVERAGE,516.62,2014,AP,Accounts payable,00737272,CITI PCARD-SURFSIDE
,OFFICE OF THE SPEAKER,2014Q2,SUPPLIES AND MATERIALS,06-19,CITI PCARD-TAYLOR GOURMET,04/29/14,05/28/14,FOOD & BEVERAGE,627.00,2014,AP,Accounts payable,00737272,CITI PCARD-TAYLOR GOURMET
,OFFICE OF THE MAJORITY LEADER,2014Q2,PERSONNEL COMPENSATION,"","BARRERA,AMY D",04/01/14,06/30/14,DIRECTOR OF ADMINISTRATION,"15,624.99",2014,"","","","BARRERA,AMY D"
,OFFICE OF THE MAJORITY LEADER,2014Q2,PERSONNEL COMPENSATION,"","BORDEN III, R C",04/01/14,06/30/14,SHARED EMPLOYEE,300.00,2014,"","","","BORDEN III, R C"
,OFFICE OF THE MAJORITY LEADER,2014Q2,PERSONNEL COMPENSATION,"","BRADLEY, NEIL L",04/01/14,06/30/14,DEPUTY CHEIF OF STAFF,"43,125.00",2014,"","","","BRADLEY, NEIL L"
,OFFICE OF THE MAJORITY LEADER,2014Q2,PERSONNEL COMPENSATION,"","CHRISTENSEN, AUTUMN",04/01/14,06/30/14,SHARED EMPLOYEE,"3,000.00",2014,"","","","CHRISTENSEN, AUTUMN"
,OFFICE OF THE MAJORITY LEADER,2014Q2,PERSONNEL COMPENSATION,"","COOPER,RORY S",04/01/14,06/30/14,DIRECTOR OF COMMUNICATIONS,"36,249.99",2014,"","","","COOPER,RORY S"
,OFFICE OF THE MAJORITY LEADER,2014Q2,PERSONNEL COMPENSATION,"","CUTLER,AARON",04/01/14,06/30/14,SR. ADV FOR POLICY & OUTREACH,"32,166.67",2014,"","","","CUTLER,AARON"
,OFFICE OF THE MAJORITY LEADER,2014Q2,PERSONNEL COMPENSATION,"","EDWARDS,SPENCER M",04/01/14,06/30/14,STAFF ASSISTANT,"6,249.99",2014,"","","","EDWARDS,SPENCER M"
,OFFICE OF THE MAJORITY LEADER,2014Q2,PERSONNEL COMPENSATION,"","GUSTAFSON,NICOLE M",04/01/14,06/30/14,POLICY ADVISOR/COUNSEL,"16,500.00",2014,"","","","GUSTAFSON,NICOLE M"
,OFFICE OF THE MAJORITY LEADER,2014Q2,PERSONNEL COMPENSATION,"","HEYE,DOUGLAS R",04/01/14,06/30/14,DEPUTY CHIEF OF STAFF-COMMUNIC,"42,000.00",2014,"","","","HEYE,DOUGLAS R"
,OFFICE OF THE MAJORITY LEADER,2014Q2,PERSONNEL COMPENSATION,"","JAEGER, CHERYL L",04/01/14,06/30/14,SENIOR POLICY ADVISOR,"22,149.99",2014,"","","","JAEGER, CHERYL L"
,OFFICE OF THE MAJORITY LEADER,2014Q2,PERSONNEL COMPENSATION,"","JAMERSON,ALLEN J",04/01/14,06/30/14,SPECIAL ASSISTANT,"8,499.99",2014,"","","","JAMERSON,ALLEN J"
,OFFICE OF THE MAJORITY LEADER,2014Q2,PERSONNEL COMPENSATION,"","JOSEPH,COURTNEY E",04/01/14,06/20/14,CONGRESSIONAL STAFF,"4,444.45",2014,"","","","JOSEPH,COURTNEY E"
,OFFICE OF THE MAJORITY LEADER,2014Q2,PERSONNEL COMPENSATION,"","KAREM,ROBERT S",04/01/14,06/30/14,SENIOR POLICY ADVISOR,"32,000.01",2014,"","","","KAREM,ROBERT S"
,OFFICE OF THE MAJORITY LEADER,2014Q2,PERSONNEL COMPENSATION,"","KEECH,EMILY H",04/01/14,06/30/14,DEPUTY DIRECTOR OF MEMBER SVCS,"8,000.01",2014,"","","","KEECH,EMILY H"
,OFFICE OF THE MAJORITY LEADER,2014Q2,PERSONNEL COMPENSATION,"","KLUTTZ,LAWSON T",04/01/14,06/30/14,STAFF ASSISTANT,"6,249.99",2014,"","","","KLUTTZ,LAWSON T"
,OFFICE OF THE MAJORITY LEADER,2014Q2,PERSONNEL COMPENSATION,"","MAHAN,ROGER A",04/01/14,06/30/14,POLICY ADVISOR,"17,499.99",2014,"","","","MAHAN,ROGER A"
,OFFICE OF THE MAJORITY LEADER,2014Q2,PERSONNEL COMPENSATION,"","MARCELLI,NICHOLAS G",04/01/14,06/30/14,DEPUTY DIR DIGITAL MEDIA,"12,249.99",2014,"","","","MARCELLI,NICHOLAS G"
,OFFICE OF THE MAJORITY LEADER,2014Q2,PERSONNEL COMPENSATION,"","MORGAN,SARAH K",04/01/14,06/30/14,FLOOR ASSISTANT,"14,416.67",2014,"","","","MORGAN,SARAH K"
,OFFICE OF THE MAJORITY LEADER,2014Q2,PERSONNEL COMPENSATION,"","PATAKI,TIMOTHY A",04/01/14,06/30/14,FLOOR ASSISTANT,"11,499.99",2014,"","","","PATAKI,TIMOTHY A"
,OFFICE OF THE MAJORITY LEADER,2014Q2,PERSONNEL COMPENSATION,"","PATRU, KATHRYN M",04/01/14,06/30/14,DIR OF MEMBER SERVICES,"37,500.00",2014,"","","","PATRU, KATHRYN M"
,OFFICE OF THE MAJORITY LEADER,2014Q2,PERSONNEL COMPENSATION,"","STAPLETON,JOHN O",04/01/14,06/30/14,SPEECH WRITER,"14,000.01",2014,"","","","STAPLETON,JOHN O"
,OFFICE OF THE MAJORITY LEADER,2014Q2,PERSONNEL COMPENSATION,"","STEWART,WYATT A",04/01/14,06/30/14,POLICY ADVISOR,"15,249.99",2014,"","","","STEWART,WYATT A"
,OFFICE OF THE MAJORITY LEADER,2014Q2,PERSONNEL COMPENSATION,"","STOMBRES, STEVEN C",04/01/14,06/30/14,CHIEF OF STAFF,"43,125.00",2014,"","","","STOMBRES, STEVEN C"
,OFFICE OF THE MAJORITY LEADER,2014Q2,PERSONNEL COMPENSATION,"","VIESON, CHRISTOPHER W",04/01/14,06/30/14,DIRECTOR OF FLOOR OPERATIONS,"35,000.01",2014,"","","","VIESON, CHRISTOPHER W"
,OFFICE OF THE MAJORITY LEADER,2014Q2,PERSONNEL COMPENSATION,"","VILLARI,GENEVIEVE C",04/01/14,06/30/14,DEPUTY PRESS SECRETARY,"14,000.01",2014,"","","","VILLARI,GENEVIEVE C"
,OFFICE OF THE MAJORITY LEADER,2014Q2,PERSONNEL COMPENSATION,"","WALSH,WILLIAM C",04/01/14,06/30/14,DIRECTOR DIGITAL MEDIA,"13,749.99",2014,"","","","WALSH,WILLIAM C"
,OFFICE OF THE MAJORITY LEADER,2014Q2,PERSONNEL COMPENSATION,"","WAY, KRISTI",04/01/14,05/31/14,SHARED EMPLOYEE,"6,000.00",2014,"","","","WAY, KRISTI"
,OFFICE OF THE MAJORITY LEADER,2014Q2,PERSONNEL COMPENSATION,"","WHEATHERBY, KELLY K",04/01/14,06/30/14,DIR OF PROTOCOL & OPERATIONS,"9,750.00",2014,"","","","WHEATHERBY, KELLY K"
,OFFICE OF THE MAJORITY LEADER,2014Q2,PERSONNEL COMPENSATION,"","WHITTEMORE,MEGAN",04/01/14,05/31/14,SHARED EMPLOYEE,"4,000.00",2014,"","","","WHITTEMORE,MEGAN"
,OFFICE OF THE MAJORITY LEADER,2014Q2,TRAVEL,04-02,"JAEGER, CHERYL L",12/06/13,03/04/14,TAXI/PARKING/TOLLS,252.63,2014,AP,Accounts payable,E0136545,"JAEGER, CHERYL L"
,OFFICE OF THE MAJORITY LEADER,2014Q2,TRAVEL,04-14,"CUTLER, AARON",04/04/14,04/06/14,LODGING,180.94,2014,AP,Accounts payable,E0140323,"CUTLER, AARON"
,OFFICE OF THE MAJORITY LEADER,2014Q2,TRAVEL,04-14,"CUTLER, AARON",04/04/14,04/06/14,PRIVATE AUTO MILEAGE,201.60,2014,AP,Accounts payable,E0140323,"CUTLER, AARON"
,OFFICE OF THE MAJORITY LEADER,2014Q2,TRAVEL,04-30,"CUTLER, AARON",04/10/14,04/10/14,TAXI/PARKING/TOLLS,17.00,2014,AP,Accounts payable,E0146086,"CUTLER, AARON"
,OFFICE OF THE MAJORITY LEADER,2014Q2,TRAVEL,05-19,"GUSTAFSON,NICOLE M",10/11/13,05/12/14,TAXI/PARKING/TOLLS,146.29,2014,AP,Accounts payable,E0153733,"GUSTAFSON,NICOLE M"
,OFFICE OF THE MAJORITY LEADER,2014Q2,TRAVEL,05-19,"CUTLER, AARON",05/13/14,05/13/14,TAXI/PARKING/TOLLS,16.00,2014,AP,Accounts payable,E0153734,"CUTLER, AARON"
,OFFICE OF THE MAJORITY LEADER,2014Q2,TRAVEL,06-02,"CUTLER, AARON",05/28/14,05/28/14,TAXI/PARKING/TOLLS,22.00,2014,AP,Accounts payable,E0158501,"CUTLER, AARON"
,OFFICE OF THE MAJORITY LEADER,2014Q2,TRAVEL,06-02,"KEECH, EMILY H",03/05/14,05/20/14,PRIVATE AUTO MILEAGE,107.52,2014,AP,Accounts payable,E0158519,"KEECH, EMILY H"
,OFFICE OF THE MAJORITY LEADER,2014Q2,PRINTING AND REPRODUCTION,04-25,"",04/01/14,04/30/14,PHOTOGRAPHIC (TRANSFER),27.90,2014,GL,General ledger,PIX0038591,""
,OFFICE OF THE MAJORITY LEADER,2014Q2,PRINTING AND REPRODUCTION,05-27,"",05/01/14,05/31/14,PHOTOGRAPHIC (TRANSFER),34.50,2014,GL,General ledger,PIX0039306,""
,OFFICE OF THE MAJORITY LEADER,2014Q2,OTHER SERVICES,04-21,CITI PCARD-WP ENGINE,03/01/14,03/28/14,NON-TECHNOLOGY SERVICE CONTR,29.00,2014,AP,Accounts payable,00726853,CITI PCARD-WP ENGINE
,OFFICE OF THE MAJORITY LEADER,2014Q2,OTHER SERVICES,05-07,"",04/15/14,04/15/14,REPRESENTATIONAL EXPENSES,507.15,2014,GL,General ledger,GFT0038930,""
,OFFICE OF THE MAJORITY LEADER,2014Q2,OTHER SERVICES,05-12,"BARRERA, AMY D",04/15/14,04/15/14,REPRESENTATIONAL EXPENSES,507.15,2014,AP,Accounts payable,E0151380,"BARRERA, AMY D"
,OFFICE OF THE MAJORITY LEADER,2014Q2,OTHER SERVICES,05-20,"CITI PCARD-FORMSTACK, LLC",03/29/14,04/28/14,TECHNOLOGY SERVICE CONTRACTS,14.00,2014,AP,Accounts payable,00732083,"CITI PCARD-FORMSTACK, LLC"
,OFFICE OF THE MAJORITY LEADER,2014Q2,SUPPLIES AND MATERIALS,04-10,FIRST CHOICE COFFEE SERVICES,04/01/14,04/30/14,FOOD & BEVERAGE,523.10,2014,AP,Accounts payable,E0139982,FIRST CHOICE COFFEE SERVICES
,OFFICE OF THE MAJORITY LEADER,2014Q2,SUPPLIES AND MATERIALS,04-10,LEXIS-NEXIS,02/01/14,02/28/14,PUBLICATIONS/REFERENCE MAT'L,625.00,2014,AP,Accounts payable,E0139984,LEXIS-NEXIS
,OFFICE OF THE MAJORITY LEADER,2014Q2,SUPPLIES AND MATERIALS,04-11,BLOOMBERG FINANCE LP,01/01/14,12/31/14,PUBLICATIONS/REFERENCE MAT'L,"5,850.00",2014,AP,Accounts payable,E0139981,BLOOMBERG FINANCE LP
,OFFICE OF THE MAJORITY LEADER,2014Q2,SUPPLIES AND MATERIALS,04-21,CITI PCARD-AMAZON MKTPLACE PMTS,03/01/14,03/28/14,PUBLICATIONS/REFERENCE MAT'L,249.95,2014,AP,Accounts payable,00726853,CITI PCARD-AMAZON MKTPLACE PMTS
,OFFICE OF THE MAJORITY LEADER,2014Q2,SUPPLIES AND MATERIALS,04-21,CITI PCARD-D J WALL-ST-JOURNAL,03/01/14,03/28/14,PUBLICATIONS/REFERENCE MAT'L,24.31,2014,AP,Accounts payable,00726853,CITI PCARD-D J WALL-ST-JOURNAL
,OFFICE OF THE MAJORITY LEADER,2014Q2,SUPPLIES AND MATERIALS,04-21,CITI PCARD-NEW YORK TIMES DIGITAL,03/01/14,03/28/14,PUBLICATIONS/REFERENCE MAT'L,37.10,2014,AP,Accounts payable,00726853,CITI PCARD-NEW YORK TIMES DIGITAL
,OFFICE OF THE MAJORITY LEADER,2014Q2,SUPPLIES AND MATERIALS,04-21,CITI PCARD-SAFEWAY STORE,03/01/14,03/28/14,FOOD & BEVERAGE,555.14,2014,AP,Accounts payable,00726853,CITI PCARD-SAFEWAY STORE
,OFFICE OF THE MAJORITY LEADER,2014Q2,SUPPLIES AND MATERIALS,04-30,DEER PARK WATER,02/27/14,03/26/14,FOOD & BEVERAGE,666.21,2014,AP,Accounts payable,E0146083,DEER PARK WATER
,OFFICE OF THE MAJORITY LEADER,2014Q2,SUPPLIES AND MATERIALS,04-30,LEXIS-NEXIS,03/01/14,03/31/14,PUBLICATIONS/REFERENCE MAT'L,625.00,2014,AP,Accounts payable,E0146095,LEXIS-NEXIS
,OFFICE OF THE MAJORITY LEADER,2014Q2,SUPPLIES AND MATERIALS,05-01,FIRST CHOICE COFFEE SERVICES,04/17/14,04/17/14,FOOD & BEVERAGE,626.05,2014,AP,Accounts payable,E0146081,FIRST CHOICE COFFEE SERVICES
,OFFICE OF THE MAJORITY LEADER,2014Q2,SUPPLIES AND MATERIALS,05-05,CAPITOLHOST,04/03/14,04/03/14,FOOD & BEVERAGE,588.50,2014,AP,Accounts payable,E0147823,CAPITOLHOST
,OFFICE OF THE MAJORITY LEADER,2014Q2,SUPPLIES AND MATERIALS,05-15,"VILLARI, GENEVIEVE",02/12/14,02/12/14,FOOD & BEVERAGE,68.00,2014,AP,Accounts payable,00728082,"VILLARI, GENEVIEVE"
,OFFICE OF THE MAJORITY LEADER,2014Q2,SUPPLIES AND MATERIALS,05-19,FIRST CHOICE COFFEE SERVICES,05/15/14,05/15/14,FOOD & BEVERAGE,297.20,2014,AP,Accounts payable,E0153732,FIRST CHOICE COFFEE SERVICES
,OFFICE OF THE MAJORITY LEADER,2014Q2,SUPPLIES AND MATERIALS,05-20,CITI PCARD-AMAZON MKTPLACE PMTS,03/29/14,04/28/14,PUBLICATIONS/REFERENCE MAT'L,284.64,2014,AP,Accounts payable,00732083,CITI PCARD-AMAZON MKTPLACE PMTS
,OFFICE OF THE MAJORITY LEADER,2014Q2,SUPPLIES AND MATERIALS,05-20,CITI PCARD-D J WALL-ST-JOURNAL,03/29/14,04/28/14,PUBLICATIONS/REFERENCE MAT'L,24.31,2014,AP,Accounts payable,00732083,CITI PCARD-D J WALL-ST-JOURNAL
,OFFICE OF THE MAJORITY LEADER,2014Q2,SUPPLIES AND MATERIALS,05-20,CITI PCARD-NEW YORK TIMES DIGITAL,03/29/14,04/28/14,PUBLICATIONS/REFERENCE MAT'L,37.01,2014,AP,Accounts payable,00732083,CITI PCARD-NEW YORK TIMES DIGITAL
,OFFICE OF THE MAJORITY LEADER,2014Q2,SUPPLIES AND MATERIALS,05-20,CITI PCARD-SAFEWAY STORE,03/29/14,04/28/14,FOOD & BEVERAGE,664.48,2014,AP,Accounts payable,00732083,CITI PCARD-SAFEWAY STORE
,OFFICE OF THE MAJORITY LEADER,2014Q2,SUPPLIES AND MATERIALS,05-22,"WHEATHERBY, KELLY K",05/15/14,05/15/14,PUBLICATIONS/REFERENCE MAT'L,38.84,2014,AP,Accounts payable,E0153735,"WHEATHERBY, KELLY K"
,OFFICE OF THE MAJORITY LEADER,2014Q2,SUPPLIES AND MATERIALS,06-02,LEXIS-NEXIS,04/01/14,04/30/14,PUBLICATIONS/REFERENCE MAT'L,625.00,2014,AP,Accounts payable,E0158520,LEXIS-NEXIS
,OFFICE OF THE MAJORITY LEADER,2014Q2,SUPPLIES AND MATERIALS,06-16,CQ ROLL CALL,01/01/14,12/31/14,PUBLICATIONS/REFERENCE MAT'L,"38,998.00",2014,AP,Accounts payable,00737128,CQ ROLL CALL
,OFFICE OF THE MAJORITY LEADER,2014Q2,SUPPLIES AND MATERIALS,06-19,CITI PCARD-D J WALL-ST-JOURNAL,04/29/14,05/28/14,PUBLICATIONS/REFERENCE MAT'L,24.31,2014,AP,Accounts payable,00737272,CITI PCARD-D J WALL-ST-JOURNAL
,OFFICE OF THE MAJORITY LEADER,2014Q2,SUPPLIES AND MATERIALS,06-19,CITI PCARD-NEW YORK TIMES DIGITAL,04/29/14,05/28/14,PUBLICATIONS/REFERENCE MAT'L,37.01,2014,AP,Accounts payable,00737272,CITI PCARD-NEW YORK TIMES DIGITAL
,OFFICE OF THE MAJORITY LEADER,2014Q2,SUPPLIES AND MATERIALS,06-19,CITI PCARD-SAFEWAY STORE,04/29/14,05/28/14,FOOD & BEVERAGE,559.83,2014,AP,Accounts payable,00737272,CITI PCARD-SAFEWAY STORE
,OFFICE OF THE MAJORITY LEADER,2014Q2,SUPPLIES AND MATERIALS,06-16,CQ ROLL CALL,01/01/14,12/31/14,PUBLICATIONS/REFERENCE MAT'L,"-38,998.00",2013,AP,Accounts payable,00737128,CQ ROLL CALL
,OFFICE OF THE MINORITY LEADER,2014Q2,PERSONNEL COMPENSATION,"","ABOUCHAR, KEITH S",04/01/14,06/30/14,SENIOR POLICY ADVISOR,"32,700.00",2014,"","","","ABOUCHAR, KEITH S"
,OFFICE OF THE MINORITY LEADER,2014Q2,PERSONNEL COMPENSATION,"","ADRIANCE,EDWIN A",04/01/14,06/30/14,PRESS ASSISTANT,"7,916.67",2014,"","","","ADRIANCE,EDWIN A"
,OFFICE OF THE MINORITY LEADER,2014Q2,PERSONNEL COMPENSATION,"","ADRIANCE,EDWIN A",03/01/14,05/31/14,PRESS ASSISTANT (OVERTIME),"5,765.56",2014,"","","","ADRIANCE,EDWIN A"
,OFFICE OF THE MINORITY LEADER,2014Q2,PERSONNEL COMPENSATION,"","AGUILAR,JORGE A",04/01/14,05/31/14,PRESS ASSISTANT,"5,333.34",2014,"","","","AGUILAR,JORGE A"
,OFFICE OF THE MINORITY LEADER,2014Q2,PERSONNEL COMPENSATION,"","AGUILAR,JORGE A",06/01/14,06/30/14,DEPUTY PRESS SECRETARY,"5,416.67",2014,"","","","AGUILAR,JORGE A"
,OFFICE OF THE MINORITY LEADER,2014Q2,PERSONNEL COMPENSATION,"","AGUILAR,JORGE A",03/01/14,05/31/14,PRESS ASSISTANT (OVERTIME),"7,084.53",2014,"","","","AGUILAR,JORGE A"
,OFFICE OF THE MINORITY LEADER,2014Q2,PERSONNEL COMPENSATION,"","BARRY,MARY K",04/01/14,06/30/14,DEPUTY DIRECTOR OF ADVANCE,"26,250.00",2014,"","","","BARRY,MARY K"
,OFFICE OF THE MINORITY LEADER,2014Q2,PERSONNEL COMPENSATION,"","BERRET,EMILY C",01/03/14,06/30/14,SPECIAL ASST TO THE LEADER,"16,633.33",2014,"","","","BERRET,EMILY C"
,OFFICE OF THE MINORITY LEADER,2014Q2,PERSONNEL COMPENSATION,"","BLOOM, MICHAEL T",04/01/14,06/30/14,DEPUTY POLICY DIRECTOR,"24,999.99",2014,"","","","BLOOM, MICHAEL T"
,OFFICE OF THE MINORITY LEADER,2014Q2,PERSONNEL COMPENSATION,"","CAPRON, MARGARET W",04/01/14,06/30/14,SENIOR ADV POLICY & COMM,"32,340.92",2014,"","","","CAPRON, MARGARET W"
,OFFICE OF THE MINORITY LEADER,2014Q2,PERSONNEL COMPENSATION,"","CAYEA,DEVAN W",04/01/14,06/30/14,DEPUTY ASSIST SCHEDULER,"12,500.01",2014,"","","","CAYEA,DEVAN W"
,OFFICE OF THE MINORITY LEADER,2014Q2,PERSONNEL COMPENSATION,"","CHERRY,STEPHANIE",04/01/14,06/30/14,PRESS ADVISOR,"17,962.26",2014,"","","","CHERRY,STEPHANIE"
,OFFICE OF THE MINORITY LEADER,2014Q2,PERSONNEL COMPENSATION,"","CONNELLY,HENRY V",04/01/14,05/31/14,DEPUTY DIR OF SPEECHWRITING,"10,000.00",2014,"","","","CONNELLY,HENRY V"
,OFFICE OF THE MINORITY LEADER,2014Q2,PERSONNEL COMPENSATION,"","CONNELLY,HENRY V",06/01/14,06/30/14,DIRECTOR OF SPEECHWRITING,"6,250.00",2014,"","","","CONNELLY,HENRY V"
,OFFICE OF THE MINORITY LEADER,2014Q2,PERSONNEL COMPENSATION,"","COVEY-BRANDT, ALEXIS",04/01/14,06/30/14,CHIEF OF STAFF,"38,845.32",2014,"","","","COVEY-BRANDT, ALEXIS"
,OFFICE OF THE MINORITY LEADER,2014Q2,PERSONNEL COMPENSATION,"","DAY,TAMIKA K",04/01/14,06/30/14,SR STAFF ASST SYS ADMIN,"12,500.01",2014,"","","","DAY,TAMIKA K"
,OFFICE OF THE MINORITY LEADER,2014Q2,PERSONNEL COMPENSATION,"","DEGRAFF, KENNETH B",04/01/14,06/30/14,SENIOR POLICY ADVISOR,"28,749.99",2014,"","","","DEGRAFF, KENNETH B"
,OFFICE OF THE MINORITY LEADER,2014Q2,PERSONNEL COMPENSATION,"","DEVLIN, PATRICK J",04/01/14,06/30/14,COMMUNICATIONS DIRECTOR,"31,250.01",2014,"","","","DEVLIN, PATRICK J"
,OFFICE OF THE MINORITY LEADER,2014Q2,PERSONNEL COMPENSATION,"","DEWHIRST, DIANE",04/01/14,06/30/14,DEPUTY CHIEF OF STAFF,"35,000.01",2014,"","","","DEWHIRST, DIANE"
,OFFICE OF THE MINORITY LEADER,2014Q2,PERSONNEL COMPENSATION,"","DOHERTY,SINEAD G",05/01/14,05/31/14,FIELD REPRESENTATIVE,"2,750.00",2014,"","","","DOHERTY,SINEAD G"
,OFFICE OF THE MINORITY LEADER,2014Q2,PERSONNEL COMPENSATION,"","DOHERTY,SINEAD G",06/01/14,06/30/14,ADVANCE ASSOCIATE,"5,416.67",2014,"","","","DOHERTY,SINEAD G"
,OFFICE OF THE MINORITY LEADER,2014Q2,PERSONNEL COMPENSATION,"","EDMONSON, ROBERT D",04/01/14,06/30/14,CHIEF OF STAFF,"17,499.99",2014,"","","","EDMONSON, ROBERT D"
,OFFICE OF THE MINORITY LEADER,2014Q2,PERSONNEL COMPENSATION,"","ELLISON,MATTHEW B",04/01/14,06/30/14,LEGISLATIVE ASSISTANT,"7,500.00",2014,"","","","ELLISON,MATTHEW B"
,OFFICE OF THE MINORITY LEADER,2014Q2,PERSONNEL COMPENSATION,"","ELSHAMI, NADEAM",04/01/14,06/30/14,CHIEF OF STAFF,"43,125.00",2014,"","","","ELSHAMI, NADEAM"
,OFFICE OF THE MINORITY LEADER,2014Q2,PERSONNEL COMPENSATION,"","ETIENNE,ASHLEY D",04/01/14,06/13/14,DEPUTY COMM DIRECTOR,"26,361.10",2014,"","","","ETIENNE,ASHLEY D"
,OFFICE OF THE MINORITY LEADER,2014Q2,PERSONNEL COMPENSATION,"","ETIENNE,ASHLEY D",05/01/14,06/13/14,DEPUTY COMM DIRECTOR (OTHER COMPENSATION),"10,833.33",2014,"","","","ETIENNE,ASHLEY D"
,OFFICE OF THE MINORITY LEADER,2014Q2,PERSONNEL COMPENSATION,"","FISCHER JR, ROBERT V",04/01/14,06/30/14,ASST FLOOR CHIEF,"43,125.00",2014,"","","","FISCHER JR, ROBERT V"
,OFFICE OF THE MINORITY LEADER,2014Q2,PERSONNEL COMPENSATION,"","GEORGE,EVANGELINE M",04/01/14,05/31/14,PRESS SECRETARY,"10,916.66",2014,"","","","GEORGE,EVANGELINE M"
,OFFICE OF THE MINORITY LEADER,2014Q2,PERSONNEL COMPENSATION,"","GEORGE,EVANGELINE M",06/01/14,06/30/14,DEPUTY COMM DIR/PRESS SEC,"9,166.67",2014,"","","","GEORGE,EVANGELINE M"
,OFFICE OF THE MINORITY LEADER,2014Q2,PERSONNEL COMPENSATION,"","GREENER, APRIL L",04/01/14,06/30/14,RESEARCH DIRECTOR,"22,916.66",2014,"","","","GREENER, APRIL L"
,OFFICE OF THE MINORITY LEADER,2014Q2,PERSONNEL COMPENSATION,"","HAMMILL, ANDREW T",04/01/14,06/30/14,COMM DIR/SENIOR ADVISOR,"43,125.00",2014,"","","","HAMMILL, ANDREW T"
,OFFICE OF THE MINORITY LEADER,2014Q2,PERSONNEL COMPENSATION,"","HARTZ, JERRY",04/01/14,06/30/14,DIRECTOR OF FLOOR OPERATIONS,"43,125.00",2014,"","","","HARTZ, JERRY"
,OFFICE OF THE MINORITY LEADER,2014Q2,PERSONNEL COMPENSATION,"","HAYNES JR, WILFRED J",04/01/14,06/30/14,IT DIRECTOR,"24,530.49",2014,"","","","HAYNES JR, WILFRED J"
,OFFICE OF THE MINORITY LEADER,2014Q2,PERSONNEL COMPENSATION,"","JUDGE, KRISTINE A",04/01/14,05/31/14,SENIOR ADVISOR/POLICY COMM,"16,316.84",2014,"","","","JUDGE, KRISTINE A"
,OFFICE OF THE MINORITY LEADER,2014Q2,PERSONNEL COMPENSATION,"","JUDGE, KRISTINE A",05/01/14,05/31/14,SENIOR ADVISOR/POLICY COMM (OTHER COMPENSATION),"10,641.41",2014,"","","","JUDGE, KRISTINE A"
,OFFICE OF THE MINORITY LEADER,2014Q2,PERSONNEL COMPENSATION,"","KAPLAN,EMMA L",04/01/14,06/30/14,ASST TO THE EXECUTIVE OFFICE,"8,250.00",2014,"","","","KAPLAN,EMMA L"
,OFFICE OF THE MINORITY LEADER,2014Q2,PERSONNEL COMPENSATION,"","KAPLAN,EMMA L",03/01/14,05/31/14,ASST TO THE EXECUTIVE OFFICE (OVERTIME),"3,962.34",2014,"","","","KAPLAN,EMMA L"
,OFFICE OF THE MINORITY LEADER,2014Q2,PERSONNEL COMPENSATION,"","KEATING,ROSE M",04/01/14,06/30/14,ASST FLOOR MANAGER,"31,250.01",2014,"","","","KEATING,ROSE M"
,OFFICE OF THE MINORITY LEADER,2014Q2,PERSONNEL COMPENSATION,"","KEITA,KAMILAH Z",04/01/14,06/30/14,DEPUTY INFOMATION TECH. DIRECT,"22,283.01",2014,"","","","KEITA,KAMILAH Z"
,OFFICE OF THE MINORITY LEADER,2014Q2,PERSONNEL COMPENSATION,"","KRETMAN,MATTHEW A",04/01/14,06/30/14,DIRECTOR OF OUTREACH,"11,499.99",2014,"","","","KRETMAN,MATTHEW A"
,OFFICE OF THE MINORITY LEADER,2014Q2,PERSONNEL COMPENSATION,"","KUNDANIS, GEORGE",04/01/14,06/30/14,DEPUTY CHIEF OF STAFF,"43,125.00",2014,"","","","KUNDANIS, GEORGE"
,OFFICE OF THE MINORITY LEADER,2014Q2,PERSONNEL COMPENSATION,"","LEUSCHEN, JAMES P",05/10/14,06/30/14,SENIOR POLICY ADVISOR,"18,246.66",2014,"","","","LEUSCHEN, JAMES P"
,OFFICE OF THE MINORITY LEADER,2014Q2,PERSONNEL COMPENSATION,"","LIZARRAGA, JAIME E",04/01/14,06/30/14,SR ADV & DIR OF MEMBER SVC,"39,905.49",2014,"","","","LIZARRAGA, JAIME E"
,OFFICE OF THE MINORITY LEADER,2014Q2,PERSONNEL COMPENSATION,"","LONG,MICHAEL G",04/01/14,06/30/14,SENIOR ADVISOR,"24,999.99",2014,"","","","LONG,MICHAEL G"
,OFFICE OF THE MINORITY LEADER,2014Q2,PERSONNEL COMPENSATION,"","MAHR,THOMAS",04/01/14,06/30/14,POLICY DIRECTOR,"29,700.00",2014,"","","","MAHR,THOMAS"
,OFFICE OF THE MINORITY LEADER,2014Q2,PERSONNEL COMPENSATION,"","MANGRUM, PEARL J",04/01/14,06/30/14,FINANCIAL ADMINISTRATOR,"13,875.00",2014,"","","","MANGRUM, PEARL J"
,OFFICE OF THE MINORITY LEADER,2014Q2,PERSONNEL COMPENSATION,"","MCCLELLAND,ETHAN L",04/01/14,06/30/14,SPECIAL ASSISTANT,"12,500.01",2014,"","","","MCCLELLAND,ETHAN L"
,OFFICE OF THE MINORITY LEADER,2014Q2,PERSONNEL COMPENSATION,"","MELTZER,RICHARD",04/01/14,06/30/14,POLICY DIRECTOR,"43,125.00",2014,"","","","MELTZER,RICHARD"
,OFFICE OF THE MINORITY LEADER,2014Q2,PERSONNEL COMPENSATION,"","MILLER,AMY M",04/01/14,06/30/14,SENIOR ADVISOR,"24,999.99",2014,"","","","MILLER,AMY M"
,OFFICE OF THE MINORITY LEADER,2014Q2,PERSONNEL COMPENSATION,"","MINOR,JAIME N",04/01/14,06/30/14,DISTRICT SCHEDULER/EXEC ASSIST,"3,000.00",2014,"","","","MINOR,JAIME N"
,OFFICE OF THE MINORITY LEADER,2014Q2,PERSONNEL COMPENSATION,"","MONGE,KATHERINE S",04/01/14,06/30/14,TAX POLICY ADVISOR,"30,000.00",2014,"","","","MONGE,KATHERINE S"
,OFFICE OF THE MINORITY LEADER,2014Q2,PERSONNEL COMPENSATION,"","MURRAY, ELIZABETH M",04/01/14,05/09/14,SENIOR POLICY ADVISOR,"13,953.33",2014,"","","","MURRAY, ELIZABETH M"
,OFFICE OF THE MINORITY LEADER,2014Q2,PERSONNEL COMPENSATION,"","PARKER, WYNDEE R",04/01/14,06/30/14,SENIOR POLICY ADVISOR,"43,125.00",2014,"","","","PARKER, WYNDEE R"
,OFFICE OF THE MINORITY LEADER,2014Q2,PERSONNEL COMPENSATION,"","POWELL,JONATHAN M",04/01/14,06/06/14,DIRECTOR OF SPEECHWRITING,"14,666.67",2014,"","","","POWELL,JONATHAN M"
,OFFICE OF THE MINORITY LEADER,2014Q2,PERSONNEL COMPENSATION,"","POWELL,JONATHAN M",06/01/14,06/06/14,DIRECTOR OF SPEECHWRITING (OTHER COMPENSATION),"6,666.67",2014,"","","","POWELL,JONATHAN M"
,OFFICE OF THE MINORITY LEADER,2014Q2,PERSONNEL COMPENSATION,"","POWELL,LATRICE S",04/01/14,06/30/14,ASSISTANT CLOAKROOM MANAGER,"27,500.01",2014,"","","","POWELL,LATRICE S"
,OFFICE OF THE MINORITY LEADER,2014Q2,PERSONNEL COMPENSATION,"","PRICE, REVA B",04/01/14,06/30/14,OUTREACH DIRECTOR & ADVISOR,"31,924.26",2014,"","","","PRICE, REVA B"
,OFFICE OF THE MINORITY LEADER,2014Q2,PERSONNEL COMPENSATION,"","PRIMUS, WENDELL E",04/01/14,06/30/14,SENIOR POLICY ADVISOR,"43,125.00",2014,"","","","PRIMUS, WENDELL E"
,OFFICE OF THE MINORITY LEADER,2014Q2,PERSONNEL COMPENSATION,"","QUEEN,CORNELIUS W",04/01/14,06/30/14,LEGISLATIVE CORRESPONDENT,"8,250.00",2014,"","","","QUEEN,CORNELIUS W"
,OFFICE OF THE MINORITY LEADER,2014Q2,PERSONNEL COMPENSATION,"","REPKO,MARY F",04/01/14,06/30/14,SENIOR POLICY ADVISOR,"32,949.99",2014,"","","","REPKO,MARY F"
,OFFICE OF THE MINORITY LEADER,2014Q2,PERSONNEL COMPENSATION,"","RICCIO,ANDREA M",04/01/14,06/30/14,DIR OF MEMBER SERVICES,"20,000.01",2014,"","","","RICCIO,ANDREA M"
,OFFICE OF THE MINORITY LEADER,2014Q2,PERSONNEL COMPENSATION,"","ROMICK, BRIAN",04/01/14,06/30/14,MEMBER SERVICES DIRECTOR,"35,949.99",2014,"","","","ROMICK, BRIAN"
,OFFICE OF THE MINORITY LEADER,2014Q2,PERSONNEL COMPENSATION,"","SINGLETARY, BARVETTA",04/01/14,06/12/14,POLICY DIRECTOR,"26,599.99",2014,"","","","SINGLETARY, BARVETTA"
,OFFICE OF THE MINORITY LEADER,2014Q2,PERSONNEL COMPENSATION,"","SMITH,KELSEY L",01/03/14,01/30/14,DEPUTY DIRECTOR OF SCHEDULING,"4,705.55",2014,"","","","SMITH,KELSEY L"
,OFFICE OF THE MINORITY LEADER,2014Q2,PERSONNEL COMPENSATION,"","SMITH,KELSEY L",04/01/14,06/30/14,DEPUTY DIRECTOR OF ADVANCE,"17,999.99",2014,"","","","SMITH,KELSEY L"
,OFFICE OF THE MINORITY LEADER,2014Q2,PERSONNEL COMPENSATION,"","SOMANADER,TANYA",04/01/14,06/30/14,DIR OF NEW MEDIA/SPEECHWRITER,"20,000.01",2014,"","","","SOMANADER,TANYA"
,OFFICE OF THE MINORITY LEADER,2014Q2,PERSONNEL COMPENSATION,"","STIVERS, JONATHAN",04/01/14,06/30/14,SENIOR ADVISOR,"35,000.01",2014,"","","","STIVERS, JONATHAN"
,OFFICE OF THE MINORITY LEADER,2014Q2,PERSONNEL COMPENSATION,"","SURGEON,BINA G",04/01/14,06/30/14,SPECIAL ASST TO THE LEADER,"23,750.01",2014,"","","","SURGEON,BINA G"
,OFFICE OF THE MINORITY LEADER,2014Q2,PERSONNEL COMPENSATION,"","TECKLENBURG, MICHAEL H",04/01/14,06/30/14,COUNSEL,"32,499.99",2014,"","","","TECKLENBURG, MICHAEL H"
,OFFICE OF THE MINORITY LEADER,2014Q2,PERSONNEL COMPENSATION,"","WATKINS, YELBERTON R",04/01/14,06/30/14,CHIEF OF STAFF,"41,250.00",2014,"","","","WATKINS, YELBERTON R"
,OFFICE OF THE MINORITY LEADER,2014Q2,PERSONNEL COMPENSATION,"","WEST,JULIUS L",04/01/14,06/30/14,DEPUTY DIRECTOR OF MEMBER SVCS,"15,500.01",2014,"","","","WEST,JULIUS L"
,OFFICE OF THE MINORITY LEADER,2014Q2,PERSONNEL COMPENSATION,"","WOLTERS, KATE",04/01/14,06/30/14,PERSONAL ASSISTANT,"34,646.49",2014,"","","","WOLTERS, KATE"
,OFFICE OF THE MINORITY LEADER,2014Q2,TRAVEL,04-07,"MCCLELLAND, ETHAN L",02/04/14,03/27/14,TAXI/PARKING/TOLLS,32.82,2014,AP,Accounts payable,E0137898,"MCCLELLAND, ETHAN L"
,OFFICE OF THE MINORITY LEADER,2014Q2,TRAVEL,04-07,CITIBANK GOV CARD SERVICE,03/10/14,03/29/14,TRAVEL SUBSISTENCE,"2,996.35",2014,AP,Accounts payable,E0137899,CITIBANK GOV CARD SERVICE
,OFFICE OF THE MINORITY LEADER,2014Q2,TRAVEL,04-07,"SMITH, KELSEY L",03/05/14,03/24/14,TRAVEL SUBSISTENCE,999.70,2014,AP,Accounts payable,E0137900,"SMITH, KELSEY L"
,OFFICE OF THE MINORITY LEADER,2014Q2,TRAVEL,04-07,"HAMMILL, ANDREW T",03/21/14,03/23/14,TRAVEL SUBSISTENCE,"2,046.85",2014,AP,Accounts payable,E0137902,"HAMMILL, ANDREW T"
,OFFICE OF THE MINORITY LEADER,2014Q2,TRAVEL,04-07,CITIBANK GOV CARD SERVICE,02/18/14,03/27/14,TRAVEL SUBSISTENCE,"6,267.91",2014,AP,Accounts payable,E0137904,CITIBANK GOV CARD SERVICE
,OFFICE OF THE MINORITY LEADER,2014Q2,TRAVEL,04-07,"LIZARRAGA, JAIME E",03/21/14,03/21/14,TRAVEL SUBSISTENCE,266.82,2014,AP,Accounts payable,E0137909,"LIZARRAGA, JAIME E"
,OFFICE OF THE MINORITY LEADER,2014Q2,TRAVEL,04-07,"LIZARRAGA, JAIME E",03/27/14,03/29/14,TRAVEL SUBSISTENCE,723.64,2014,AP,Accounts payable,E0137909,"LIZARRAGA, JAIME E"
,OFFICE OF THE MINORITY LEADER,2014Q2,TRAVEL,04-07,"LIZARRAGA, JAIME E",03/31/14,03/31/14,TRAVEL SUBSISTENCE,143.15,2014,AP,Accounts payable,E0137909,"LIZARRAGA, JAIME E"
,OFFICE OF THE MINORITY LEADER,2014Q2,TRAVEL,04-09,CITIBANK GOV CARD SERVICE,03/04/14,04/04/14,COMMERCIAL TRANSPORTATION,"5,267.50",2014,AP,Accounts payable,E0139138,CITIBANK GOV CARD SERVICE
,OFFICE OF THE MINORITY LEADER,2014Q2,TRAVEL,04-09,"LIZARRAGA, JAIME E",04/02/14,04/02/14,TAXI/PARKING/TOLLS,27.33,2014,AP,Accounts payable,E0139160,"LIZARRAGA, JAIME E"
,OFFICE OF THE MINORITY LEADER,2014Q2,TRAVEL,04-09,CITIBANK GOV CARD SERVICE,03/14/14,03/24/14,TRAVEL SUBSISTENCE,"4,553.54",2014,AP,Accounts payable,E0139161,CITIBANK GOV CARD SERVICE
,OFFICE OF THE MINORITY LEADER,2014Q2,TRAVEL,04-17,"PRICE, REVA B",02/05/14,03/31/14,TAXI/PARKING/TOLLS,226.00,2014,AP,Accounts payable,E0142346,"PRICE, REVA B"
,OFFICE OF THE MINORITY LEADER,2014Q2,TRAVEL,04-17,"ETIENNE, ASHLEY D",03/14/14,03/19/14,TRAVEL SUBSISTENCE,884.18,2014,AP,Accounts payable,E0142347,"ETIENNE, ASHLEY D"
,OFFICE OF THE MINORITY LEADER,2014Q2,TRAVEL,04-17,"SURGEON,BINA G",04/01/14,04/01/14,TAXI/PARKING/TOLLS,20.00,2014,AP,Accounts payable,E0142358,"SURGEON,BINA G"
,OFFICE OF THE MINORITY LEADER,2014Q2,TRAVEL,04-17,"SURGEON,BINA G",03/29/14,03/31/14,TRAVEL SUBSISTENCE,67.88,2014,AP,Accounts payable,E0142358,"SURGEON,BINA G"
,OFFICE OF THE MINORITY LEADER,2014Q2,TRAVEL,04-17,"SMITH, KELSEY L",03/21/14,04/03/14,TAXI/PARKING/TOLLS,72.50,2014,AP,Accounts payable,E0142364,"SMITH, KELSEY L"
,OFFICE OF THE MINORITY LEADER,2014Q2,TRAVEL,04-29,CITIBANK GOV CARD SERVICE,02/06/14,02/23/14,TRAVEL SUBSISTENCE,"1,618.24",2014,AP,Accounts payable,00727172,CITIBANK GOV CARD SERVICE
,OFFICE OF THE MINORITY LEADER,2014Q2,TRAVEL,04-29,"KAPLAN, EMMA L",04/07/14,04/07/14,TAXI/PARKING/TOLLS,12.00,2014,AP,Accounts payable,E0145445,"KAPLAN, EMMA L"
,OFFICE OF THE MINORITY LEADER,2014Q2,TRAVEL,04-29,"MINOR, JAIME N",04/13/14,04/14/14,TRAVEL SUBSISTENCE,607.86,2014,AP,Accounts payable,E0145461,"MINOR, JAIME N"
,OFFICE OF THE MINORITY LEADER,2014Q2,TRAVEL,05-01,"LIZARRAGA, JAIME E",04/24/14,04/24/14,TAXI/PARKING/TOLLS,20.00,2014,AP,Accounts payable,E0146593,"LIZARRAGA, JAIME E"
,OFFICE OF THE MINORITY LEADER,2014Q2,TRAVEL,05-01,"STIVERS, JONATHAN",02/24/14,03/11/14,TAXI/PARKING/TOLLS,21.28,2014,AP,Accounts payable,E0147021,"STIVERS, JONATHAN"
,OFFICE OF THE MINORITY LEADER,2014Q2,TRAVEL,05-07,CITIBANK GOV CARD SERVICE,03/30/14,04/26/14,TRAVEL SUBSISTENCE,139.55,2014,AP,Accounts payable,E0149087,CITIBANK GOV CARD SERVICE
,OFFICE OF THE MINORITY LEADER,2014Q2,TRAVEL,05-08,CITIBANK GOV CARD SERVICE,03/29/14,04/01/14,TRAVEL SUBSISTENCE,980.44,2014,AP,Accounts payable,E0149639,CITIBANK GOV CARD SERVICE
,OFFICE OF THE MINORITY LEADER,2014Q2,TRAVEL,05-08,CITIBANK GOV CARD SERVICE,03/31/14,04/13/14,COMMERCIAL TRANSPORTATION,336.00,2014,AP,Accounts payable,E0149843,CITIBANK GOV CARD SERVICE
,OFFICE OF THE MINORITY LEADER,2014Q2,TRAVEL,05-22,"MCCLELLAND, ETHAN L",05/06/14,05/06/14,TAXI/PARKING/TOLLS,9.44,2014,AP,Accounts payable,E0155783,"MCCLELLAND, ETHAN L"
,OFFICE OF THE MINORITY LEADER,2014Q2,TRAVEL,05-30,"SMITH, KELSEY L",05/03/14,05/06/14,PRIVATE AUTO MILEAGE,10.41,2014,AP,Accounts payable,E0158275,"SMITH, KELSEY L"
,OFFICE OF THE MINORITY LEADER,2014Q2,TRAVEL,05-30,"SMITH, KELSEY L",05/02/14,05/25/14,TAXI/PARKING/TOLLS,93.11,2014,AP,Accounts payable,E0158275,"SMITH, KELSEY L"
,OFFICE OF THE MINORITY LEADER,2014Q2,TRAVEL,05-30,"KAPLAN, EMMA L",05/21/14,05/21/14,TAXI/PARKING/TOLLS,10.00,2014,AP,Accounts payable,E0158287,"KAPLAN, EMMA L"
,OFFICE OF THE MINORITY LEADER,2014Q2,TRAVEL,06-09,CITIBANK GOV CARD SERVICE,05/07/14,06/02/14,COMMERCIAL TRANSPORTATION,"3,418.98",2014,AP,Accounts payable,E0160908,CITIBANK GOV CARD SERVICE
,OFFICE OF THE MINORITY LEADER,2014Q2,TRAVEL,06-09,"DOHERTY, SINEAD G",05/15/14,05/15/14,TAXI/PARKING/TOLLS,55.10,2014,AP,Accounts payable,E0160911,"DOHERTY, SINEAD G"
,OFFICE OF THE MINORITY LEADER,2014Q2,TRAVEL,06-09,"CAYEA, DEVAN W",05/30/14,05/30/14,TAXI/PARKING/TOLLS,25.87,2014,AP,Accounts payable,E0160919,"CAYEA, DEVAN W"
,OFFICE OF THE MINORITY LEADER,2014Q2,TRAVEL,06-09,"MINOR, JAIME N",05/07/14,05/17/14,TRAVEL SUBSISTENCE,670.76,2014,AP,Accounts payable,E0160920,"MINOR, JAIME N"
,OFFICE OF THE MINORITY LEADER,2014Q2,TRAVEL,06-10,CITIBANK GOV CARD SERVICE,05/24/14,05/25/14,TRAVEL SUBSISTENCE,62.35,2014,AP,Accounts payable,E0161810,CITIBANK GOV CARD SERVICE
,OFFICE OF THE MINORITY LEADER,2014Q2,TRAVEL,06-10,CITIBANK GOV CARD SERVICE,04/30/14,05/25/14,TRAVEL SUBSISTENCE,"1,322.48",2014,AP,Accounts payable,E0162249,CITIBANK GOV CARD SERVICE
,OFFICE OF THE MINORITY LEADER,2014Q2,TRAVEL,06-10,"MCCLELLAND, ETHAN L",05/22/14,05/22/14,TAXI/PARKING/TOLLS,18.99,2014,AP,Accounts payable,E0162264,"MCCLELLAND, ETHAN L"
,OFFICE OF THE MINORITY LEADER,2014Q2,TRAVEL,06-11,CITIBANK GOV CARD SERVICE,03/27/14,04/01/14,TRAVEL SUBSISTENCE,"1,053.46",2014,AP,Accounts payable,E0162270,CITIBANK GOV CARD SERVICE
,OFFICE OF THE MINORITY LEADER,2014Q2,TRAVEL,06-26,"SMITH, KELSEY L",05/14/14,06/23/14,TAXI/PARKING/TOLLS,116.63,2014,AP,Accounts payable,E0168253,"SMITH, KELSEY L"
,OFFICE OF THE MINORITY LEADER,2014Q2,TRAVEL,06-26,"SMITH, KELSEY L",06/12/14,06/14/14,TRAVEL SUBSISTENCE,501.24,2014,AP,Accounts payable,E0168253,"SMITH, KELSEY L"
,OFFICE OF THE MINORITY LEADER,2014Q2,TRAVEL,06-26,"MCCLELLAND, ETHAN L",06/10/14,06/10/14,TAXI/PARKING/TOLLS,11.98,2014,AP,Accounts payable,E0168262,"MCCLELLAND, ETHAN L"
,OFFICE OF THE MINORITY LEADER,2014Q2,TRAVEL,06-26,"MINOR, JAIME N",06/16/14,06/16/14,TAXI/PARKING/TOLLS,12.08,2014,AP,Accounts payable,E0168269,"MINOR, JAIME N"
,OFFICE OF THE MINORITY LEADER,2014Q2,TRAVEL,06-26,"MINOR, JAIME N",06/13/14,06/13/14,TRAVEL SUBSISTENCE,85.57,2014,AP,Accounts payable,E0168269,"MINOR, JAIME N"
,OFFICE OF THE MINORITY LEADER,2014Q2,"RENT, COMMUNICATION, UTILITIES",04-07,FEDEX,03/17/14,03/18/14,POSTAGE / COURIER / BOX RENTAL,10.99,2014,AP,Accounts payable,E0137912,FEDEX
,OFFICE OF THE MINORITY LEADER,2014Q2,"RENT, COMMUNICATION, UTILITIES",04-07,FEDEX,02/28/14,02/28/14,POSTAGE / COURIER / BOX RENTAL,5.70,2014,AP,Accounts payable,E0137914,FEDEX
,OFFICE OF THE MINORITY LEADER,2014Q2,"RENT, COMMUNICATION, UTILITIES",04-17,FEDEX,03/27/14,03/28/14,POSTAGE / COURIER / BOX RENTAL,5.70,2014,AP,Accounts payable,E0142363,FEDEX
,OFFICE OF THE MINORITY LEADER,2014Q2,"RENT, COMMUNICATION, UTILITIES",04-21,CITI PCARD-TIV TIVO SERVICE,03/01/14,03/28/14,RECORDING (OUTSIDE),37.90,2014,AP,Accounts payable,00726853,CITI PCARD-TIV TIVO SERVICE
,OFFICE OF THE MINORITY LEADER,2014Q2,"RENT, COMMUNICATION, UTILITIES",04-29,"KAPLAN, EMMA L",03/15/14,03/15/14,POSTAGE / COURIER / BOX RENTAL,39.50,2014,AP,Accounts payable,E0145445,"KAPLAN, EMMA L"
,OFFICE OF THE MINORITY LEADER,2014Q2,"RENT, COMMUNICATION, UTILITIES",05-05,FEDEX,04/10/14,04/10/14,POSTAGE / COURIER / BOX RENTAL,77.43,2014,AP,Accounts payable,E0147754,FEDEX
,OFFICE OF THE MINORITY LEADER,2014Q2,"RENT, COMMUNICATION, UTILITIES",05-20,CITI PCARD-TIV TIVO SERVICE,03/29/14,04/28/14,RECORDING (OUTSIDE),48.42,2014,AP,Accounts payable,00732083,CITI PCARD-TIV TIVO SERVICE
,OFFICE OF THE MINORITY LEADER,2014Q2,"RENT, COMMUNICATION, UTILITIES",05-22,FEDEX,04/23/14,04/23/14,POSTAGE / COURIER / BOX RENTAL,77.43,2014,AP,Accounts payable,E0155792,FEDEX
,OFFICE OF THE MINORITY LEADER,2014Q2,"RENT, COMMUNICATION, UTILITIES",06-19,CITI PCARD-TIV TIVO SERVICE,04/29/14,05/28/14,RECORDING (OUTSIDE),48.42,2014,AP,Accounts payable,00737272,CITI PCARD-TIV TIVO SERVICE
,OFFICE OF THE MINORITY LEADER,2014Q2,"RENT, COMMUNICATION, UTILITIES",06-26,FEDEX,05/27/14,05/27/14,POSTAGE / COURIER / BOX RENTAL,10.56,2014,AP,Accounts payable,E0167996,FEDEX
,OFFICE OF THE MINORITY LEADER,2014Q2,PRINTING AND REPRODUCTION,04-25,"",04/01/14,04/30/14,PHOTOGRAPHIC (TRANSFER),546.20,2014,GL,General ledger,PIX0038591,""
,OFFICE OF THE MINORITY LEADER,2014Q2,PRINTING AND REPRODUCTION,05-27,"",05/01/14,05/31/14,PHOTOGRAPHIC (TRANSFER),940.40,2014,GL,General ledger,PIX0039306,""
,OFFICE OF THE MINORITY LEADER,2014Q2,PRINTING AND REPRODUCTION,06-24,"",06/01/14,06/30/14,PHOTOGRAPHIC (TRANSFER),265.70,2014,GL,General ledger,PIX0040022,""
,OFFICE OF THE MINORITY LEADER,2014Q2,OTHER SERVICES,04-07,BERNARD RAIMO,03/01/14,03/31/14,CONSULTANT CONTRACT SERVICE,"7,628.00",2014,AP,Accounts payable,E0137882,BERNARD RAIMO
,OFFICE OF THE MINORITY LEADER,2014Q2,OTHER SERVICES,05-05,BERNARD RAIMO,04/01/14,04/30/14,CONSULTANT CONTRACT SERVICE,"7,628.00",2014,AP,Accounts payable,E0147734,BERNARD RAIMO
,OFFICE OF THE MINORITY LEADER,2014Q2,OTHER SERVICES,05-30,BERNARD RAIMO,05/01/14,05/31/14,CONSULTANT CONTRACT SERVICE,"7,628.00",2014,AP,Accounts payable,E0158270,BERNARD RAIMO
,OFFICE OF THE MINORITY LEADER,2014Q2,SUPPLIES AND MATERIALS,04-07,CAPITOLHOST,03/05/14,03/05/14,FOOD & BEVERAGE,33.00,2014,AP,Accounts payable,E0137905,CAPITOLHOST
,OFFICE OF THE MINORITY LEADER,2014Q2,SUPPLIES AND MATERIALS,04-07,HELEN OLIVIA FLOWERS,03/04/14,03/04/14,HABITATION EXPENSE,249.00,2014,AP,Accounts payable,E0137906,HELEN OLIVIA FLOWERS
,OFFICE OF THE MINORITY LEADER,2014Q2,SUPPLIES AND MATERIALS,04-07,CAPITOLHOST,03/05/14,03/05/14,FOOD & BEVERAGE,33.00,2014,AP,Accounts payable,E0137907,CAPITOLHOST
,OFFICE OF THE MINORITY LEADER,2014Q2,SUPPLIES AND MATERIALS,04-07,HELEN OLIVIA FLOWERS,02/03/14,02/03/14,HABITATION EXPENSE,249.00,2014,AP,Accounts payable,E0137908,HELEN OLIVIA FLOWERS
,OFFICE OF THE MINORITY LEADER,2014Q2,SUPPLIES AND MATERIALS,04-07,HELEN OLIVIA FLOWERS,02/25/14,02/25/14,HABITATION EXPENSE,249.00,2014,AP,Accounts payable,E0137910,HELEN OLIVIA FLOWERS
,OFFICE OF THE MINORITY LEADER,2014Q2,SUPPLIES AND MATERIALS,04-07,HELEN OLIVIA FLOWERS,03/11/14,03/11/14,HABITATION EXPENSE,249.00,2014,AP,Accounts payable,E0137911,HELEN OLIVIA FLOWERS
,OFFICE OF THE MINORITY LEADER,2014Q2,SUPPLIES AND MATERIALS,04-07,HELEN OLIVIA FLOWERS,03/24/14,03/24/14,HABITATION EXPENSE,249.00,2014,AP,Accounts payable,E0137915,HELEN OLIVIA FLOWERS
,OFFICE OF THE MINORITY LEADER,2014Q2,SUPPLIES AND MATERIALS,04-07,CAPITOLHOST,03/11/14,03/11/14,FOOD & BEVERAGE,66.00,2014,AP,Accounts payable,E0137916,CAPITOLHOST
,OFFICE OF THE MINORITY LEADER,2014Q2,SUPPLIES AND MATERIALS,04-07,CAPITOLHOST,03/05/14,03/05/14,FOOD & BEVERAGE,33.00,2014,AP,Accounts payable,E0137918,CAPITOLHOST
,OFFICE OF THE MINORITY LEADER,2014Q2,SUPPLIES AND MATERIALS,04-07,HELEN OLIVIA FLOWERS,02/10/14,02/10/14,HABITATION EXPENSE,249.00,2014,AP,Accounts payable,E0137921,HELEN OLIVIA FLOWERS
,OFFICE OF THE MINORITY LEADER,2014Q2,SUPPLIES AND MATERIALS,04-07,CRYSTAL SPRINGS,03/01/14,03/31/14,FOOD & BEVERAGE,711.79,2014,AP,Accounts payable,E0137939,CRYSTAL SPRINGS
,OFFICE OF THE MINORITY LEADER,2014Q2,SUPPLIES AND MATERIALS,04-17,CAPITOLHOST,04/09/14,04/09/14,FOOD & BEVERAGE,33.00,2014,AP,Accounts payable,E0142348,CAPITOLHOST
,OFFICE OF THE MINORITY LEADER,2014Q2,SUPPLIES AND MATERIALS,04-17,TV EYES INC,04/01/14,01/02/15,PUBLICATIONS/REFERENCE MAT'L,900.00,2014,AP,Accounts payable,E0142349,TV EYES INC
,OFFICE OF THE MINORITY LEADER,2014Q2,SUPPLIES AND MATERIALS,04-17,HAGUE QUALITY WATER OF MD INC,04/01/14,04/30/14,WATER,378.00,2014,AP,Accounts payable,E0142361,HAGUE QUALITY WATER OF MD INC
,OFFICE OF THE MINORITY LEADER,2014Q2,SUPPLIES AND MATERIALS,04-21,CITI PCARD-C-SPAN,03/01/14,03/28/14,PUBLICATIONS/REFERENCE MAT'L,9.98,2014,AP,Accounts payable,00726853,CITI PCARD-C-SPAN
,OFFICE OF THE MINORITY LEADER,2014Q2,SUPPLIES AND MATERIALS,04-21,CITI PCARD-CVS PHARMACY,03/01/14,03/28/14,FOOD & BEVERAGE,119.88,2014,AP,Accounts payable,00726853,CITI PCARD-CVS PHARMACY
,OFFICE OF THE MINORITY LEADER,2014Q2,SUPPLIES AND MATERIALS,04-21,CITI PCARD-D J WALL-ST-JOURNAL,03/01/14,03/28/14,PUBLICATIONS/REFERENCE MAT'L,291.74,2014,AP,Accounts payable,00726853,CITI PCARD-D J WALL-ST-JOURNAL
,OFFICE OF THE MINORITY LEADER,2014Q2,SUPPLIES AND MATERIALS,04-21,CITI PCARD-DUNKIN,03/01/14,03/28/14,FOOD & BEVERAGE,46.26,2014,AP,Accounts payable,00726853,CITI PCARD-DUNKIN
,OFFICE OF THE MINORITY LEADER,2014Q2,SUPPLIES AND MATERIALS,04-21,CITI PCARD-FTP FINANCIAL TIMES IN,03/01/14,03/28/14,PUBLICATIONS/REFERENCE MAT'L,2.64,2014,AP,Accounts payable,00726853,CITI PCARD-FTP FINANCIAL TIMES IN
,OFFICE OF THE MINORITY LEADER,2014Q2,SUPPLIES AND MATERIALS,04-21,CITI PCARD-HARRIS TEETER,03/01/14,03/28/14,FOOD & BEVERAGE,52.69,2014,AP,Accounts payable,00726853,CITI PCARD-HARRIS TEETER
,OFFICE OF THE MINORITY LEADER,2014Q2,SUPPLIES AND MATERIALS,04-21,CITI PCARD-SQ THE SWEET LOBBY,03/01/14,03/28/14,FOOD & BEVERAGE,93.55,2014,AP,Accounts payable,00726853,CITI PCARD-SQ THE SWEET LOBBY
,OFFICE OF THE MINORITY LEADER,2014Q2,SUPPLIES AND MATERIALS,04-21,CITI PCARD-TARGET,03/01/14,03/28/14,FOOD & BEVERAGE,335.53,2014,AP,Accounts payable,00726853,CITI PCARD-TARGET
,OFFICE OF THE MINORITY LEADER,2014Q2,SUPPLIES AND MATERIALS,04-21,CITI PCARD-WHOLEFDS PST,03/01/14,03/28/14,FOOD & BEVERAGE,397.85,2014,AP,Accounts payable,00726853,CITI PCARD-WHOLEFDS PST
,OFFICE OF THE MINORITY LEADER,2014Q2,SUPPLIES AND MATERIALS,04-29,CAPITOL HOST,04/01/14,04/01/14,FOOD & BEVERAGE,66.00,2014,AP,Accounts payable,E0145447,CAPITOL HOST
,OFFICE OF THE MINORITY LEADER,2014Q2,SUPPLIES AND MATERIALS,04-29,OCCASIONS CATERERS,03/25/14,03/25/14,FOOD & BEVERAGE,"5,075.00",2014,AP,Accounts payable,E0145455,OCCASIONS CATERERS
,OFFICE OF THE MINORITY LEADER,2014Q2,SUPPLIES AND MATERIALS,05-05,HELEN OLIVIA FLOWERS,04/01/14,04/01/14,HABITATION EXPENSE,249.00,2014,AP,Accounts payable,00727430,HELEN OLIVIA FLOWERS
,OFFICE OF THE MINORITY LEADER,2014Q2,SUPPLIES AND MATERIALS,05-05,CAPITOLHOST,04/02/14,04/02/14,FOOD & BEVERAGE,33.00,2014,AP,Accounts payable,00727432,CAPITOLHOST
,OFFICE OF THE MINORITY LEADER,2014Q2,SUPPLIES AND MATERIALS,05-05,HELEN OLIVIA FLOWERS,04/07/14,04/07/14,HABITATION EXPENSE,249.00,2014,AP,Accounts payable,E0147737,HELEN OLIVIA FLOWERS
,OFFICE OF THE MINORITY LEADER,2014Q2,SUPPLIES AND MATERIALS,05-05,CRYSTAL SPRINGS,04/01/14,04/30/14,FOOD & BEVERAGE,300.32,2014,AP,Accounts payable,E0147748,CRYSTAL SPRINGS
,OFFICE OF THE MINORITY LEADER,2014Q2,SUPPLIES AND MATERIALS,05-05,CISION US INC,04/26/14,04/26/15,PUBLICATIONS/REFERENCE MAT'L,"5,760.00",2014,AP,Accounts payable,E0147752,CISION US INC
,OFFICE OF THE MINORITY LEADER,2014Q2,SUPPLIES AND MATERIALS,05-05,HELEN OLIVIA FLOWERS,04/28/14,04/28/14,HABITATION EXPENSE,249.00,2014,AP,Accounts payable,E0147760,HELEN OLIVIA FLOWERS
,OFFICE OF THE MINORITY LEADER,2014Q2,SUPPLIES AND MATERIALS,05-07,CAPITOLHOST,04/09/14,04/09/14,FOOD & BEVERAGE,33.00,2014,AP,Accounts payable,E0149062,CAPITOLHOST
,OFFICE OF THE MINORITY LEADER,2014Q2,SUPPLIES AND MATERIALS,05-07,OCCASIONS CATERERS,04/30/14,04/30/14,FOOD & BEVERAGE,790.75,2014,AP,Accounts payable,E0149068,OCCASIONS CATERERS
,OFFICE OF THE MINORITY LEADER,2014Q2,SUPPLIES AND MATERIALS,05-07,CAPITOLHOST,04/04/14,04/04/14,FOOD & BEVERAGE,33.00,2014,AP,Accounts payable,E0149071,CAPITOLHOST
,OFFICE OF THE MINORITY LEADER,2014Q2,SUPPLIES AND MATERIALS,05-08,CAPITOL ADVANTAGE PUBLISHING,05/06/14,05/06/14,PUBLICATIONS/REFERENCE MAT'L,567.00,2014,AP,Accounts payable,00727687,CAPITOL ADVANTAGE PUBLISHING
,OFFICE OF THE MINORITY LEADER,2014Q2,SUPPLIES AND MATERIALS,05-20,CITI PCARD-CVS PHARMACY,03/29/14,04/28/14,FOOD & BEVERAGE,48.11,2014,AP,Accounts payable,00732083,CITI PCARD-CVS PHARMACY
,OFFICE OF THE MINORITY LEADER,2014Q2,SUPPLIES AND MATERIALS,05-20,CITI PCARD-DUNKIN,03/29/14,04/28/14,FOOD & BEVERAGE,54.48,2014,AP,Accounts payable,00732083,CITI PCARD-DUNKIN
,OFFICE OF THE MINORITY LEADER,2014Q2,SUPPLIES AND MATERIALS,05-20,CITI PCARD-GIANT LLC,03/29/14,04/28/14,FOOD & BEVERAGE,28.71,2014,AP,Accounts payable,00732083,CITI PCARD-GIANT LLC
,OFFICE OF THE MINORITY LEADER,2014Q2,SUPPLIES AND MATERIALS,05-20,CITI PCARD-HARRIS TEETER,03/29/14,04/28/14,FOOD & BEVERAGE,138.00,2014,AP,Accounts payable,00732083,CITI PCARD-HARRIS TEETER
,OFFICE OF THE MINORITY LEADER,2014Q2,SUPPLIES AND MATERIALS,05-20,CITI PCARD-PRET MANAGER,03/29/14,04/28/14,FOOD & BEVERAGE,131.22,2014,AP,Accounts payable,00732083,CITI PCARD-PRET MANAGER
,OFFICE OF THE MINORITY LEADER,2014Q2,SUPPLIES AND MATERIALS,05-20,CITI PCARD-TARGET,03/29/14,04/28/14,FOOD & BEVERAGE,402.75,2014,AP,Accounts payable,00732083,CITI PCARD-TARGET
,OFFICE OF THE MINORITY LEADER,2014Q2,SUPPLIES AND MATERIALS,05-22,CAPITOLHOST,04/23/14,04/23/14,FOOD & BEVERAGE,33.00,2014,AP,Accounts payable,E0155785,CAPITOLHOST
,OFFICE OF THE MINORITY LEADER,2014Q2,SUPPLIES AND MATERIALS,05-22,CAPITOLHOST,04/30/14,04/30/14,FOOD & BEVERAGE,33.00,2014,AP,Accounts payable,E0155789,CAPITOLHOST
,OFFICE OF THE MINORITY LEADER,2014Q2,SUPPLIES AND MATERIALS,05-22,HAGUE QUALITY WATER OF MD INC,05/01/14,05/31/14,WATER,378.00,2014,AP,Accounts payable,E0155796,HAGUE QUALITY WATER OF MD INC
,OFFICE OF THE MINORITY LEADER,2014Q2,SUPPLIES AND MATERIALS,05-23,CAPITOLHOST,04/30/14,04/30/14,FOOD & BEVERAGE,82.50,2014,AP,Accounts payable,E0155799,CAPITOLHOST
,OFFICE OF THE MINORITY LEADER,2014Q2,SUPPLIES AND MATERIALS,05-30,HELEN OLIVIA FLOWERS,05/28/14,05/28/14,HABITATION EXPENSE,249.00,2014,AP,Accounts payable,E0158261,HELEN OLIVIA FLOWERS
,OFFICE OF THE MINORITY LEADER,2014Q2,SUPPLIES AND MATERIALS,05-30,HELEN OLIVIA FLOWERS,05/19/14,05/19/14,HABITATION EXPENSE,249.00,2014,AP,Accounts payable,E0158268,HELEN OLIVIA FLOWERS
,OFFICE OF THE MINORITY LEADER,2014Q2,SUPPLIES AND MATERIALS,05-30,HELEN OLIVIA FLOWERS,05/06/14,05/06/14,HABITATION EXPENSE,249.00,2014,AP,Accounts payable,E0158273,HELEN OLIVIA FLOWERS
,OFFICE OF THE MINORITY LEADER,2014Q2,SUPPLIES AND MATERIALS,05-30,SOUTHWEST DISTRIBUTION INC,07/01/14,09/30/14,PUBLICATIONS/REFERENCE MAT'L,"3,526.10",2014,AP,Accounts payable,E0158274,SOUTHWEST DISTRIBUTION INC
,OFFICE OF THE MINORITY LEADER,2014Q2,SUPPLIES AND MATERIALS,06-09,CAPITOL HOST,02/26/14,02/26/14,FOOD & BEVERAGE,33.00,2014,AP,Accounts payable,E0160913,CAPITOL HOST
,OFFICE OF THE MINORITY LEADER,2014Q2,SUPPLIES AND MATERIALS,06-10,OCCASIONS CATERERS,05/21/14,05/21/14,FOOD & BEVERAGE,"4,080.00",2014,AP,Accounts payable,E0161812,OCCASIONS CATERERS
,OFFICE OF THE MINORITY LEADER,2014Q2,SUPPLIES AND MATERIALS,06-19,CITI PCARD-DUNKIN,04/29/14,05/28/14,FOOD & BEVERAGE,53.24,2014,AP,Accounts payable,00737272,CITI PCARD-DUNKIN
,OFFICE OF THE MINORITY LEADER,2014Q2,SUPPLIES AND MATERIALS,06-19,CITI PCARD-FIREHOOK - CAPITOL HIL,04/29/14,05/28/14,FOOD & BEVERAGE,90.04,2014,AP,Accounts payable,00737272,CITI PCARD-FIREHOOK - CAPITOL HIL
,OFFICE OF THE MINORITY LEADER,2014Q2,SUPPLIES AND MATERIALS,06-19,CITI PCARD-WHOLEFDS PST,04/29/14,05/28/14,FOOD & BEVERAGE,233.66,2014,AP,Accounts payable,00737272,CITI PCARD-WHOLEFDS PST
,OFFICE OF THE MINORITY LEADER,2014Q2,SUPPLIES AND MATERIALS,06-19,CITI PCARD-WHOLEFDS PST,04/29/14,05/28/14,OFFICE SUPPLIES (OUTSIDE),27.47,2014,AP,Accounts payable,00737272,CITI PCARD-WHOLEFDS PST
,OFFICE OF THE MINORITY LEADER,2014Q2,SUPPLIES AND MATERIALS,06-26,HELEN OLIVIA FLOWERS,06/23/14,06/23/14,HABITATION EXPENSE,249.00,2014,AP,Accounts payable,E0167997,HELEN OLIVIA FLOWERS
,OFFICE OF THE MINORITY LEADER,2014Q2,SUPPLIES AND MATERIALS,06-26,CAPITOLHOST,06/11/14,06/11/14,FOOD & BEVERAGE,82.50,2014,AP,Accounts payable,E0168004,CAPITOLHOST
,OFFICE OF THE MINORITY LEADER,2014Q2,SUPPLIES AND MATERIALS,06-26,HELEN OLIVIA FLOWERS,06/17/14,06/17/14,HABITATION EXPENSE,249.00,2014,AP,Accounts payable,E0168010,HELEN OLIVIA FLOWERS
,OFFICE OF THE MINORITY LEADER,2014Q2,SUPPLIES AND MATERIALS,06-26,HELEN OLIVIA FLOWERS,06/09/14,06/09/14,HABITATION EXPENSE,249.00,2014,AP,Accounts payable,E0168015,HELEN OLIVIA FLOWERS
,OFFICE OF THE MINORITY LEADER,2014Q2,SUPPLIES AND MATERIALS,06-26,HAGUE QUALITY WATER OF MD INC,06/01/14,06/30/14,WATER,378.00,2014,AP,Accounts payable,E0168031,HAGUE QUALITY WATER OF MD INC
,OFFICE OF THE MINORITY LEADER,2014Q2,SUPPLIES AND MATERIALS,06-26,CAPITOLHOST,06/11/14,06/11/14,FOOD & BEVERAGE,33.00,2014,AP,Accounts payable,E0168046,CAPITOLHOST
,OFFICE OF THE MINORITY LEADER,2014Q2,SUPPLIES AND MATERIALS,06-26,"KAPLAN, EMMA L",06/11/14,06/11/14,FOOD & BEVERAGE,80.77,2014,AP,Accounts payable,E0168059,"KAPLAN, EMMA L"
,OFFICE OF THE MINORITY LEADER,2014Q2,SUPPLIES AND MATERIALS,06-27,CAPITOLHOST,06/09/14,06/09/14,FOOD & BEVERAGE,30.00,2014,AP,Accounts payable,00737651,CAPITOLHOST
,OFFICE OF THE MINORITY LEADER,2014Q2,PERSONNEL COMPENSATION,"","BERRET,EMILY C",01/01/14,01/02/14,SPECIAL ASST TO THE LEADER,200.00,2013,"","","","BERRET,EMILY C"
,OFFICE OF THE MINORITY LEADER,2014Q2,PERSONNEL COMPENSATION,"","SMITH,KELSEY L",01/01/14,01/02/14,DEPUTY DIRECTOR OF SCHEDULING,336.11,2013,"","","","SMITH,KELSEY L"
,OFFICE OF THE MAJORITY WHIP,2014Q2,PERSONNEL COMPENSATION,"","BERRY,TIMOTHY J",04/01/14,06/30/14,CHIEF OF STAFF,"43,125.00",2014,"","","","BERRY,TIMOTHY J"
,OFFICE OF THE MAJORITY WHIP,2014Q2,PERSONNEL COMPENSATION,"","BILLMAN,JEFFREY R",04/01/14,06/30/14,SPEC ASST TO CHIEF DEPUTY WHIP,"6,000.00",2014,"","","","BILLMAN,JEFFREY R"
,OFFICE OF THE MAJORITY WHIP,2014Q2,PERSONNEL COMPENSATION,"","BUCHANAN,NATALIE L",04/01/14,06/30/14,DIR OF MEMBER SERVICES,"23,500.00",2014,"","","","BUCHANAN,NATALIE L"
,OFFICE OF THE MAJORITY WHIP,2014Q2,PERSONNEL COMPENSATION,"","CAREY,BRITTANY M",04/01/14,06/30/14,COALITIONS ASST/ASST. TO COS,"10,500.00",2014,"","","","CAREY,BRITTANY M"
,OFFICE OF THE MAJORITY WHIP,2014Q2,PERSONNEL COMPENSATION,"","DIXON, KELLY A",04/01/14,06/30/14,DEPUTY DIRECTOR OF FLOOR OPERA,"25,500.00",2014,"","","","DIXON, KELLY A"
,OFFICE OF THE MAJORITY WHIP,2014Q2,PERSONNEL COMPENSATION,"","FONG, VINCENT",05/01/14,06/30/14,SHARED EMPLOYEE,"9,000.00",2014,"","","","FONG, VINCENT"
,OFFICE OF THE MAJORITY WHIP,2014Q2,PERSONNEL COMPENSATION,"","FRANC,MICHAEL G",04/01/14,06/30/14,POLICY DIRECTOR AND COUNSEL,"24,750.00",2014,"","","","FRANC,MICHAEL G"
,OFFICE OF THE MAJORITY WHIP,2014Q2,PERSONNEL COMPENSATION,"","GLANCEY,TESSICA M",04/01/14,06/30/14,DIGITAL COORDINATOR,"12,500.00",2014,"","","","GLANCEY,TESSICA M"
,OFFICE OF THE MAJORITY WHIP,2014Q2,PERSONNEL COMPENSATION,"","HENEHAN, EMILY A",04/01/14,06/30/14,POLICY ADVISOR,"22,500.00",2014,"","","","HENEHAN, EMILY A"
,OFFICE OF THE MAJORITY WHIP,2014Q2,PERSONNEL COMPENSATION,"","HOLLEY,DAVID N",04/16/14,06/30/14,SERVER MIGRATION SPEC,"7,500.00",2014,"","","","HOLLEY,DAVID N"
,OFFICE OF THE MAJORITY WHIP,2014Q2,PERSONNEL COMPENSATION,"","HOWARD,BENJAMIN R",04/01/14,06/30/14,FLOOR ASSISTANT,"18,000.00",2014,"","","","HOWARD,BENJAMIN R"
,OFFICE OF THE MAJORITY WHIP,2014Q2,PERSONNEL COMPENSATION,"","LEGANSKI,JOHN G",04/01/14,06/30/14,FLOOR ASSISTANT,"9,000.00",2014,"","","","LEGANSKI,JOHN G"
,OFFICE OF THE MAJORITY WHIP,2014Q2,PERSONNEL COMPENSATION,"","LONG,MICHAEL P",04/01/14,06/30/14,PRESS SECRETARY,"25,500.00",2014,"","","","LONG,MICHAEL P"
,OFFICE OF THE MAJORITY WHIP,2014Q2,PERSONNEL COMPENSATION,"","MCCLELLAND, WESLEY R",04/01/14,06/30/14,POLICY ADVISOR,"22,500.00",2014,"","","","MCCLELLAND, WESLEY R"
,OFFICE OF THE MAJORITY WHIP,2014Q2,PERSONNEL COMPENSATION,"","MIN, JAMES B",04/01/14,06/30/14,DEPUTY CHIEF OF STAFF,"21,000.00",2014,"","","","MIN, JAMES B"
,OFFICE OF THE MAJORITY WHIP,2014Q2,PERSONNEL COMPENSATION,"","MORK,DAVID I",04/01/14,06/30/14,CH OF STAFF TO CHIEF DEP WHIP,"16,500.00",2014,"","","","MORK,DAVID I"
,OFFICE OF THE MAJORITY WHIP,2014Q2,PERSONNEL COMPENSATION,"","SPARKS, MATTHEW E",04/01/14,06/30/14,DEPUTY PRESS SECRETARY,"14,000.00",2014,"","","","SPARKS, MATTHEW E"
,OFFICE OF THE MAJORITY WHIP,2014Q2,PERSONNEL COMPENSATION,"","STIPICEVIC, JOHN A",04/01/14,06/30/14,DIRECTOR OF FLOOR OPERATIONS,"37,000.00",2014,"","","","STIPICEVIC, JOHN A"
,OFFICE OF THE MAJORITY WHIP,2014Q2,PERSONNEL COMPENSATION,"","STIPICEVIC, KRISTIN",04/01/14,06/30/14,EXECUTIVE ASSISTANT,"19,500.00",2014,"","","","STIPICEVIC, KRISTIN"
,OFFICE OF THE MAJORITY WHIP,2014Q2,PERSONNEL COMPENSATION,"","THIELE,AARON J",04/01/14,06/30/14,SENIOR STAFF ASSISTANT,"9,000.00",2014,"","","","THIELE,AARON J"
,OFFICE OF THE MAJORITY WHIP,2014Q2,PERSONNEL COMPENSATION,"","TORRES,ALEC C",04/16/14,06/30/14,COMM AIDE AND SPEECHWRITER,"10,500.00",2014,"","","","TORRES,ALEC C"
,OFFICE OF THE MAJORITY WHIP,2014Q2,PERSONNEL COMPENSATION,"","VINNICOMBE,CAROLYN E",04/01/14,06/30/14,STAFF ASSISTANT,"7,500.00",2014,"","","","VINNICOMBE,CAROLYN E"
,OFFICE OF THE MAJORITY WHIP,2014Q2,PERSONNEL COMPENSATION,"","WORTH,BRIAN A",04/01/14,05/31/14,DIRECTOR OF COALITIONS,"6,750.00",2014,"","","","WORTH,BRIAN A"
,OFFICE OF THE MAJORITY WHIP,2014Q2,PERSONNEL COMPENSATION,"","WORTH,BRIAN A",05/01/14,05/31/14,DIRECTOR OF COALITIONS (OTHER COMPENSATION),"6,375.00",2014,"","","","WORTH,BRIAN A"
,OFFICE OF THE MAJORITY WHIP,2014Q2,TRAVEL,06-12,ARCHITECT OF THE CAPITOL,01/01/14,03/31/14,GASOLINE,"1,032.13",2014,AP,Accounts payable,E0163038,ARCHITECT OF THE CAPITOL
,OFFICE OF THE MAJORITY WHIP,2014Q2,TRAVEL,06-12,"MIN, JAMES B",06/09/14,06/09/14,TAXI/PARKING/TOLLS,20.00,2014,AP,Accounts payable,E0163039,"MIN, JAMES B"
,OFFICE OF THE MAJORITY WHIP,2014Q2,TRAVEL,06-25,"SPARKS, MATTHEW E",06/10/14,06/10/14,TRAVEL SUBSISTENCE,461.00,2014,AP,Accounts payable,E0167887,"SPARKS, MATTHEW E"
,OFFICE OF THE MAJORITY WHIP,2014Q2,PRINTING AND REPRODUCTION,04-25,"",04/01/14,04/30/14,PHOTOGRAPHIC (TRANSFER),6.40,2014,GL,General ledger,PIX0038591,""
,OFFICE OF THE MAJORITY WHIP,2014Q2,PRINTING AND REPRODUCTION,05-07,SHARP ELECTRONICS CORPORATION,03/01/14,04/01/14,PRINTING & REPRODUCTION,140.10,2014,AP,Accounts payable,E0149083,SHARP ELECTRONICS CORPORATION
,OFFICE OF THE MAJORITY WHIP,2014Q2,PRINTING AND REPRODUCTION,05-27,"",05/01/14,05/31/14,PHOTOGRAPHIC (TRANSFER),12.80,2014,GL,General ledger,PIX0039306,""
,OFFICE OF THE MAJORITY WHIP,2014Q2,PRINTING AND REPRODUCTION,06-24,"",06/01/14,06/30/14,PHOTOGRAPHIC (TRANSFER),19.20,2014,GL,General ledger,PIX0040022,""
,OFFICE OF THE MAJORITY WHIP,2014Q2,OTHER SERVICES,04-21,CITI PCARD-LYNDA.COM,03/01/14,03/28/14,TRAINING,250.00,2014,AP,Accounts payable,00726853,CITI PCARD-LYNDA.COM
,OFFICE OF THE MAJORITY WHIP,2014Q2,SUPPLIES AND MATERIALS,04-08,"MIN, JAMES B",03/28/14,03/28/14,FOOD & BEVERAGE,433.54,2014,AP,Accounts payable,E0138545,"MIN, JAMES B"
,OFFICE OF THE MAJORITY WHIP,2014Q2,SUPPLIES AND MATERIALS,04-09,"MIN, JAMES B",04/03/14,04/03/14,OFFICE SUPPLIES (OUTSIDE),"2,633.04",2014,AP,Accounts payable,E0138549,"MIN, JAMES B"
,OFFICE OF THE MAJORITY WHIP,2014Q2,SUPPLIES AND MATERIALS,04-21,CITI PCARD-CORNER BAKERY,03/01/14,03/28/14,FOOD & BEVERAGE,406.40,2014,AP,Accounts payable,00726853,CITI PCARD-CORNER BAKERY
,OFFICE OF THE MAJORITY WHIP,2014Q2,SUPPLIES AND MATERIALS,04-21,CITI PCARD-D J WALL-ST-JOURNAL,03/01/14,03/28/14,PUBLICATIONS/REFERENCE MAT'L,24.31,2014,AP,Accounts payable,00726853,CITI PCARD-D J WALL-ST-JOURNAL
,OFFICE OF THE MAJORITY WHIP,2014Q2,SUPPLIES AND MATERIALS,04-21,CITI PCARD-FIRST CHOICE - JOE RAG,03/01/14,03/28/14,FOOD & BEVERAGE,818.77,2014,AP,Accounts payable,00726853,CITI PCARD-FIRST CHOICE - JOE RAG
,OFFICE OF THE MAJORITY WHIP,2014Q2,SUPPLIES AND MATERIALS,04-21,CITI PCARD-LA TIMES SUBSCRIPTION,03/01/14,03/28/14,PUBLICATIONS/REFERENCE MAT'L,15.96,2014,AP,Accounts payable,00726853,CITI PCARD-LA TIMES SUBSCRIPTION
,OFFICE OF THE MAJORITY WHIP,2014Q2,SUPPLIES AND MATERIALS,04-21,CITI PCARD-NEW YORK TIMES DIGITAL,03/01/14,03/28/14,PUBLICATIONS/REFERENCE MAT'L,37.10,2014,AP,Accounts payable,00726853,CITI PCARD-NEW YORK TIMES DIGITAL
,OFFICE OF THE MAJORITY WHIP,2014Q2,SUPPLIES AND MATERIALS,05-07,DEER PARK WATER,02/27/14,03/26/14,WATER,342.64,2014,AP,Accounts payable,E0148408,DEER PARK WATER
,OFFICE OF THE MAJORITY WHIP,2014Q2,SUPPLIES AND MATERIALS,05-09,DEER PARK WATER,03/27/14,04/26/14,WATER,237.80,2014,AP,Accounts payable,E0150262,DEER PARK WATER
,OFFICE OF THE MAJORITY WHIP,2014Q2,SUPPLIES AND MATERIALS,05-09,"MIN, JAMES B",05/08/14,05/08/14,FOOD & BEVERAGE,17.58,2014,AP,Accounts payable,E0150265,"MIN, JAMES B"
,OFFICE OF THE MAJORITY WHIP,2014Q2,SUPPLIES AND MATERIALS,05-20,CITI PCARD-CORNER BAKERY,03/29/14,04/28/14,FOOD & BEVERAGE,139.70,2014,AP,Accounts payable,00732083,CITI PCARD-CORNER BAKERY
,OFFICE OF THE MAJORITY WHIP,2014Q2,SUPPLIES AND MATERIALS,05-20,CITI PCARD-D J WALL-ST-JOURNAL,03/29/14,04/28/14,PUBLICATIONS/REFERENCE MAT'L,24.31,2014,AP,Accounts payable,00732083,CITI PCARD-D J WALL-ST-JOURNAL
,OFFICE OF THE MAJORITY WHIP,2014Q2,SUPPLIES AND MATERIALS,05-20,CITI PCARD-FIRST CHOICE - JOE RAG,03/29/14,04/28/14,FOOD & BEVERAGE,856.55,2014,AP,Accounts payable,00732083,CITI PCARD-FIRST CHOICE - JOE RAG
,OFFICE OF THE MAJORITY WHIP,2014Q2,SUPPLIES AND MATERIALS,05-20,CITI PCARD-GETTY IMAGES,03/29/14,04/28/14,PUBLICATIONS/REFERENCE MAT'L,-100.46,2014,AP,Accounts payable,00732083,CITI PCARD-GETTY IMAGES
,OFFICE OF THE MAJORITY WHIP,2014Q2,SUPPLIES AND MATERIALS,05-20,CITI PCARD-KRISPY KREME DOUGH,03/29/14,04/28/14,FOOD & BEVERAGE,37.46,2014,AP,Accounts payable,00732083,CITI PCARD-KRISPY KREME DOUGH
,OFFICE OF THE MAJORITY WHIP,2014Q2,SUPPLIES AND MATERIALS,05-20,CITI PCARD-LA TIMES SUBSCRIPTION,03/29/14,04/28/14,PUBLICATIONS/REFERENCE MAT'L,15.96,2014,AP,Accounts payable,00732083,CITI PCARD-LA TIMES SUBSCRIPTION
,OFFICE OF THE MAJORITY WHIP,2014Q2,SUPPLIES AND MATERIALS,05-20,CITI PCARD-NEW YORK TIMES DIGITAL,03/29/14,04/28/14,PUBLICATIONS/REFERENCE MAT'L,37.01,2014,AP,Accounts payable,00732083,CITI PCARD-NEW YORK TIMES DIGITAL
,OFFICE OF THE MAJORITY WHIP,2014Q2,SUPPLIES AND MATERIALS,06-03,"MIN, JAMES B",05/14/14,05/14/14,FOOD & BEVERAGE,680.01,2014,AP,Accounts payable,E0158890,"MIN, JAMES B"
,OFFICE OF THE MAJORITY WHIP,2014Q2,SUPPLIES AND MATERIALS,06-12,"MIN, JAMES B",06/05/14,06/05/14,FOOD & BEVERAGE,264.25,2014,AP,Accounts payable,E0163039,"MIN, JAMES B"
,OFFICE OF THE MAJORITY WHIP,2014Q2,SUPPLIES AND MATERIALS,06-12,DEER PARK WATER,04/27/14,05/26/14,WATER,223.78,2014,AP,Accounts payable,E0163040,DEER PARK WATER
,OFFICE OF THE MAJORITY WHIP,2014Q2,SUPPLIES AND MATERIALS,06-19,CITI PCARD-CORNER BAKERY,04/29/14,05/28/14,FOOD & BEVERAGE,281.60,2014,AP,Accounts payable,00737272,CITI PCARD-CORNER BAKERY
,OFFICE OF THE MAJORITY WHIP,2014Q2,SUPPLIES AND MATERIALS,06-19,CITI PCARD-D J WALL-ST-JOURNAL,04/29/14,05/28/14,PUBLICATIONS/REFERENCE MAT'L,24.31,2014,AP,Accounts payable,00737272,CITI PCARD-D J WALL-ST-JOURNAL
,OFFICE OF THE MAJORITY WHIP,2014Q2,SUPPLIES AND MATERIALS,06-19,CITI PCARD-FIRST CHOICE - JOE RAG,04/29/14,05/28/14,FOOD & BEVERAGE,554.67,2014,AP,Accounts payable,00737272,CITI PCARD-FIRST CHOICE - JOE RAG
,OFFICE OF THE MAJORITY WHIP,2014Q2,SUPPLIES AND MATERIALS,06-19,CITI PCARD-HARRIS TEETER,04/29/14,05/28/14,FOOD & BEVERAGE,19.17,2014,AP,Accounts payable,00737272,CITI PCARD-HARRIS TEETER
,OFFICE OF THE MAJORITY WHIP,2014Q2,SUPPLIES AND MATERIALS,06-19,CITI PCARD-KRISPY KREME DOUGH,04/29/14,05/28/14,FOOD & BEVERAGE,18.73,2014,AP,Accounts payable,00737272,CITI PCARD-KRISPY KREME DOUGH
,OFFICE OF THE MAJORITY WHIP,2014Q2,SUPPLIES AND MATERIALS,06-19,CITI PCARD-LA TIMES SUBSCRIPTION,04/29/14,05/28/14,PUBLICATIONS/REFERENCE MAT'L,15.96,2014,AP,Accounts payable,00737272,CITI PCARD-LA TIMES SUBSCRIPTION
,OFFICE OF THE MAJORITY WHIP,2014Q2,SUPPLIES AND MATERIALS,06-19,CITI PCARD-NEW YORK TIMES DIGITAL,04/29/14,05/28/14,PUBLICATIONS/REFERENCE MAT'L,37.01,2014,AP,Accounts payable,00737272,CITI PCARD-NEW YORK TIMES DIGITAL
,OFFICE OF THE MAJORITY WHIP,2014Q2,PRINTING AND REPRODUCTION,05-07,SHARP ELECTRONICS CORPORATION,11/01/13,12/01/13,PRINTING & REPRODUCTION,54.78,2013,AP,Accounts payable,E0149064,SHARP ELECTRONICS CORPORATION
,OFFICE OF THE MAJORITY WHIP,2014Q2,PRINTING AND REPRODUCTION,05-07,SHARP ELECTRONICS CORPORATION,09/01/13,10/30/13,PRINTING & REPRODUCTION,191.10,2013,AP,Accounts payable,E0149072,SHARP ELECTRONICS CORPORATION
,OFFICE OF THE MAJORITY WHIP,2014Q2,PRINTING AND REPRODUCTION,05-07,SHARP ELECTRONICS CORPORATION,10/01/13,11/01/13,PRINTING & REPRODUCTION,149.16,2013,AP,Accounts payable,E0149074,SHARP ELECTRONICS CORPORATION
,OFFICE OF THE MAJORITY WHIP,2014Q2,OTHER SERVICES,05-12,CRAFT MEDIA DIGITAL LLC,05/15/13,06/15/13,"WEB DEV HST,EMAIL & RLTD SERV","6,000.00",2013,AP,Accounts payable,E0149934,CRAFT MEDIA DIGITAL LLC
,OFFICE OF THE MAJORITY WHIP,2014Q2,OTHER SERVICES,05-12,CRAFT MEDIA DIGITAL LLC,09/15/13,10/15/13,"WEB DEV HST,EMAIL & RLTD SERV","6,000.00",2013,AP,Accounts payable,E0149935,CRAFT MEDIA DIGITAL LLC
,OFFICE OF THE MINORITY WHIP,2014Q2,PERSONNEL COMPENSATION,"","ABOUCHAR, KEITH S",04/01/14,06/30/14,SENIOR POLICY ADVISOR,"1,133.33",2014,"","","","ABOUCHAR, KEITH S"
,OFFICE OF THE MINORITY WHIP,2014Q2,PERSONNEL COMPENSATION,"","AVILES,DANIELLE R",04/01/14,06/30/14,FLOOR ASSISTANT,"15,000.00",2014,"","","","AVILES,DANIELLE R"
,OFFICE OF THE MINORITY WHIP,2014Q2,PERSONNEL COMPENSATION,"","BOHANAN JR, JOHN L",04/01/14,06/30/14,CONSTITUENT LIAISON,"1,500.00",2014,"","","","BOHANAN JR, JOHN L"
,OFFICE OF THE MINORITY WHIP,2014Q2,PERSONNEL COMPENSATION,"","COBIA, LINDSEY G",04/01/14,05/31/14,EXECUTIVE ASST OFFICE MANAGER,"10,416.67",2014,"","","","COBIA, LINDSEY G"
,OFFICE OF THE MINORITY WHIP,2014Q2,PERSONNEL COMPENSATION,"","COLLINS, MICHAEL E",04/01/14,06/30/14,CHIEF DEPUTY WHIP,"10,625.01",2014,"","","","COLLINS, MICHAEL E"
,OFFICE OF THE MINORITY WHIP,2014Q2,PERSONNEL COMPENSATION,"","COVEY-BRANDT, ALEXIS",04/01/14,06/30/14,CHIEF OF STAFF,"4,279.68",2014,"","","","COVEY-BRANDT, ALEXIS"
,OFFICE OF THE MINORITY WHIP,2014Q2,PERSONNEL COMPENSATION,"","DWYER, STEPHEN",04/01/14,06/30/14,DIGITAL DIR & POLICY ADV,"12,250.01",2014,"","","","DWYER, STEPHEN"
,OFFICE OF THE MINORITY WHIP,2014Q2,PERSONNEL COMPENSATION,"","FRY,COURTNEY",04/01/14,06/30/14,DEP OUTREACH DIR & MEM SER ADV,"23,750.00",2014,"","","","FRY,COURTNEY"
,OFFICE OF THE MINORITY WHIP,2014Q2,PERSONNEL COMPENSATION,"","GENSEMER,ELLIOT J",04/01/14,05/31/14,SPECIAL ASSIST & PROJECT COORD,"6,666.66",2014,"","","","GENSEMER,ELLIOT J"
,OFFICE OF THE MINORITY WHIP,2014Q2,PERSONNEL COMPENSATION,"","GENSEMER,ELLIOT J",05/01/14,05/01/14,SPECIAL ASSITANT AND PROJ COOR,"5,000.00",2014,"","","","GENSEMER,ELLIOT J"
,OFFICE OF THE MINORITY WHIP,2014Q2,PERSONNEL COMPENSATION,"","GOFF,SHUWANZA R",04/01/14,06/30/14,FLOOR DIRECTOR,"23,750.00",2014,"","","","GOFF,SHUWANZA R"
,OFFICE OF THE MINORITY WHIP,2014Q2,PERSONNEL COMPENSATION,"","GRANT,KATHRYN L",04/01/14,06/30/14,COMMUNICATIONS DIRECTOR,"28,750.01",2014,"","","","GRANT,KATHRYN L"
,OFFICE OF THE MINORITY WHIP,2014Q2,PERSONNEL COMPENSATION,"","LEUSCHEN, JAMES P",04/01/14,06/30/14,SENIOR POLICY ADVISOR,"15,586.66",2014,"","","","LEUSCHEN, JAMES P"
,OFFICE OF THE MINORITY WHIP,2014Q2,PERSONNEL COMPENSATION,"","MAHR,THOMAS",04/01/14,06/30/14,POLICY DIRECTOR,"10,299.99",2014,"","","","MAHR,THOMAS"
,OFFICE OF THE MINORITY WHIP,2014Q2,PERSONNEL COMPENSATION,"","MARTINEZ, JAVIER D",04/01/14,06/30/14,DEP DIR OF MBR SERV & OUTR ADV,"18,750.00",2014,"","","","MARTINEZ, JAVIER D"
,OFFICE OF THE MINORITY WHIP,2014Q2,PERSONNEL COMPENSATION,"","MITTLER,MICHELLE",04/01/14,06/30/14,DIR OF SCHEDLNG & SPEC EVENTS,"16,666.67",2014,"","","","MITTLER,MICHELLE"
,OFFICE OF THE MINORITY WHIP,2014Q2,PERSONNEL COMPENSATION,"","MURRAY, ELIZABETH M",04/01/14,05/31/14,SENIOR POLICY ADVISOR,455.00,2014,"","","","MURRAY, ELIZABETH M"
,OFFICE OF THE MINORITY WHIP,2014Q2,PERSONNEL COMPENSATION,"","NOTTER,JAMES P",06/01/14,06/30/14,SR. ADV & PERSONAL OFFICE DIR,"1,250.00",2014,"","","","NOTTER,JAMES P"
,OFFICE OF THE MINORITY WHIP,2014Q2,PERSONNEL COMPENSATION,"","OTT,AMANDA M",04/01/14,04/30/14,PRESS AND RESEARCH ASSISTANT,"3,333.33",2014,"","","","OTT,AMANDA M"
,OFFICE OF THE MINORITY WHIP,2014Q2,PERSONNEL COMPENSATION,"","OTT,AMANDA M",06/01/14,06/16/14,DISTRICT REPRESENTATIVE,"-2,222.22",2014,"","","","OTT,AMANDA M"
,OFFICE OF THE MINORITY WHIP,2014Q2,PERSONNEL COMPENSATION,"","REPKO,MARY F",04/01/14,06/30/14,SENIOR POLICY ADVISOR,883.33,2014,"","","","REPKO,MARY F"
,OFFICE OF THE MINORITY WHIP,2014Q2,PERSONNEL COMPENSATION,"","RODRIGUEZ,FEDERICO J",04/01/14,06/30/14,STAFF ASSISTANT,"6,249.99",2014,"","","","RODRIGUEZ,FEDERICO J"
,OFFICE OF THE MINORITY WHIP,2014Q2,PERSONNEL COMPENSATION,"","RODRIGUEZ,FEDERICO J",03/01/14,05/31/14,STAFF ASSISTANT (OVERTIME),865.38,2014,"","","","RODRIGUEZ,FEDERICO J"
,OFFICE OF THE MINORITY WHIP,2014Q2,PERSONNEL COMPENSATION,"","ROMICK, BRIAN",04/01/14,06/30/14,WHIP DIR AND SENIOR ADVISOR,"4,883.33",2014,"","","","ROMICK, BRIAN"
,OFFICE OF THE MINORITY WHIP,2014Q2,PERSONNEL COMPENSATION,"","ROWE,DEBORAH M",04/01/14,06/30/14,STAFF ASSISTANT,"6,249.99",2014,"","","","ROWE,DEBORAH M"
,OFFICE OF THE MINORITY WHIP,2014Q2,PERSONNEL COMPENSATION,"","ROWE,DEBORAH M",03/01/14,05/31/14,STAFF ASSISTANT (OVERTIME),"2,163.43",2014,"","","","ROWE,DEBORAH M"
,OFFICE OF THE MINORITY WHIP,2014Q2,PERSONNEL COMPENSATION,"","ROWE,DEBORAH M",04/01/14,05/31/14,STAFF ASSISTANT (OTHER COMPENSATION),"3,000.00",2014,"","","","ROWE,DEBORAH M"
,OFFICE OF THE MINORITY WHIP,2014Q2,PERSONNEL COMPENSATION,"","SAEZ,MARIEL S",04/01/14,06/30/14,DEPUTY PRESS SECRETARY,"9,750.00",2014,"","","","SAEZ,MARIEL S"
,OFFICE OF THE MINORITY WHIP,2014Q2,PERSONNEL COMPENSATION,"","SHOTT,DANIEL",04/01/14,06/30/14,SENIOR FLOOR ASSISTANT,"17,916.66",2014,"","","","SHOTT,DANIEL"
,OFFICE OF THE MINORITY WHIP,2014Q2,PERSONNEL COMPENSATION,"","SILVERBERG,DANIEL I",04/01/14,06/30/14,SENIOR POLICY ADVISOR,"22,721.33",2014,"","","","SILVERBERG,DANIEL I"
,OFFICE OF THE MINORITY WHIP,2014Q2,PERSONNEL COMPENSATION,"","VALES,TARA J",05/05/14,06/30/14,PRESS AND RESEARCH ASSISTANT,"5,444.45",2014,"","","","VALES,TARA J"
,OFFICE OF THE MINORITY WHIP,2014Q2,PERSONNEL COMPENSATION,"","WEISSMANN, ADAM",04/01/14,06/30/14,SPEECHWRITER,"14,166.66",2014,"","","","WEISSMANN, ADAM"
,OFFICE OF THE MINORITY WHIP,2014Q2,TRAVEL,04-03,"COBIA, LINDSEY G",03/27/14,03/27/14,TAXI/PARKING/TOLLS,13.28,2014,AP,Accounts payable,E0137479,"COBIA, LINDSEY G"
,OFFICE OF THE MINORITY WHIP,2014Q2,TRAVEL,04-04,"GENSEMER, ELLIOT J",03/08/14,03/08/14,TAXI/PARKING/TOLLS,15.00,2014,AP,Accounts payable,E0137459,"GENSEMER, ELLIOT J"
,OFFICE OF THE MINORITY WHIP,2014Q2,TRAVEL,04-04,"COBIA, LINDSEY G",03/06/14,03/06/14,TAXI/PARKING/TOLLS,8.91,2014,AP,Accounts payable,E0137467,"COBIA, LINDSEY G"
,OFFICE OF THE MINORITY WHIP,2014Q2,TRAVEL,04-04,"GENSEMER, ELLIOT J",03/15/14,03/15/14,TAXI/PARKING/TOLLS,28.00,2014,AP,Accounts payable,E0137473,"GENSEMER, ELLIOT J"
,OFFICE OF THE MINORITY WHIP,2014Q2,TRAVEL,04-04,"COBIA, LINDSEY G",03/13/14,03/13/14,TAXI/PARKING/TOLLS,6.46,2014,AP,Accounts payable,E0137484,"COBIA, LINDSEY G"
,OFFICE OF THE MINORITY WHIP,2014Q2,TRAVEL,04-04,"COBIA, LINDSEY G",03/26/14,03/26/14,TAXI/PARKING/TOLLS,7.35,2014,AP,Accounts payable,E0137487,"COBIA, LINDSEY G"
,OFFICE OF THE MINORITY WHIP,2014Q2,TRAVEL,05-12,"FRY,COURTNEY",04/07/14,04/07/14,TAXI/PARKING/TOLLS,13.43,2014,AP,Accounts payable,E0150627,"FRY,COURTNEY"
,OFFICE OF THE MINORITY WHIP,2014Q2,TRAVEL,05-12,"GENSEMER, ELLIOT J",04/01/14,04/01/14,TAXI/PARKING/TOLLS,7.03,2014,AP,Accounts payable,E0150656,"GENSEMER, ELLIOT J"
,OFFICE OF THE MINORITY WHIP,2014Q2,TRAVEL,05-12,"GENSEMER, ELLIOT J",04/27/14,04/27/14,TAXI/PARKING/TOLLS,12.49,2014,AP,Accounts payable,E0150656,"GENSEMER, ELLIOT J"
,OFFICE OF THE MINORITY WHIP,2014Q2,TRAVEL,05-12,"GENSEMER, ELLIOT J",04/30/14,04/30/14,TAXI/PARKING/TOLLS,14.84,2014,AP,Accounts payable,E0150656,"GENSEMER, ELLIOT J"
,OFFICE OF THE MINORITY WHIP,2014Q2,TRAVEL,05-12,"GENSEMER, ELLIOT J",05/01/14,05/01/14,TAXI/PARKING/TOLLS,12.25,2014,AP,Accounts payable,E0150656,"GENSEMER, ELLIOT J"
,OFFICE OF THE MINORITY WHIP,2014Q2,TRAVEL,05-12,"GENSEMER, ELLIOT J",05/05/14,05/05/14,TAXI/PARKING/TOLLS,7.37,2014,AP,Accounts payable,E0150656,"GENSEMER, ELLIOT J"
,OFFICE OF THE MINORITY WHIP,2014Q2,TRAVEL,05-14,"ROWE, DEBORAH M",05/08/14,05/08/14,TAXI/PARKING/TOLLS,13.70,2014,AP,Accounts payable,E0150646,"ROWE, DEBORAH M"
,OFFICE OF THE MINORITY WHIP,2014Q2,TRAVEL,05-14,"ROWE, DEBORAH M",03/13/14,03/13/14,TAXI/PARKING/TOLLS,12.89,2014,AP,Accounts payable,E0150650,"ROWE, DEBORAH M"
,OFFICE OF THE MINORITY WHIP,2014Q2,TRAVEL,05-14,"ROWE, DEBORAH M",03/26/14,03/26/14,TAXI/PARKING/TOLLS,14.12,2014,AP,Accounts payable,E0150650,"ROWE, DEBORAH M"
,OFFICE OF THE MINORITY WHIP,2014Q2,TRAVEL,05-14,"ROWE, DEBORAH M",03/27/14,03/27/14,TAXI/PARKING/TOLLS,14.55,2014,AP,Accounts payable,E0150650,"ROWE, DEBORAH M"
,OFFICE OF THE MINORITY WHIP,2014Q2,TRAVEL,05-14,"ROWE, DEBORAH M",04/03/14,04/03/14,TAXI/PARKING/TOLLS,13.83,2014,AP,Accounts payable,E0150650,"ROWE, DEBORAH M"
,OFFICE OF THE MINORITY WHIP,2014Q2,TRAVEL,05-14,"ROWE, DEBORAH M",04/10/14,04/10/14,TAXI/PARKING/TOLLS,13.65,2014,AP,Accounts payable,E0150650,"ROWE, DEBORAH M"
,OFFICE OF THE MINORITY WHIP,2014Q2,TRAVEL,05-14,"ROWE, DEBORAH M",05/01/14,05/01/14,TAXI/PARKING/TOLLS,13.83,2014,AP,Accounts payable,E0150650,"ROWE, DEBORAH M"
,OFFICE OF THE MINORITY WHIP,2014Q2,TRAVEL,05-20,"ROWE, DEBORAH M",05/14/14,05/14/14,TAXI/PARKING/TOLLS,11.85,2014,AP,Accounts payable,E0154210,"ROWE, DEBORAH M"
,OFFICE OF THE MINORITY WHIP,2014Q2,TRAVEL,05-20,"COBIA, LINDSEY G",04/03/14,04/03/14,TAXI/PARKING/TOLLS,7.99,2014,AP,Accounts payable,E0154217,"COBIA, LINDSEY G"
,OFFICE OF THE MINORITY WHIP,2014Q2,TRAVEL,05-20,"COBIA, LINDSEY G",04/04/14,04/04/14,TAXI/PARKING/TOLLS,6.78,2014,AP,Accounts payable,E0154217,"COBIA, LINDSEY G"
,OFFICE OF THE MINORITY WHIP,2014Q2,TRAVEL,05-20,"COBIA, LINDSEY G",04/09/14,04/09/14,TAXI/PARKING/TOLLS,6.56,2014,AP,Accounts payable,E0154217,"COBIA, LINDSEY G"
,OFFICE OF THE MINORITY WHIP,2014Q2,TRAVEL,05-20,"COBIA, LINDSEY G",04/10/14,04/10/14,TAXI/PARKING/TOLLS,6.71,2014,AP,Accounts payable,E0154217,"COBIA, LINDSEY G"
,OFFICE OF THE MINORITY WHIP,2014Q2,TRAVEL,05-20,"AVILES,DANIELLE R",05/08/14,05/08/14,TAXI/PARKING/TOLLS,14.38,2014,AP,Accounts payable,E0154229,"AVILES,DANIELLE R"
,OFFICE OF THE MINORITY WHIP,2014Q2,TRAVEL,06-02,"COBIA, LINDSEY G",05/29/14,05/29/14,TAXI/PARKING/TOLLS,14.00,2014,AP,Accounts payable,E0158743,"COBIA, LINDSEY G"
,OFFICE OF THE MINORITY WHIP,2014Q2,TRAVEL,06-02,"ROWE, DEBORAH M",05/29/14,05/29/14,TAXI/PARKING/TOLLS,14.46,2014,AP,Accounts payable,E0158758,"ROWE, DEBORAH M"
,OFFICE OF THE MINORITY WHIP,2014Q2,TRAVEL,06-02,"ROWE, DEBORAH M",05/30/14,05/30/14,TAXI/PARKING/TOLLS,23.76,2014,AP,Accounts payable,E0158758,"ROWE, DEBORAH M"
,OFFICE OF THE MINORITY WHIP,2014Q2,TRAVEL,06-02,"AVILES,DANIELLE R",05/29/14,05/29/14,TAXI/PARKING/TOLLS,19.00,2014,AP,Accounts payable,E0158765,"AVILES,DANIELLE R"
,OFFICE OF THE MINORITY WHIP,2014Q2,TRAVEL,06-02,"AVILES,DANIELLE R",05/30/14,05/30/14,TAXI/PARKING/TOLLS,21.00,2014,AP,Accounts payable,E0158765,"AVILES,DANIELLE R"
,OFFICE OF THE MINORITY WHIP,2014Q2,TRAVEL,06-03,"COBIA, LINDSEY G",05/29/14,05/29/14,TAXI/PARKING/TOLLS,14.00,2014,AP,Accounts payable,E0158764,"COBIA, LINDSEY G"
,OFFICE OF THE MINORITY WHIP,2014Q2,TRAVEL,06-03,"COBIA, LINDSEY G",05/30/14,05/30/14,TAXI/PARKING/TOLLS,14.00,2014,AP,Accounts payable,E0158764,"COBIA, LINDSEY G"
,OFFICE OF THE MINORITY WHIP,2014Q2,TRAVEL,06-04,"VALES, TARA J",05/29/14,05/29/14,TAXI/PARKING/TOLLS,8.21,2014,AP,Accounts payable,E0159352,"VALES, TARA J"
,OFFICE OF THE MINORITY WHIP,2014Q2,TRAVEL,06-04,"ROWE, DEBORAH M",05/22/14,05/22/14,TAXI/PARKING/TOLLS,14.49,2014,AP,Accounts payable,E0159368,"ROWE, DEBORAH M"
,OFFICE OF THE MINORITY WHIP,2014Q2,TRAVEL,06-04,"ROWE, DEBORAH M",05/20/14,05/20/14,TAXI/PARKING/TOLLS,13.36,2014,AP,Accounts payable,E0159373,"ROWE, DEBORAH M"
,OFFICE OF THE MINORITY WHIP,2014Q2,TRAVEL,06-09,"MITTLER,MICHELLE",05/30/14,05/30/14,TAXI/PARKING/TOLLS,12.95,2014,AP,Accounts payable,00733009,"MITTLER,MICHELLE"
,OFFICE OF THE MINORITY WHIP,2014Q2,"RENT, COMMUNICATION, UTILITIES",05-12,"FRY,COURTNEY",04/10/14,04/10/14,UTILITIES,34.95,2014,AP,Accounts payable,E0150627,"FRY,COURTNEY"
,OFFICE OF THE MINORITY WHIP,2014Q2,"RENT, COMMUNICATION, UTILITIES",06-19,CITI PCARD-USPS,04/29/14,05/28/14,POSTAGE / COURIER / BOX RENTAL,11.20,2014,AP,Accounts payable,00737272,CITI PCARD-USPS
,OFFICE OF THE MINORITY WHIP,2014Q2,PRINTING AND REPRODUCTION,05-27,"",05/01/14,05/31/14,PHOTOGRAPHIC (TRANSFER),21.50,2014,GL,General ledger,PIX0039306,""
,OFFICE OF THE MINORITY WHIP,2014Q2,PRINTING AND REPRODUCTION,06-24,"",06/01/14,06/30/14,PHOTOGRAPHIC (TRANSFER),-21.50,2014,GL,General ledger,PIX0040022,""
,OFFICE OF THE MINORITY WHIP,2014Q2,OTHER SERVICES,04-14,APOLLO POLITICAL LLC,03/28/14,03/28/14,CONSULTANT CONTRACT SERVICE,"2,850.00",2014,AP,Accounts payable,E0139754,APOLLO POLITICAL LLC
,OFFICE OF THE MINORITY WHIP,2014Q2,OTHER SERVICES,05-20,CITI PCARD-REFECTORY,03/29/14,04/28/14,MISCELLANEOUS OTHER SERVICES,3.49,2014,AP,Accounts payable,00732083,CITI PCARD-REFECTORY
,OFFICE OF THE MINORITY WHIP,2014Q2,SUPPLIES AND MATERIALS,05-20,CITI PCARD-LEADERSHIP DIRECTORIES,03/29/14,04/28/14,PUBLICATIONS/REFERENCE MAT'L,465.00,2014,AP,Accounts payable,00732083,CITI PCARD-LEADERSHIP DIRECTORIES
,OFFICE OF THE MINORITY WHIP,2014Q2,SUPPLIES AND MATERIALS,05-20,CITI PCARD-NYT NY TIMES SUBS,03/29/14,04/28/14,PUBLICATIONS/REFERENCE MAT'L,85.19,2014,AP,Accounts payable,00732083,CITI PCARD-NYT NY TIMES SUBS
,OFFICE OF THE MINORITY WHIP,2014Q2,SUPPLIES AND MATERIALS,06-19,CITI PCARD-CHIPOTLE,04/29/14,05/28/14,FOOD & BEVERAGE,93.75,2014,AP,Accounts payable,00737272,CITI PCARD-CHIPOTLE
,OFFICE OF THE MINORITY WHIP,2014Q2,SUPPLIES AND MATERIALS,05-20,CITI PCARD-TARGET,11/29/13,12/28/13,FOOD & BEVERAGE,"2,978.78",2013,AP,Accounts payable,00732083,CITI PCARD-TARGET
,DEMOCRATIC CAUCUS,2014Q2,PERSONNEL COMPENSATION,"","ALVI,HINA R",04/01/14,06/30/14,SHARED EMPLOYEE,"7,500.00",2014,"","","","ALVI,HINA R"
,DEMOCRATIC CAUCUS,2014Q2,PERSONNEL COMPENSATION,"","ATTAPIT,SIRAT",04/01/14,06/30/14,SENIOR POLICY COUNSEL,"15,249.99",2014,"","","","ATTAPIT,SIRAT"
,DEMOCRATIC CAUCUS,2014Q2,PERSONNEL COMPENSATION,"","AVERY,SAMUEL R",04/01/14,06/30/14,PRESS ASSISTANT,"10,125.00",2014,"","","","AVERY,SAMUEL R"
,DEMOCRATIC CAUCUS,2014Q2,PERSONNEL COMPENSATION,"","BACKEMEYER,COURTNEY G",04/01/14,06/30/14,COMMUNICTNS DIR TO VICE CHRMN,"8,000.01",2014,"","","","BACKEMEYER,COURTNEY G"
,DEMOCRATIC CAUCUS,2014Q2,PERSONNEL COMPENSATION,"","CARRILLO,MANUEL J",04/07/14,06/30/14,OPERATIONS AND EVENTS COOR,"13,300.00",2014,"","","","CARRILLO,MANUEL J"
,DEMOCRATIC CAUCUS,2014Q2,PERSONNEL COMPENSATION,"","CASEY, KEVIN",04/01/14,06/30/14,POLICY DIRECTOR / VICE CHAIR,"21,750.00",2014,"","","","CASEY, KEVIN"
,DEMOCRATIC CAUCUS,2014Q2,PERSONNEL COMPENSATION,"","DAVALOS,LETICIA M",04/01/14,06/30/14,MEMBER OUTREACH ASSISTANT,"9,000.00",2014,"","","","DAVALOS,LETICIA M"
,DEMOCRATIC CAUCUS,2014Q2,PERSONNEL COMPENSATION,"","DAVALOS,LETICIA M",03/01/14,03/31/14,MEMBER OUTREACH ASSISTANT (OVERTIME),220.67,2014,"","","","DAVALOS,LETICIA M"
,DEMOCRATIC CAUCUS,2014Q2,PERSONNEL COMPENSATION,"","DELANEY, ERIC L",04/01/14,06/30/14,SR MBR OUTREACH ASST,"12,500.01",2014,"","","","DELANEY, ERIC L"
,DEMOCRATIC CAUCUS,2014Q2,PERSONNEL COMPENSATION,"","DIXON, DEBRA A",04/01/14,05/14/14,CHIEF OF STAFF,"16,133.33",2014,"","","","DIXON, DEBRA A"
,DEMOCRATIC CAUCUS,2014Q2,PERSONNEL COMPENSATION,"","DIXON, DEBRA A",05/01/14,05/14/14,CHIEF OF STAFF (OTHER COMPENSATION),"5,833.00",2014,"","","","DIXON, DEBRA A"
,DEMOCRATIC CAUCUS,2014Q2,PERSONNEL COMPENSATION,"","GLEESON,JAMES M",04/01/14,06/30/14,COMMUNICATIONS DIRECTOR,"22,700.01",2014,"","","","GLEESON,JAMES M"
,DEMOCRATIC CAUCUS,2014Q2,PERSONNEL COMPENSATION,"","HERRERA,DANIEL",04/01/14,06/30/14,PRESS SECRETARY,"15,750.00",2014,"","","","HERRERA,DANIEL"
,DEMOCRATIC CAUCUS,2014Q2,PERSONNEL COMPENSATION,"","HORI,CHERYL L",05/01/14,06/30/14,STAFF ASSISTANT,"2,644.44",2014,"","","","HORI,CHERYL L"
,DEMOCRATIC CAUCUS,2014Q2,PERSONNEL COMPENSATION,"","HORI,CHERYL L",05/01/14,05/31/14,STAFF ASSISTANT (OVERTIME),23.62,2014,"","","","HORI,CHERYL L"
,DEMOCRATIC CAUCUS,2014Q2,PERSONNEL COMPENSATION,"","MCCLUSKIE,SEAN E",04/01/14,06/30/14,POLICY DIRECTOR,"39,999.99",2014,"","","","MCCLUSKIE,SEAN E"
,DEMOCRATIC CAUCUS,2014Q2,PERSONNEL COMPENSATION,"","PEREZ-SANCHEZ,NOEL",04/01/14,06/30/14,MEMBER OUTREACH ASSISTANT,"11,250.00",2014,"","","","PEREZ-SANCHEZ,NOEL"
,DEMOCRATIC CAUCUS,2014Q2,PERSONNEL COMPENSATION,"","RENDON,ERIKA K",04/01/14,06/30/14,PRESS ASSISTANT,"8,499.99",2014,"","","","RENDON,ERIKA K"
,DEMOCRATIC CAUCUS,2014Q2,PERSONNEL COMPENSATION,"","RODRIGUEZ-CIAMPOLI,FABIOLA",04/01/14,06/30/14,EXECUTIVE DIRECTOR,"36,249.99",2014,"","","","RODRIGUEZ-CIAMPOLI,FABIOLA"
,DEMOCRATIC CAUCUS,2014Q2,PERSONNEL COMPENSATION,"","SACHSE,ANDREW M",04/01/14,06/30/14,STAFF ASSISTANT,"8,750.01",2014,"","","","SACHSE,ANDREW M"
,DEMOCRATIC CAUCUS,2014Q2,PERSONNEL COMPENSATION,"","SHARMA,MOH R",04/01/14,06/30/14,POLICY ADVISOR,"11,250.00",2014,"","","","SHARMA,MOH R"
,DEMOCRATIC CAUCUS,2014Q2,PERSONNEL COMPENSATION,"","SHLOMO,YACOV T",03/26/14,06/30/14,STAFF ASSISTANT,"7,361.10",2014,"","","","SHLOMO,YACOV T"
,DEMOCRATIC CAUCUS,2014Q2,PERSONNEL COMPENSATION,"","SHLOMO,YACOV T",04/01/14,05/31/14,STAFF ASSISTANT (OVERTIME),"1,135.80",2014,"","","","SHLOMO,YACOV T"
,DEMOCRATIC CAUCUS,2014Q2,PERSONNEL COMPENSATION,"","VENEGAS,STEPHANIE A",04/01/14,04/07/14,DEPUTY DIR OF OPERATIONS,"1,205.56",2014,"","","","VENEGAS,STEPHANIE A"
,DEMOCRATIC CAUCUS,2014Q2,PERSONNEL COMPENSATION,"","WINKLER, KATHERINE E",04/01/14,06/30/14,SHARED EMPLOYEE,"18,999.99",2014,"","","","WINKLER, KATHERINE E"
,DEMOCRATIC CAUCUS,2014Q2,PERSONNEL COMPENSATION,"","WOODRUM,JEREMY S",04/01/14,06/30/14,"LEGISLATIVE DIR., VICE CHAIR","10,749.99",2014,"","","","WOODRUM,JEREMY S"
,DEMOCRATIC CAUCUS,2014Q2,"RENT, COMMUNICATION, UTILITIES",04-21,CITI PCARD-USPS,03/01/14,03/28/14,POSTAGE / COURIER / BOX RENTAL,29.40,2014,AP,Accounts payable,00726853,CITI PCARD-USPS
,DEMOCRATIC CAUCUS,2014Q2,"RENT, COMMUNICATION, UTILITIES",05-20,CITI PCARD-USPS,03/29/14,04/28/14,POSTAGE / COURIER / BOX RENTAL,29.40,2014,AP,Accounts payable,00732083,CITI PCARD-USPS
,DEMOCRATIC CAUCUS,2014Q2,"RENT, COMMUNICATION, UTILITIES",06-19,CITI PCARD-CAPITOL HOST (RIDGEWEL,04/29/14,05/28/14,TEMPORARY SPACE RENTAL,250.00,2014,AP,Accounts payable,00737272,CITI PCARD-CAPITOL HOST (RIDGEWEL
,DEMOCRATIC CAUCUS,2014Q2,PRINTING AND REPRODUCTION,05-27,"",05/01/14,05/31/14,PHOTOGRAPHIC (TRANSFER),135.00,2014,GL,General ledger,PIX0039306,""
,DEMOCRATIC CAUCUS,2014Q2,OTHER SERVICES,04-21,CITI PCARD-CLASSICLEANERS-LONGWOR,03/01/14,03/28/14,LAUNDRY SERVICES,83.96,2014,AP,Accounts payable,00726853,CITI PCARD-CLASSICLEANERS-LONGWOR
,DEMOCRATIC CAUCUS,2014Q2,OTHER SERVICES,05-20,CITI PCARD-CLASSICLEANERS-LONGWOR,03/29/14,04/28/14,LAUNDRY SERVICES,41.98,2014,AP,Accounts payable,00732083,CITI PCARD-CLASSICLEANERS-LONGWOR
,DEMOCRATIC CAUCUS,2014Q2,OTHER SERVICES,06-19,CITI PCARD-CLASSICLEANERS-LONGWOR,04/29/14,05/28/14,LAUNDRY SERVICES,159.92,2014,AP,Accounts payable,00737272,CITI PCARD-CLASSICLEANERS-LONGWOR
,DEMOCRATIC CAUCUS,2014Q2,SUPPLIES AND MATERIALS,04-21,CITI PCARD-FIREHOOK,03/01/14,03/28/14,FOOD & BEVERAGE,24.99,2014,AP,Accounts payable,00726853,CITI PCARD-FIREHOOK
,DEMOCRATIC CAUCUS,2014Q2,SUPPLIES AND MATERIALS,04-21,CITI PCARD-FIREHOOK BAKERY,03/01/14,03/28/14,FOOD & BEVERAGE,32.00,2014,AP,Accounts payable,00726853,CITI PCARD-FIREHOOK BAKERY
,DEMOCRATIC CAUCUS,2014Q2,SUPPLIES AND MATERIALS,04-21,CITI PCARD-HARRIS TEETER,03/01/14,03/28/14,FOOD & BEVERAGE,627.66,2014,AP,Accounts payable,00726853,CITI PCARD-HARRIS TEETER
,DEMOCRATIC CAUCUS,2014Q2,SUPPLIES AND MATERIALS,04-21,CITI PCARD-LA TIMES SUBSCRIPTION,03/01/14,03/28/14,PUBLICATIONS/REFERENCE MAT'L,11.96,2014,AP,Accounts payable,00726853,CITI PCARD-LA TIMES SUBSCRIPTION
,DEMOCRATIC CAUCUS,2014Q2,SUPPLIES AND MATERIALS,04-21,CITI PCARD-SAINT GERMAIN CATERING,03/01/14,03/28/14,FOOD & BEVERAGE,"2,253.10",2014,AP,Accounts payable,00726853,CITI PCARD-SAINT GERMAIN CATERING
,DEMOCRATIC CAUCUS,2014Q2,SUPPLIES AND MATERIALS,04-23,DEER PARK,03/31/14,03/31/14,WATER,54.98,2014,AP,Accounts payable,00726744,DEER PARK
,DEMOCRATIC CAUCUS,2014Q2,SUPPLIES AND MATERIALS,05-20,"CITI PCARD-CATERING BY AVALON, IN",03/29/14,04/28/14,FOOD & BEVERAGE,"1,317.50",2014,AP,Accounts payable,00732083,"CITI PCARD-CATERING BY AVALON, IN"
,DEMOCRATIC CAUCUS,2014Q2,SUPPLIES AND MATERIALS,05-20,CITI PCARD-HARRIS TEETER,03/29/14,04/28/14,FOOD & BEVERAGE,506.82,2014,AP,Accounts payable,00732083,CITI PCARD-HARRIS TEETER
,DEMOCRATIC CAUCUS,2014Q2,SUPPLIES AND MATERIALS,05-20,CITI PCARD-LA TIMES SUBSCRIPTION,03/29/14,04/28/14,PUBLICATIONS/REFERENCE MAT'L,11.96,2014,AP,Accounts payable,00732083,CITI PCARD-LA TIMES SUBSCRIPTION
,DEMOCRATIC CAUCUS,2014Q2,SUPPLIES AND MATERIALS,05-20,CITI PCARD-SAINT GERMAIN CATERING,03/29/14,04/28/14,FOOD & BEVERAGE,"1,489.75",2014,AP,Accounts payable,00732083,CITI PCARD-SAINT GERMAIN CATERING
,DEMOCRATIC CAUCUS,2014Q2,SUPPLIES AND MATERIALS,05-28,SULLY FRAMING AND ART,05/08/14,05/08/14,HABITATION EXPENSE,326.52,2014,AP,Accounts payable,E0157103,SULLY FRAMING AND ART
,DEMOCRATIC CAUCUS,2014Q2,SUPPLIES AND MATERIALS,05-29,DEER PARK,04/30/14,04/30/14,WATER,42.98,2014,AP,Accounts payable,00732405,DEER PARK
,DEMOCRATIC CAUCUS,2014Q2,SUPPLIES AND MATERIALS,06-19,CITI PCARD-CAPITOL HOST (RIDGEWEL,04/29/14,05/28/14,FOOD & BEVERAGE,112.50,2014,AP,Accounts payable,00737272,CITI PCARD-CAPITOL HOST (RIDGEWEL
,DEMOCRATIC CAUCUS,2014Q2,SUPPLIES AND MATERIALS,06-19,"CITI PCARD-CATERING BY AVALON, IN",04/29/14,05/28/14,FOOD & BEVERAGE,"3,817.18",2014,AP,Accounts payable,00737272,"CITI PCARD-CATERING BY AVALON, IN"
,DEMOCRATIC CAUCUS,2014Q2,SUPPLIES AND MATERIALS,06-19,CITI PCARD-HARRIS TEETER,04/29/14,05/28/14,FOOD & BEVERAGE,822.47,2014,AP,Accounts payable,00737272,CITI PCARD-HARRIS TEETER
,DEMOCRATIC CAUCUS,2014Q2,SUPPLIES AND MATERIALS,06-19,CITI PCARD-LA TIMES SUBSCRIPTION,04/29/14,05/28/14,PUBLICATIONS/REFERENCE MAT'L,11.96,2014,AP,Accounts payable,00737272,CITI PCARD-LA TIMES SUBSCRIPTION
,DEMOCRATIC CAUCUS,2014Q2,SUPPLIES AND MATERIALS,06-19,CITI PCARD-SAINT GERMAIN CATERING,04/29/14,05/28/14,FOOD & BEVERAGE,"2,417.00",2014,AP,Accounts payable,00737272,CITI PCARD-SAINT GERMAIN CATERING
,DEMOCRATIC CAUCUS,2014Q2,SUPPLIES AND MATERIALS,06-19,CITI PCARD-TANGY SWEET-RED VELVET,04/29/14,05/28/14,FOOD & BEVERAGE,21.50,2014,AP,Accounts payable,00737272,CITI PCARD-TANGY SWEET-RED VELVET
,DEMOCRATIC CAUCUS,2014Q2,SUPPLIES AND MATERIALS,06-19,CITI PCARD-THE SUGAR EXPERIENCE,04/29/14,05/28/14,FOOD & BEVERAGE,"5,005.00",2014,AP,Accounts payable,00737272,CITI PCARD-THE SUGAR EXPERIENCE
,DEMOCRATIC CAUCUS,2014Q2,SUPPLIES AND MATERIALS,06-20,DEER PARK,05/31/14,05/31/14,WATER,29.99,2014,AP,Accounts payable,00737332,DEER PARK
,DEMOCRATIC CAUCUS,2014Q2,SUPPLIES AND MATERIALS,06-25,VOCUS INC,08/01/14,07/31/15,PUBLICATIONS/REFERENCE MAT'L,"3,454.00",2014,AP,Accounts payable,E0167790,VOCUS INC
,REPUBLICAN CONFERENCE,2014Q2,PERSONNEL COMPENSATION,"","ALGER,ABIGAIL S",04/01/14,06/30/14,DIGITAL DIRECTOR,"18,393.33",2014,"","","","ALGER,ABIGAIL S"
,REPUBLICAN CONFERENCE,2014Q2,PERSONNEL COMPENSATION,"","BETZ, KIMBERLY S",04/01/14,06/30/14,POLICY DIRECTOR,"37,500.00",2014,"","","","BETZ, KIMBERLY S"
,REPUBLICAN CONFERENCE,2014Q2,PERSONNEL COMPENSATION,"","BILL,AARON M",06/12/14,06/30/14,FELLOW,950.00,2014,"","","","BILL,AARON M"
,REPUBLICAN CONFERENCE,2014Q2,PERSONNEL COMPENSATION,"","CROCKER,NICHOLAS L",06/14/14,06/30/14,INTERN,850.00,2014,"","","","CROCKER,NICHOLAS L"
,REPUBLICAN CONFERENCE,2014Q2,PERSONNEL COMPENSATION,"","DEUTSCH,JEREMY",04/01/14,06/30/14,CHIEF OF STAFF,"31,250.01",2014,"","","","DEUTSCH,JEREMY"
,REPUBLICAN CONFERENCE,2014Q2,PERSONNEL COMPENSATION,"","GAITAN,WADI",04/01/14,06/30/14,PRESS SECRETARY,"13,747.50",2014,"","","","GAITAN,WADI"
,REPUBLICAN CONFERENCE,2014Q2,PERSONNEL COMPENSATION,"","GENTRY,LINDSEE B",06/03/14,06/30/14,STAFF ASSISTANT,"2,177.78",2014,"","","","GENTRY,LINDSEE B"
,REPUBLICAN CONFERENCE,2014Q2,PERSONNEL COMPENSATION,"","GRAVES,JOEL D",04/01/14,06/30/14,ASSISTANT DIGITAL DIRECTOR,"9,684.99",2014,"","","","GRAVES,JOEL D"
,REPUBLICAN CONFERENCE,2014Q2,PERSONNEL COMPENSATION,"","HODSON,NATHAN M",04/01/14,06/30/14,DIRECTOR OF COMMUNICATIONS,"33,249.99",2014,"","","","HODSON,NATHAN M"
,REPUBLICAN CONFERENCE,2014Q2,PERSONNEL COMPENSATION,"","LEVINER,EMILY E",04/01/14,06/30/14,POLICY ADVISOR,"12,999.99",2014,"","","","LEVINER,EMILY E"
,REPUBLICAN CONFERENCE,2014Q2,PERSONNEL COMPENSATION,"","LITMAN,RIVA",04/01/14,06/30/14,DEPUTY COMM DIRECTOR/PRESS SEC,"21,185.01",2014,"","","","LITMAN,RIVA"
,REPUBLICAN CONFERENCE,2014Q2,PERSONNEL COMPENSATION,"","MURPHY,SHAUGHNESSY P",04/01/14,06/30/14,DIRECTOR OF MEMBER SERVICES,"33,625.00",2014,"","","","MURPHY,SHAUGHNESSY P"
,REPUBLICAN CONFERENCE,2014Q2,PERSONNEL COMPENSATION,"","MUZIN,NICOLAS D",04/01/14,06/30/14,DIRECTOR OF OUTREACH,"33,810.00",2014,"","","","MUZIN,NICOLAS D"
,REPUBLICAN CONFERENCE,2014Q2,PERSONNEL COMPENSATION,"","PINEGAR,PHILLIP",04/01/14,05/31/14,STAFF ASSISTANT,"4,180.56",2014,"","","","PINEGAR,PHILLIP"
,REPUBLICAN CONFERENCE,2014Q2,PERSONNEL COMPENSATION,"","REAGAN,AMANDA M",04/01/14,06/30/14,STAFF ASSISTANT,"9,560.01",2014,"","","","REAGAN,AMANDA M"
,REPUBLICAN CONFERENCE,2014Q2,PERSONNEL COMPENSATION,"","REMBER,KATHERINE E",05/01/14,06/16/14,FELLOW,"2,150.00",2014,"","","","REMBER,KATHERINE E"
,REPUBLICAN CONFERENCE,2014Q2,PERSONNEL COMPENSATION,"","RUHLEN, MARY E",04/01/14,06/30/14,FINANCIAL ADMINISTRATOR,"4,050.00",2014,"","","","RUHLEN, MARY E"
,REPUBLICAN CONFERENCE,2014Q2,PERSONNEL COMPENSATION,"","SAVAGE,CAROLINE L",03/01/14,03/13/14,FELLOW,168.33,2014,"","","","SAVAGE,CAROLINE L"
,REPUBLICAN CONFERENCE,2014Q2,PERSONNEL COMPENSATION,"","SAVAGE,CAROLINE L",03/01/14,03/01/14,FELLOW (OTHER COMPENSATION),481.87,2014,"","","","SAVAGE,CAROLINE L"
,REPUBLICAN CONFERENCE,2014Q2,PERSONNEL COMPENSATION,"","SCAGNELLI,AUDREY",04/01/14,06/30/14,PRESS ASSISTANT,"6,249.99",2014,"","","","SCAGNELLI,AUDREY"
,REPUBLICAN CONFERENCE,2014Q2,PERSONNEL COMPENSATION,"","SMENTEK,DAVID",04/01/14,06/30/14,POLICY COORDINATOR,"7,500.00",2014,"","","","SMENTEK,DAVID"
,REPUBLICAN CONFERENCE,2014Q2,PERSONNEL COMPENSATION,"","STEVENS,PAMELA R",04/01/14,06/30/14,DIRECTOR OF MEDIA AFFAIRS,"31,250.01",2014,"","","","STEVENS,PAMELA R"
,REPUBLICAN CONFERENCE,2014Q2,PERSONNEL COMPENSATION,"","SUNDAY,JESSICA M",06/16/14,06/30/14,SCHEDULER,"1,302.08",2014,"","","","SUNDAY,JESSICA M"
,REPUBLICAN CONFERENCE,2014Q2,PERSONNEL COMPENSATION,"","WYCKOFF,SORELLE C",04/07/14,06/30/14,COMMUNICATIONS ASSISTANT,"7,583.33",2014,"","","","WYCKOFF,SORELLE C"
,REPUBLICAN CONFERENCE,2014Q2,TRAVEL,04-21,"GRAVES, JOEL D",04/11/14,04/11/14,TAXI/PARKING/TOLLS,18.04,2014,AP,Accounts payable,E0143018,"GRAVES, JOEL D"
,REPUBLICAN CONFERENCE,2014Q2,TRAVEL,05-01,"LITMAN, RIVA",04/30/14,04/30/14,TAXI/PARKING/TOLLS,42.82,2014,AP,Accounts payable,E0146580,"LITMAN, RIVA"
,REPUBLICAN CONFERENCE,2014Q2,TRAVEL,05-07,"PINEGAR, PHILLIP",04/30/14,04/30/14,GASOLINE,74.65,2014,AP,Accounts payable,E0148454,"PINEGAR, PHILLIP"
,REPUBLICAN CONFERENCE,2014Q2,TRAVEL,06-17,"LITMAN, RIVA",06/14/14,06/14/14,TAXI/PARKING/TOLLS,15.92,2014,AP,Accounts payable,E0164642,"LITMAN, RIVA"
,REPUBLICAN CONFERENCE,2014Q2,"RENT, COMMUNICATION, UTILITIES",04-21,CITI PCARD-USPS,03/01/14,03/28/14,POSTAGE / COURIER / BOX RENTAL,12.78,2014,AP,Accounts payable,00726853,CITI PCARD-USPS
,REPUBLICAN CONFERENCE,2014Q2,"RENT, COMMUNICATION, UTILITIES",06-27,"",05/01/14,05/31/14,RECORDING - (TRANSFER),35.00,2014,GL,General ledger,HRS0040155,""
,REPUBLICAN CONFERENCE,2014Q2,PRINTING AND REPRODUCTION,06-19,CITI PCARD-ISTOCK INTERNATIONAL,04/29/14,05/28/14,PRINTING & REPRODUCTION,99.99,2014,AP,Accounts payable,00737272,CITI PCARD-ISTOCK INTERNATIONAL
,REPUBLICAN CONFERENCE,2014Q2,OTHER SERVICES,04-02,O'DONNELL & ASSOC LTD,03/01/14,03/31/14,TRAINING,"2,800.00",2014,AP,Accounts payable,E0136158,O'DONNELL & ASSOC LTD
,REPUBLICAN CONFERENCE,2014Q2,OTHER SERVICES,05-01,O'DONNELL & ASSOC LTD,04/01/14,04/30/14,TRAINING,"2,800.00",2014,AP,Accounts payable,E0146578,O'DONNELL & ASSOC LTD
,REPUBLICAN CONFERENCE,2014Q2,OTHER SERVICES,06-03,O'DONNELL & ASSOC LTD,05/01/14,05/31/14,TRAINING,"3,100.00",2014,AP,Accounts payable,E0159322,O'DONNELL & ASSOC LTD
,REPUBLICAN CONFERENCE,2014Q2,OTHER SERVICES,06-10,DATAGRAPHICS,06/05/14,06/05/14,TECHNOLOGY SERVICE CONTRACTS,"4,000.00",2014,AP,Accounts payable,E0161908,DATAGRAPHICS
,REPUBLICAN CONFERENCE,2014Q2,OTHER SERVICES,06-19,"CITI PCARD-ADOBE SYSTEMS, INC",04/29/14,05/28/14,TECHNOLOGY SERVICE CONTRACTS,296.06,2014,AP,Accounts payable,00737272,"CITI PCARD-ADOBE SYSTEMS, INC"
,REPUBLICAN CONFERENCE,2014Q2,SUPPLIES AND MATERIALS,04-01,"HODSON, NATHAN",03/28/14,03/28/14,FOOD & BEVERAGE,42.95,2014,AP,Accounts payable,E0135424,"HODSON, NATHAN"
,REPUBLICAN CONFERENCE,2014Q2,SUPPLIES AND MATERIALS,04-07,"HODSON, NATHAN",04/04/14,04/04/14,FOOD & BEVERAGE,156.53,2014,AP,Accounts payable,E0138286,"HODSON, NATHAN"
,REPUBLICAN CONFERENCE,2014Q2,SUPPLIES AND MATERIALS,04-08,ARAMARK REFRESHMENT SERVICES,03/26/14,03/26/14,FOOD & BEVERAGE,181.64,2014,AP,Accounts payable,E0138436,ARAMARK REFRESHMENT SERVICES
,REPUBLICAN CONFERENCE,2014Q2,SUPPLIES AND MATERIALS,04-09,"MURPHY, SHAUGHNESSY",04/08/14,04/08/14,FOOD & BEVERAGE,"1,131.28",2014,AP,Accounts payable,E0139408,"MURPHY, SHAUGHNESSY"
,REPUBLICAN CONFERENCE,2014Q2,SUPPLIES AND MATERIALS,04-09,"GRAVES, JOEL D",04/07/14,04/07/14,SOFTWARE LESS THAN $500,99.99,2014,AP,Accounts payable,E0139410,"GRAVES, JOEL D"
,REPUBLICAN CONFERENCE,2014Q2,SUPPLIES AND MATERIALS,04-09,DRAKE SPRINGER,04/07/14,04/07/14,SOFTWARE LESS THAN $500,20.00,2014,AP,Accounts payable,E0139411,DRAKE SPRINGER
,REPUBLICAN CONFERENCE,2014Q2,SUPPLIES AND MATERIALS,04-09,"REAGAN, AMANDA M",04/08/14,04/08/14,FOOD & BEVERAGE,304.50,2014,AP,Accounts payable,E0139415,"REAGAN, AMANDA M"
,REPUBLICAN CONFERENCE,2014Q2,SUPPLIES AND MATERIALS,04-10,"HODSON, NATHAN",03/25/14,03/25/14,FOOD & BEVERAGE,272.00,2014,AP,Accounts payable,E0139584,"HODSON, NATHAN"
,REPUBLICAN CONFERENCE,2014Q2,SUPPLIES AND MATERIALS,04-10,CAPITOLHOST,03/25/14,03/25/14,FOOD & BEVERAGE,660.00,2014,AP,Accounts payable,E0139969,CAPITOLHOST
,REPUBLICAN CONFERENCE,2014Q2,SUPPLIES AND MATERIALS,04-14,"REAGAN, AMANDA M",04/10/14,04/10/14,FOOD & BEVERAGE,580.54,2014,AP,Accounts payable,E0140614,"REAGAN, AMANDA M"
,REPUBLICAN CONFERENCE,2014Q2,SUPPLIES AND MATERIALS,04-15,"JIRIK, MONICA",02/26/14,02/26/14,FOOD & BEVERAGE,30.88,2014,AP,Accounts payable,E0141609,"JIRIK, MONICA"
,REPUBLICAN CONFERENCE,2014Q2,SUPPLIES AND MATERIALS,04-15,"JIRIK, MONICA",03/05/14,03/05/14,FOOD & BEVERAGE,26.99,2014,AP,Accounts payable,E0141609,"JIRIK, MONICA"
,REPUBLICAN CONFERENCE,2014Q2,SUPPLIES AND MATERIALS,04-15,"JIRIK, MONICA",03/12/14,03/12/14,FOOD & BEVERAGE,37.79,2014,AP,Accounts payable,E0141609,"JIRIK, MONICA"
,REPUBLICAN CONFERENCE,2014Q2,SUPPLIES AND MATERIALS,04-15,"JIRIK, MONICA",04/02/14,04/02/14,FOOD & BEVERAGE,38.33,2014,AP,Accounts payable,E0141609,"JIRIK, MONICA"
,REPUBLICAN CONFERENCE,2014Q2,SUPPLIES AND MATERIALS,04-15,"JIRIK, MONICA",04/09/14,04/09/14,FOOD & BEVERAGE,34.50,2014,AP,Accounts payable,E0141609,"JIRIK, MONICA"
,REPUBLICAN CONFERENCE,2014Q2,SUPPLIES AND MATERIALS,04-21,"CITI PCARD-ADOBE SYSTEMS, INC",03/01/14,03/28/14,OFFICE SUPPLIES (OUTSIDE),84.58,2014,AP,Accounts payable,00726853,"CITI PCARD-ADOBE SYSTEMS, INC"
,REPUBLICAN CONFERENCE,2014Q2,SUPPLIES AND MATERIALS,04-21,CITI PCARD-AMAZON MKTPLACE PMTS,03/01/14,03/28/14,PUBLICATIONS/REFERENCE MAT'L,110.97,2014,AP,Accounts payable,00726853,CITI PCARD-AMAZON MKTPLACE PMTS
,REPUBLICAN CONFERENCE,2014Q2,SUPPLIES AND MATERIALS,04-21,CITI PCARD-AMAZON.COM,03/01/14,03/28/14,PUBLICATIONS/REFERENCE MAT'L,101.37,2014,AP,Accounts payable,00726853,CITI PCARD-AMAZON.COM
,REPUBLICAN CONFERENCE,2014Q2,SUPPLIES AND MATERIALS,04-21,CITI PCARD-CORNER BAKERY,03/01/14,03/28/14,FOOD & BEVERAGE,140.58,2014,AP,Accounts payable,00726853,CITI PCARD-CORNER BAKERY
,REPUBLICAN CONFERENCE,2014Q2,SUPPLIES AND MATERIALS,04-21,CITI PCARD-COSI,03/01/14,03/28/14,FOOD & BEVERAGE,226.77,2014,AP,Accounts payable,00726853,CITI PCARD-COSI
,REPUBLICAN CONFERENCE,2014Q2,SUPPLIES AND MATERIALS,04-21,CITI PCARD-MCDONALD'S,03/01/14,03/28/14,FOOD & BEVERAGE,154.04,2014,AP,Accounts payable,00726853,CITI PCARD-MCDONALD'S
,REPUBLICAN CONFERENCE,2014Q2,SUPPLIES AND MATERIALS,04-21,CITI PCARD-NEW YORK TIMES DIGITAL,03/01/14,03/28/14,PUBLICATIONS/REFERENCE MAT'L,15.90,2014,AP,Accounts payable,00726853,CITI PCARD-NEW YORK TIMES DIGITAL
,REPUBLICAN CONFERENCE,2014Q2,SUPPLIES AND MATERIALS,04-21,CITI PCARD-TAYLOR GOURMET,03/01/14,03/28/14,FOOD & BEVERAGE,363.28,2014,AP,Accounts payable,00726853,CITI PCARD-TAYLOR GOURMET
,REPUBLICAN CONFERENCE,2014Q2,SUPPLIES AND MATERIALS,04-23,ARAMARK REFRESHMENT SERVICES,05/01/14,05/31/14,FOOD & BEVERAGE,105.75,2014,AP,Accounts payable,E0143521,ARAMARK REFRESHMENT SERVICES
,REPUBLICAN CONFERENCE,2014Q2,SUPPLIES AND MATERIALS,04-24,ARAMARK REFRESHMENT SERVICES,04/23/14,04/23/14,FOOD & BEVERAGE,339.50,2014,AP,Accounts payable,E0144400,ARAMARK REFRESHMENT SERVICES
,REPUBLICAN CONFERENCE,2014Q2,SUPPLIES AND MATERIALS,04-24,ARAMARK REFRESHMENT SERVICES,04/23/14,04/23/14,FOOD & BEVERAGE,268.05,2014,AP,Accounts payable,E0144401,ARAMARK REFRESHMENT SERVICES
,REPUBLICAN CONFERENCE,2014Q2,SUPPLIES AND MATERIALS,04-29,CAPITOL HOST,04/02/14,04/02/14,FOOD & BEVERAGE,660.00,2014,AP,Accounts payable,E0145731,CAPITOL HOST
,REPUBLICAN CONFERENCE,2014Q2,SUPPLIES AND MATERIALS,05-12,"HODSON, NATHAN",05/09/14,05/09/14,FOOD & BEVERAGE,238.75,2014,AP,Accounts payable,E0151374,"HODSON, NATHAN"
,REPUBLICAN CONFERENCE,2014Q2,SUPPLIES AND MATERIALS,05-14,"MURPHY, SHAUGHNESSY",05/13/14,05/13/14,FOOD & BEVERAGE,312.19,2014,AP,Accounts payable,E0152135,"MURPHY, SHAUGHNESSY"
,REPUBLICAN CONFERENCE,2014Q2,SUPPLIES AND MATERIALS,05-19,"HODSON, NATHAN",05/15/14,05/16/14,FOOD & BEVERAGE,246.00,2014,AP,Accounts payable,E0154015,"HODSON, NATHAN"
,REPUBLICAN CONFERENCE,2014Q2,SUPPLIES AND MATERIALS,05-20,CITI PCARD-AMAZON.COM,03/29/14,04/28/14,OFFICE SUPPLIES (OUTSIDE),268.96,2014,AP,Accounts payable,00732083,CITI PCARD-AMAZON.COM
,REPUBLICAN CONFERENCE,2014Q2,SUPPLIES AND MATERIALS,05-20,CITI PCARD-NEW YORK TIMES DIGITAL,03/29/14,04/28/14,PUBLICATIONS/REFERENCE MAT'L,1.05,2014,AP,Accounts payable,00732083,CITI PCARD-NEW YORK TIMES DIGITAL
,REPUBLICAN CONFERENCE,2014Q2,SUPPLIES AND MATERIALS,05-20,CITI PCARD-SPERRYSOFTWARE,03/29/14,04/28/14,SOFTWARE LESS THAN $500,24.95,2014,AP,Accounts payable,00732083,CITI PCARD-SPERRYSOFTWARE
,REPUBLICAN CONFERENCE,2014Q2,SUPPLIES AND MATERIALS,05-20,CITI PCARD-TYPEKIT BY ADOBE,03/01/14,03/28/14,SOFTWARE LESS THAN $500,99.99,2014,AP,Accounts payable,00732083,CITI PCARD-TYPEKIT BY ADOBE
,REPUBLICAN CONFERENCE,2014Q2,SUPPLIES AND MATERIALS,05-20,CITI PCARD-WWW.NEWEGG.COM,03/29/14,04/28/14,OFFICE SUPPLIES (OUTSIDE),401.99,2014,AP,Accounts payable,00732083,CITI PCARD-WWW.NEWEGG.COM
,REPUBLICAN CONFERENCE,2014Q2,SUPPLIES AND MATERIALS,05-22,ARAMARK REFRESHMENT SERVICES,05/05/14,05/05/14,FOOD & BEVERAGE,105.75,2014,AP,Accounts payable,E0155572,ARAMARK REFRESHMENT SERVICES
,REPUBLICAN CONFERENCE,2014Q2,SUPPLIES AND MATERIALS,05-22,ARAMARK REFRESHMENT SERVICES,05/21/14,05/21/14,FOOD & BEVERAGE,206.25,2014,AP,Accounts payable,E0155573,ARAMARK REFRESHMENT SERVICES
,REPUBLICAN CONFERENCE,2014Q2,SUPPLIES AND MATERIALS,05-22,ARAMARK REFRESHMENT SERVICES,05/21/14,05/21/14,FOOD & BEVERAGE,158.11,2014,AP,Accounts payable,E0155574,ARAMARK REFRESHMENT SERVICES
,REPUBLICAN CONFERENCE,2014Q2,SUPPLIES AND MATERIALS,06-02,"JIRIK, MONICA",04/30/14,04/30/14,FOOD & BEVERAGE,47.56,2014,AP,Accounts payable,E0158775,"JIRIK, MONICA"
,REPUBLICAN CONFERENCE,2014Q2,SUPPLIES AND MATERIALS,06-02,"JIRIK, MONICA",05/07/14,05/07/14,FOOD & BEVERAGE,33.22,2014,AP,Accounts payable,E0158775,"JIRIK, MONICA"
,REPUBLICAN CONFERENCE,2014Q2,SUPPLIES AND MATERIALS,06-02,"MURPHY, SHAUGHNESSY",05/29/14,05/29/14,FOOD & BEVERAGE,538.75,2014,AP,Accounts payable,E0158776,"MURPHY, SHAUGHNESSY"
,REPUBLICAN CONFERENCE,2014Q2,SUPPLIES AND MATERIALS,06-10,CAPITOLHOST,05/28/14,05/28/14,FOOD & BEVERAGE,705.00,2014,AP,Accounts payable,E0161909,CAPITOLHOST
,REPUBLICAN CONFERENCE,2014Q2,SUPPLIES AND MATERIALS,06-10,CAPITOLHOST,05/29/14,05/29/14,FOOD & BEVERAGE,384.00,2014,AP,Accounts payable,E0161910,CAPITOLHOST
,REPUBLICAN CONFERENCE,2014Q2,SUPPLIES AND MATERIALS,06-10,CAPITOLHOST,05/29/14,05/29/14,FOOD & BEVERAGE,300.00,2014,AP,Accounts payable,E0161911,CAPITOLHOST
,REPUBLICAN CONFERENCE,2014Q2,SUPPLIES AND MATERIALS,06-10,"HODSON, NATHAN",06/06/14,06/06/14,FOOD & BEVERAGE,714.59,2014,AP,Accounts payable,E0161916,"HODSON, NATHAN"
,REPUBLICAN CONFERENCE,2014Q2,SUPPLIES AND MATERIALS,06-16,CITIBANK P CARD,03/29/14,04/28/14,OFFICE SUPPLIES (OUTSIDE),-670.95,2014,AP,Accounts payable,00737109,CITIBANK P CARD
,REPUBLICAN CONFERENCE,2014Q2,SUPPLIES AND MATERIALS,06-19,CITI PCARD-APL APPLE ITUNES STORE,04/29/14,05/28/14,SOFTWARE LESS THAN $500,19.99,2014,AP,Accounts payable,00737272,CITI PCARD-APL APPLE ITUNES STORE
,REPUBLICAN CONFERENCE,2014Q2,SUPPLIES AND MATERIALS,06-19,CITI PCARD-CHICK-FIL-A,04/29/14,05/28/14,FOOD & BEVERAGE,157.74,2014,AP,Accounts payable,00737272,CITI PCARD-CHICK-FIL-A
,REPUBLICAN CONFERENCE,2014Q2,SUPPLIES AND MATERIALS,06-19,CITI PCARD-CHIPOTLE,04/29/14,05/28/14,FOOD & BEVERAGE,412.50,2014,AP,Accounts payable,00737272,CITI PCARD-CHIPOTLE
,REPUBLICAN CONFERENCE,2014Q2,SUPPLIES AND MATERIALS,06-19,CITI PCARD-CORNER BAKERY,04/29/14,05/28/14,FOOD & BEVERAGE,386.16,2014,AP,Accounts payable,00737272,CITI PCARD-CORNER BAKERY
,REPUBLICAN CONFERENCE,2014Q2,SUPPLIES AND MATERIALS,06-19,CITI PCARD-NEW YORK TIMES DIGITAL,04/29/14,05/28/14,PUBLICATIONS/REFERENCE MAT'L,15.86,2014,AP,Accounts payable,00737272,CITI PCARD-NEW YORK TIMES DIGITAL
,REPUBLICAN CONFERENCE,2014Q2,SUPPLIES AND MATERIALS,06-19,CITI PCARD-PANERA BREAD,04/29/14,05/28/14,FOOD & BEVERAGE,171.52,2014,AP,Accounts payable,00737272,CITI PCARD-PANERA BREAD
,REPUBLICAN CONFERENCE,2014Q2,SUPPLIES AND MATERIALS,06-19,CITI PCARD-PAYPAL ENVATO MKPL AU,04/29/14,05/28/14,SOFTWARE LESS THAN $500,100.00,2014,AP,Accounts payable,00737272,CITI PCARD-PAYPAL ENVATO MKPL AU
,REPUBLICAN CONFERENCE,2014Q2,SUPPLIES AND MATERIALS,06-19,CITI PCARD-POTBELLY,04/29/14,05/28/14,FOOD & BEVERAGE,191.88,2014,AP,Accounts payable,00737272,CITI PCARD-POTBELLY
,REPUBLICAN CONFERENCE,2014Q2,SUPPLIES AND MATERIALS,06-19,CITI PCARD-QDOBA MEXICAN GRIL,04/29/14,05/28/14,FOOD & BEVERAGE,257.50,2014,AP,Accounts payable,00737272,CITI PCARD-QDOBA MEXICAN GRIL
,REPUBLICAN CONFERENCE,2014Q2,SUPPLIES AND MATERIALS,06-19,"CITI PCARD-WE, THE PIZZA",04/29/14,05/28/14,FOOD & BEVERAGE,79.82,2014,AP,Accounts payable,00737272,"CITI PCARD-WE, THE PIZZA"
,REPUBLICAN CONFERENCE,2014Q2,SUPPLIES AND MATERIALS,06-20,ARAMARK REFRESHMENT SERVICES,06/18/14,06/18/14,FOOD & BEVERAGE,689.51,2014,AP,Accounts payable,E0166420,ARAMARK REFRESHMENT SERVICES
,REPUBLICAN CONFERENCE,2014Q2,SUPPLIES AND MATERIALS,06-24,CAPITOLHOST,06/10/14,06/10/14,FOOD & BEVERAGE,660.00,2014,AP,Accounts payable,E0167203,CAPITOLHOST
,REPUBLICAN CONFERENCE,2014Q2,SUPPLIES AND MATERIALS,06-24,ARAMARK REFRESHMENT SERVICES,06/04/14,06/04/14,FOOD & BEVERAGE,105.75,2014,AP,Accounts payable,E0167204,ARAMARK REFRESHMENT SERVICES
,REPUBLICAN CONFERENCE,2014Q2,SUPPLIES AND MATERIALS,06-30,"HODSON, NATHAN",06/27/14,06/27/14,FOOD & BEVERAGE,359.50,2014,AP,Accounts payable,E0169165,"HODSON, NATHAN"
,REPUBLICAN CONFERENCE,2014Q2,SUPPLIES AND MATERIALS,06-30,CAPITOLHOST,06/18/14,06/18/14,FOOD & BEVERAGE,687.00,2014,AP,Accounts payable,E0169166,CAPITOLHOST
,REPUBLICAN CONFERENCE,2014Q2,EQUIPMENT,05-20,CITI PCARD-FUMFIE.COM,03/29/14,04/28/14,"OFFICE EQUIP PURCH LESS THAN $25,000","2,913.94",2014,AP,Accounts payable,00732083,CITI PCARD-FUMFIE.COM
,REPUBLICAN CONFERENCE,2014Q2,EQUIPMENT,06-16,CITIBANK P CARD,03/29/14,04/28/14,"OFFICE EQUIP PURCH LESS THAN $25,000","-2,913.94",2014,AP,Accounts payable,00737112,CITIBANK P CARD
,OFFICE OF THE MAJORITY WHIP,2014Q2,PRINTING AND REPRODUCTION,05-07,SHARP ELECTRONICS CORPORATION,06/01/13,07/01/13,PRINTING & REPRODUCTION,251.04,2013,AP,Accounts payable,E0149059,SHARP ELECTRONICS CORPORATION
,OFFICE OF THE MAJORITY WHIP,2014Q2,PRINTING AND REPRODUCTION,05-07,SHARP ELECTRONICS CORPORATION,07/01/13,08/01/13,PRINTING & REPRODUCTION,466.80,2013,AP,Accounts payable,E0149082,SHARP ELECTRONICS CORPORATION
,CHIEF ADMIN OFCR OF THE HOUSE,2014Q2,PERSONNEL COMPENSATION,"","ABBOTT, JESSICA A",04/01/14,06/30/14,FINANCIAL ANALYST,"31,827.75",FISCAL YEAR 2014,"","","","ABBOTT, JESSICA A"
,CHIEF ADMIN OFCR OF THE HOUSE,2014Q2,PERSONNEL COMPENSATION,"","ABEL, TIMOTHY",04/01/14,06/30/14,SR TECHNICAL SUPPORT REP (A),"24,127.26",FISCAL YEAR 2014,"","","","ABEL, TIMOTHY"
,CHIEF ADMIN OFCR OF THE HOUSE,2014Q2,PERSONNEL COMPENSATION,"","ACUESTA,JULY J",04/01/14,06/30/14,SENIOR SYSTEMS ENGINEER,"27,197.76",FISCAL YEAR 2014,"","","","ACUESTA,JULY J"
,CHIEF ADMIN OFCR OF THE HOUSE,2014Q2,PERSONNEL COMPENSATION,"","ADDISON, TRACY",04/01/14,06/30/14,LOGISTICS & DIST SPEC (A),"11,683.26",FISCAL YEAR 2014,"","","","ADDISON, TRACY"
,CHIEF ADMIN OFCR OF THE HOUSE,2014Q2,PERSONNEL COMPENSATION,"","ADELAKUN, DEEN A",04/01/14,06/30/14,SR TECH SOLUTIONS ENGINEER,"22,328.01",FISCAL YEAR 2014,"","","","ADELAKUN, DEEN A"
,CHIEF ADMIN OFCR OF THE HOUSE,2014Q2,PERSONNEL COMPENSATION,"","AGEE, MATTHEW P",04/01/14,06/30/14,RESOURCE MANAGER,"30,709.26",FISCAL YEAR 2014,"","","","AGEE, MATTHEW P"
,CHIEF ADMIN OFCR OF THE HOUSE,2014Q2,PERSONNEL COMPENSATION,"","AGEE, TINA M",04/01/14,06/30/14,DIRECTOR PHOTOGRAPHY,"27,197.76",FISCAL YEAR 2014,"","","","AGEE, TINA M"
,CHIEF ADMIN OFCR OF THE HOUSE,2014Q2,PERSONNEL COMPENSATION,"","AGNEW, ROSE M",04/01/14,06/30/14,SR PAYROLL & BENS GENERALIST,"20,076.00",FISCAL YEAR 2014,"","","","AGNEW, ROSE M"
,CHIEF ADMIN OFCR OF THE HOUSE,2014Q2,PERSONNEL COMPENSATION,"","AHUJA, KALPANA A",04/21/14,06/30/14,DIRECTOR WEB SYSTEMS,"25,213.23",FISCAL YEAR 2014,"","","","AHUJA, KALPANA A"
,CHIEF ADMIN OFCR OF THE HOUSE,2014Q2,PERSONNEL COMPENSATION,"","AKINSEGUN, PATRICIA A",04/01/14,06/30/14,TELEPHONE SYSTEMS CONSULTANT,"22,328.01",FISCAL YEAR 2014,"","","","AKINSEGUN, PATRICIA A"
,CHIEF ADMIN OFCR OF THE HOUSE,2014Q2,PERSONNEL COMPENSATION,"","ALEXANDER, GORDON",04/01/14,06/30/14,TECH SOLUTIONS ENGINEER,"18,304.74",FISCAL YEAR 2014,"","","","ALEXANDER, GORDON"
,CHIEF ADMIN OFCR OF THE HOUSE,2014Q2,PERSONNEL COMPENSATION,"","ALLISON, KEVIN M",04/01/14,06/30/14,LOGISTICS & DIST SPEC (A),"13,638.51",FISCAL YEAR 2014,"","","","ALLISON, KEVIN M"
,CHIEF ADMIN OFCR OF THE HOUSE,2014Q2,PERSONNEL COMPENSATION,"","ALSTON,MARK A",04/01/14,06/30/14,TECH SOLUTIONS ENGINEER,"17,517.75",FISCAL YEAR 2014,"","","","ALSTON,MARK A"
,CHIEF ADMIN OFCR OF THE HOUSE,2014Q2,PERSONNEL COMPENSATION,"","ALVEY, LISA M",04/01/14,06/30/14,FINANCIAL COUNSELOR,"20,489.01",FISCAL YEAR 2014,"","","","ALVEY, LISA M"
,CHIEF ADMIN OFCR OF THE HOUSE,2014Q2,PERSONNEL COMPENSATION,"","ANDERSEN, FREDERIC E",04/01/14,06/30/14,2ND ASST SUPERINTENDENT,"22,776.51",FISCAL YEAR 2014,"","","","ANDERSEN, FREDERIC E"
,CHIEF ADMIN OFCR OF THE HOUSE,2014Q2,PERSONNEL COMPENSATION,"","ANDERSON, DONTRELL",04/01/14,06/30/14,FINANCIAL COUNSELOR,"16,341.00",FISCAL YEAR 2014,"","","","ANDERSON, DONTRELL"
,CHIEF ADMIN OFCR OF THE HOUSE,2014Q2,PERSONNEL COMPENSATION,"","ANDREWS,THOMAS",04/01/14,06/30/14,VOICE & VIDEO BRANCH MGR (A),"33,863.58",FISCAL YEAR 2014,"","","","ANDREWS,THOMAS"
,CHIEF ADMIN OFCR OF THE HOUSE,2014Q2,PERSONNEL COMPENSATION,"","ANDREWS-MOBLEY, RACHELLE G",04/01/14,06/30/14,PRINCIPAL TECHNICAL TRAINER,"25,728.50",FISCAL YEAR 2014,"","","","ANDREWS-MOBLEY, RACHELLE G"
,CHIEF ADMIN OFCR OF THE HOUSE,2014Q2,PERSONNEL COMPENSATION,"","ARMSTRONG,JANCIERA C",04/01/14,06/30/14,"MANAGER, ACCOUNTING","26,172.00",FISCAL YEAR 2014,"","","","ARMSTRONG,JANCIERA C"
,CHIEF ADMIN OFCR OF THE HOUSE,2014Q2,PERSONNEL COMPENSATION,"","ARTHUR, CAMILLA S",04/01/14,06/30/14,ASSISTANT CAO,"40,192.26",FISCAL YEAR 2014,"","","","ARTHUR, CAMILLA S"
,CHIEF ADMIN OFCR OF THE HOUSE,2014Q2,PERSONNEL COMPENSATION,"","ATCHISON, DARRYL A",04/01/14,06/30/14,DEPUTY CHIEF ENGINEER,"31,269.75",FISCAL YEAR 2014,"","","","ATCHISON, DARRYL A"
,CHIEF ADMIN OFCR OF THE HOUSE,2014Q2,PERSONNEL COMPENSATION,"","AWAN, OMAR",04/01/14,06/30/14,SR BUSINESS PROCESS APPL SPEC,"36,133.26",FISCAL YEAR 2014,"","","","AWAN, OMAR"
,CHIEF ADMIN OFCR OF THE HOUSE,2014Q2,PERSONNEL COMPENSATION,"","BAER, PETER L",04/01/14,06/30/14,BUSINESS PROC APPLIC SPEC,"32,331.00",FISCAL YEAR 2014,"","","","BAER, PETER L"
,CHIEF ADMIN OFCR OF THE HOUSE,2014Q2,PERSONNEL COMPENSATION,"","BAHAM,TODD",04/01/14,06/30/14,BROADCAST PRODUCTION TECHNICIA,"19,170.01",FISCAL YEAR 2014,"","","","BAHAM,TODD"
,CHIEF ADMIN OFCR OF THE HOUSE,2014Q2,PERSONNEL COMPENSATION,"","BAHAM,TODD",03/01/14,05/31/14,BROADCAST PRODUCTION TECHNICIA (OVERTIME),"2,532.09",FISCAL YEAR 2014,"","","","BAHAM,TODD"
,CHIEF ADMIN OFCR OF THE HOUSE,2014Q2,PERSONNEL COMPENSATION,"","BAILEY, DAVID E",04/01/14,06/30/14,SR TECHNICAL SUPPORT REP (A),"24,127.26",FISCAL YEAR 2014,"","","","BAILEY, DAVID E"
,CHIEF ADMIN OFCR OF THE HOUSE,2014Q2,PERSONNEL COMPENSATION,"","BAKER, DARRELL F",04/01/14,06/30/14,SENIOR NETWORK TECHNICIAN,"24,841.50",FISCAL YEAR 2014,"","","","BAKER, DARRELL F"
,CHIEF ADMIN OFCR OF THE HOUSE,2014Q2,PERSONNEL COMPENSATION,"","BANFIELD,KELLI C",04/01/14,06/30/14,BROADCAST ENGINEER/PROD SPEC,"21,426.99",FISCAL YEAR 2014,"","","","BANFIELD,KELLI C"
,CHIEF ADMIN OFCR OF THE HOUSE,2014Q2,PERSONNEL COMPENSATION,"","BANFIELD,KELLI C",05/01/14,05/20/14,BROADCAST ENGINEER/PROD SPEC. (OTHER COMPENSATION),41.21,FISCAL YEAR 2014,"","","","BANFIELD,KELLI C"
,CHIEF ADMIN OFCR OF THE HOUSE,2014Q2,PERSONNEL COMPENSATION,"","BANKS,BIANCA N",04/01/14,06/30/14,RETAIL INVENTORY SPECIALIST,"16,996.17",FISCAL YEAR 2014,"","","","BANKS,BIANCA N"
,CHIEF ADMIN OFCR OF THE HOUSE,2014Q2,PERSONNEL COMPENSATION,"","BARBEE, GLENN",04/01/14,06/30/14,NETWORK TECHNICIAN,"22,328.01",FISCAL YEAR 2014,"","","","BARBEE, GLENN"
,CHIEF ADMIN OFCR OF THE HOUSE,2014Q2,PERSONNEL COMPENSATION,"","BARBEE,DONELL G",04/01/14,06/30/14,RETAIL INVENTORY SPECIALIST,"10,196.76",FISCAL YEAR 2014,"","","","BARBEE,DONELL G"
,CHIEF ADMIN OFCR OF THE HOUSE,2014Q2,PERSONNEL COMPENSATION,"","BARBEE,DONELL G",03/01/14,05/31/14,RETAIL INVENTORY SPECIALIST (OVERTIME),39.22,FISCAL YEAR 2014,"","","","BARBEE,DONELL G"
,CHIEF ADMIN OFCR OF THE HOUSE,2014Q2,PERSONNEL COMPENSATION,"","BARBOUR, JUNE M",04/01/14,06/30/14,BROADCAST PRODUCTION TECHNICIA,"18,955.54",FISCAL YEAR 2014,"","","","BARBOUR, JUNE M"
,CHIEF ADMIN OFCR OF THE HOUSE,2014Q2,PERSONNEL COMPENSATION,"","BARBOUR, JUNE M",03/01/14,04/30/14,BROADCAST PRODUCTION TECHNICIA (OVERTIME),199.97,FISCAL YEAR 2014,"","","","BARBOUR, JUNE M"
,CHIEF ADMIN OFCR OF THE HOUSE,2014Q2,PERSONNEL COMPENSATION,"","BARBOUR, JUNE M",05/01/14,05/20/14,BROADCAST PRODUCTION TECHNICIA (OTHER COMPENSATION),288.26,FISCAL YEAR 2014,"","","","BARBOUR, JUNE M"
,CHIEF ADMIN OFCR OF THE HOUSE,2014Q2,PERSONNEL COMPENSATION,"","BARCINIAK, DANA L",04/01/14,06/30/14,SENIOR PHOTOGRAPHER,"22,072.50",FISCAL YEAR 2014,"","","","BARCINIAK, DANA L"
,CHIEF ADMIN OFCR OF THE HOUSE,2014Q2,PERSONNEL COMPENSATION,"","BAREFOOT,JEFFREY",04/01/14,06/30/14,PRODUCTION/ENGINEER SPEC (TEMP,"11,164.92",FISCAL YEAR 2014,"","","","BAREFOOT,JEFFREY"
,CHIEF ADMIN OFCR OF THE HOUSE,2014Q2,PERSONNEL COMPENSATION,"","BARNABAE, MONICA M",04/01/14,06/30/14,DIRECTOR-HOUSE CHILD CARE CNTR,"27,197.76",FISCAL YEAR 2014,"","","","BARNABAE, MONICA M"
,CHIEF ADMIN OFCR OF THE HOUSE,2014Q2,PERSONNEL COMPENSATION,"","BARR,PAUL",04/01/14,06/30/14,RECEIVING/WAREHOUSE SPECIALIST,"11,895.24",FISCAL YEAR 2014,"","","","BARR,PAUL"
,CHIEF ADMIN OFCR OF THE HOUSE,2014Q2,PERSONNEL COMPENSATION,"","BARRETT, ROBERT R",04/01/14,06/30/14,"MANAGER, SUPPORT SYSTEMS","34,892.76",FISCAL YEAR 2014,"","","","BARRETT, ROBERT R"
,CHIEF ADMIN OFCR OF THE HOUSE,2014Q2,PERSONNEL COMPENSATION,"","BASILIO, TYRONE A",04/01/14,06/30/14,TECHNICAL SUPPORT REP,"19,697.49",FISCAL YEAR 2014,"","","","BASILIO, TYRONE A"
,CHIEF ADMIN OFCR OF THE HOUSE,2014Q2,PERSONNEL COMPENSATION,"","BATES, DEBORAH A",04/01/14,06/30/14,PRODUCTION/ENGINEER SPEC (TEMP,"10,352.93",FISCAL YEAR 2014,"","","","BATES, DEBORAH A"
,CHIEF ADMIN OFCR OF THE HOUSE,2014Q2,PERSONNEL COMPENSATION,"","BATH,GEORGE J",04/01/14,06/30/14,SENIOR ADVISOR,"42,102.75",FISCAL YEAR 2014,"","","","BATH,GEORGE J"
,CHIEF ADMIN OFCR OF THE HOUSE,2014Q2,PERSONNEL COMPENSATION,"","BEAUBIAN, TRACI R",04/01/14,06/30/14,CHIEF FINANCIAL OFFICER,"42,102.75",FISCAL YEAR 2014,"","","","BEAUBIAN, TRACI R"
,CHIEF ADMIN OFCR OF THE HOUSE,2014Q2,PERSONNEL COMPENSATION,"","BEIDEL, BERNARD E",04/01/14,06/30/14,"DIR, OFFICE OF EMPLOYEE ASSIST","42,102.75",FISCAL YEAR 2014,"","","","BEIDEL, BERNARD E"
,CHIEF ADMIN OFCR OF THE HOUSE,2014Q2,PERSONNEL COMPENSATION,"","BELL,FRANK E",04/01/14,06/30/14,SENIOR TECHNICAL ADVISOR,"33,041.76",FISCAL YEAR 2014,"","","","BELL,FRANK E"
,CHIEF ADMIN OFCR OF THE HOUSE,2014Q2,PERSONNEL COMPENSATION,"","BENAVIDEZ, OSCAR",04/01/14,06/30/14,LOGISTICS & DIST SPEC (A),"10,788.70",FISCAL YEAR 2014,"","","","BENAVIDEZ, OSCAR"
,CHIEF ADMIN OFCR OF THE HOUSE,2014Q2,PERSONNEL COMPENSATION,"","BENN, PHILLIP F",04/01/14,06/30/14,ELECTRONICS TECHNICIAN (A),"22,776.51",FISCAL YEAR 2014,"","","","BENN, PHILLIP F"
,CHIEF ADMIN OFCR OF THE HOUSE,2014Q2,PERSONNEL COMPENSATION,"","BENN, PHILLIP F",05/01/14,05/20/14,ELECTRONICS TECHNICIAN (A) (OTHER COMPENSATION),54.32,FISCAL YEAR 2014,"","","","BENN, PHILLIP F"
,CHIEF ADMIN OFCR OF THE HOUSE,2014Q2,PERSONNEL COMPENSATION,"","BERGER, DONALD W",04/01/14,06/30/14,TECHNICAL DIRECTOR (A),"22,584.00",FISCAL YEAR 2014,"","","","BERGER, DONALD W"
,CHIEF ADMIN OFCR OF THE HOUSE,2014Q2,PERSONNEL COMPENSATION,"","BERGER, DONALD W",05/01/14,05/20/14,TECHNICAL DIRECTOR (A) (OTHER COMPENSATION),977.31,FISCAL YEAR 2014,"","","","BERGER, DONALD W"
,CHIEF ADMIN OFCR OF THE HOUSE,2014Q2,PERSONNEL COMPENSATION,"","BERRY,JOSEPH B",04/01/14,06/30/14,SYSTEMS ENGINEER,"21,879.75",FISCAL YEAR 2014,"","","","BERRY,JOSEPH B"
,CHIEF ADMIN OFCR OF THE HOUSE,2014Q2,PERSONNEL COMPENSATION,"","BEST, CHARLENE",04/01/14,06/30/14,MANAGER,"23,941.50",FISCAL YEAR 2014,"","","","BEST, CHARLENE"
,CHIEF ADMIN OFCR OF THE HOUSE,2014Q2,PERSONNEL COMPENSATION,"","BETHEA,LASHON L",04/01/14,06/30/14,TECHNICAL TRAINER,"25,295.01",FISCAL YEAR 2014,"","","","BETHEA,LASHON L"
,CHIEF ADMIN OFCR OF THE HOUSE,2014Q2,PERSONNEL COMPENSATION,"","BILLARD, MICHAEL A",04/01/14,06/30/14,COMMUNICATIONS SPEC,"25,295.01",FISCAL YEAR 2014,"","","","BILLARD, MICHAEL A"
,CHIEF ADMIN OFCR OF THE HOUSE,2014Q2,PERSONNEL COMPENSATION,"","BILLUPS, BRIAN E",04/01/14,06/30/14,NETWORK TECHNICIAN (A),"19,697.49",FISCAL YEAR 2014,"","","","BILLUPS, BRIAN E"
,CHIEF ADMIN OFCR OF THE HOUSE,2014Q2,PERSONNEL COMPENSATION,"","BLAKNEY, HAROLD",04/01/14,06/30/14,SENIOR SYSTEMS ENGINEER,"37,371.24",FISCAL YEAR 2014,"","","","BLAKNEY, HAROLD"
,CHIEF ADMIN OFCR OF THE HOUSE,2014Q2,PERSONNEL COMPENSATION,"","BOGAN, DAVID S",04/01/14,06/30/14,"SUPERVISOR, RETAIL INVENTORY","19,697.49",FISCAL YEAR 2014,"","","","BOGAN, DAVID S"
,CHIEF ADMIN OFCR OF THE HOUSE,2014Q2,PERSONNEL COMPENSATION,"","BOGER, KELLY M",04/01/14,06/30/14,ACCOUNT MANAGEMENT COUNSELOR,"20,093.76",FISCAL YEAR 2014,"","","","BOGER, KELLY M"
,CHIEF ADMIN OFCR OF THE HOUSE,2014Q2,PERSONNEL COMPENSATION,"","BOOKER, CARLOS",04/01/14,06/30/14,SALES SPECIALIST,"10,196.76",FISCAL YEAR 2014,"","","","BOOKER, CARLOS"
,CHIEF ADMIN OFCR OF THE HOUSE,2014Q2,PERSONNEL COMPENSATION,"","BOOKER, CARLOS",03/01/14,05/31/14,SALES SPECIALIST (OVERTIME),68.63,FISCAL YEAR 2014,"","","","BOOKER, CARLOS"
,CHIEF ADMIN OFCR OF THE HOUSE,2014Q2,PERSONNEL COMPENSATION,"","BOONE, RUSSELL",04/01/14,06/30/14,TECHNICAL SUPPORT REP,"22,072.50",FISCAL YEAR 2014,"","","","BOONE, RUSSELL"
,CHIEF ADMIN OFCR OF THE HOUSE,2014Q2,PERSONNEL COMPENSATION,"","BOWERS,KAREN L",04/01/14,06/30/14,FINANCIAL COUNSELOR,"19,301.76",FISCAL YEAR 2014,"","","","BOWERS,KAREN L"
,CHIEF ADMIN OFCR OF THE HOUSE,2014Q2,PERSONNEL COMPENSATION,"","BOWLDING, SONIA R",04/01/14,06/30/14,REC/WAREHOUSE SPEC (A),"11,188.74",FISCAL YEAR 2014,"","","","BOWLDING, SONIA R"
,CHIEF ADMIN OFCR OF THE HOUSE,2014Q2,PERSONNEL COMPENSATION,"","BOWLES, JAMES A",04/01/14,06/30/14,JOURNEYMAN FURNITURE SPEC,"19,615.58",FISCAL YEAR 2014,"","","","BOWLES, JAMES A"
,CHIEF ADMIN OFCR OF THE HOUSE,2014Q2,PERSONNEL COMPENSATION,"","BOWLING-STOKES,CHAUNETTE L",04/01/14,04/30/14,SUPERVISOR,"7,829.50",FISCAL YEAR 2014,"","","","BOWLING-STOKES,CHAUNETTE L"
,CHIEF ADMIN OFCR OF THE HOUSE,2014Q2,PERSONNEL COMPENSATION,"","BOWLING-STOKES,CHAUNETTE L",05/01/14,06/30/14,MANAGEMENT ANALYST,"15,659.00",FISCAL YEAR 2014,"","","","BOWLING-STOKES,CHAUNETTE L"
,CHIEF ADMIN OFCR OF THE HOUSE,2014Q2,PERSONNEL COMPENSATION,"","BOWMAN,SHELIA",04/01/14,06/30/14,FINANCIAL COUNSELOR,"16,734.99",FISCAL YEAR 2014,"","","","BOWMAN,SHELIA"
,CHIEF ADMIN OFCR OF THE HOUSE,2014Q2,PERSONNEL COMPENSATION,"","BOYD, KRISTIE N",03/01/14,05/30/14,PHOTOGRAPHER/LAB TECH (TEMP),"11,266.43",FISCAL YEAR 2014,"","","","BOYD, KRISTIE N"
,CHIEF ADMIN OFCR OF THE HOUSE,2014Q2,PERSONNEL COMPENSATION,"","BOYD, PETRINA",04/01/14,06/30/14,SALES SPECIALIST,"11,554.26",FISCAL YEAR 2014,"","","","BOYD, PETRINA"
,CHIEF ADMIN OFCR OF THE HOUSE,2014Q2,PERSONNEL COMPENSATION,"","BOYD, PETRINA",03/01/14,04/30/14,SALES SPECIALIST (OVERTIME),27.77,FISCAL YEAR 2014,"","","","BOYD, PETRINA"
,CHIEF ADMIN OFCR OF THE HOUSE,2014Q2,PERSONNEL COMPENSATION,"","BOYLE, KEVIN J",04/01/14,06/30/14,SR BUSINESS PROCESS APPL SPEC,"37,989.51",FISCAL YEAR 2014,"","","","BOYLE, KEVIN J"
,CHIEF ADMIN OFCR OF THE HOUSE,2014Q2,PERSONNEL COMPENSATION,"","BRACKENS, ROBERT",04/01/14,06/30/14,BROADCAST PRODUCTION TECHNICIA,"21,426.99",FISCAL YEAR 2014,"","","","BRACKENS, ROBERT"
,CHIEF ADMIN OFCR OF THE HOUSE,2014Q2,PERSONNEL COMPENSATION,"","BRACKENS, ROBERT",03/01/14,05/31/14,BROADCAST PRODUCTION TECHNICIA (OVERTIME),370.85,FISCAL YEAR 2014,"","","","BRACKENS, ROBERT"
,CHIEF ADMIN OFCR OF THE HOUSE,2014Q2,PERSONNEL COMPENSATION,"","BRACKENS, ROBERT",05/01/14,05/20/14,BROADCAST PRODUCTION TECHNICIA (OTHER COMPENSATION),306.29,FISCAL YEAR 2014,"","","","BRACKENS, ROBERT"
,CHIEF ADMIN OFCR OF THE HOUSE,2014Q2,PERSONNEL COMPENSATION,"","BRANCH,PAMELA J",04/01/14,06/30/14,"MANAGER, PAYROLL & BENEFITS","28,738.50",FISCAL YEAR 2014,"","","","BRANCH,PAMELA J"
,CHIEF ADMIN OFCR OF THE HOUSE,2014Q2,PERSONNEL COMPENSATION,"","BRAXTON, BRANDON A",04/01/14,06/30/14,LOGISTICS & DIST SPEC (A),"11,089.74",FISCAL YEAR 2014,"","","","BRAXTON, BRANDON A"
,CHIEF ADMIN OFCR OF THE HOUSE,2014Q2,PERSONNEL COMPENSATION,"","BREWSTER III,JAMES E",04/01/14,06/30/14,LOGISTICS & DIST SPEC (A),"9,347.76",FISCAL YEAR 2014,"","","","BREWSTER III,JAMES E"
,CHIEF ADMIN OFCR OF THE HOUSE,2014Q2,PERSONNEL COMPENSATION,"","BREWSTER,CHRISTOPHER A",04/01/14,06/30/14,ADMINISTRATIVE COUNSEL,"42,102.75",FISCAL YEAR 2014,"","","","BREWSTER,CHRISTOPHER A"
,CHIEF ADMIN OFCR OF THE HOUSE,2014Q2,PERSONNEL COMPENSATION,"","BRIDGEFORTH, TOINETTA A",04/01/14,06/30/14,CONTRACTS SPECIALIST,"22,328.01",FISCAL YEAR 2014,"","","","BRIDGEFORTH, TOINETTA A"
,CHIEF ADMIN OFCR OF THE HOUSE,2014Q2,PERSONNEL COMPENSATION,"","BRISCOE, KEVIN",04/01/14,06/30/14,LOGISTICS & DIST SPEC (A),"11,089.74",FISCAL YEAR 2014,"","","","BRISCOE, KEVIN"
,CHIEF ADMIN OFCR OF THE HOUSE,2014Q2,PERSONNEL COMPENSATION,"","BRITT,SHANNON W",04/01/14,06/30/14,SR HUMAN RESOURCES GENERALIST,"18,117.24",FISCAL YEAR 2014,"","","","BRITT,SHANNON W"
,CHIEF ADMIN OFCR OF THE HOUSE,2014Q2,PERSONNEL COMPENSATION,"","BROBBEY-MENSAH, KWAME",04/01/14,06/30/14,SR INFO SYST. SECURITY ANALYST,"28,738.50",FISCAL YEAR 2014,"","","","BROBBEY-MENSAH, KWAME"
,CHIEF ADMIN OFCR OF THE HOUSE,2014Q2,PERSONNEL COMPENSATION,"","BROWN SR, DEMETRICE T",04/01/14,06/30/14,SUPERVISOR,"26,687.01",FISCAL YEAR 2014,"","","","BROWN SR, DEMETRICE T"
,CHIEF ADMIN OFCR OF THE HOUSE,2014Q2,PERSONNEL COMPENSATION,"","BROWN, ANNETTE G",04/01/14,06/30/14,SR SOFTWARE ENGINEER,"26,648.25",FISCAL YEAR 2014,"","","","BROWN, ANNETTE G"
,CHIEF ADMIN OFCR OF THE HOUSE,2014Q2,PERSONNEL COMPENSATION,"","BROWN, KEITH S",04/01/14,06/30/14,REC/WAREHOUSE SPEC (A),"13,936.50",FISCAL YEAR 2014,"","","","BROWN, KEITH S"
,CHIEF ADMIN OFCR OF THE HOUSE,2014Q2,PERSONNEL COMPENSATION,"","BROWN, PAMELA L",04/01/14,06/30/14,CUSTOMER SOLUTIONS REP,"18,304.74",FISCAL YEAR 2014,"","","","BROWN, PAMELA L"
,CHIEF ADMIN OFCR OF THE HOUSE,2014Q2,PERSONNEL COMPENSATION,"","BROWN,DAVID D",04/01/14,06/30/14,FINANCIAL COUNSELOR,"16,078.34",FISCAL YEAR 2014,"","","","BROWN,DAVID D"
,CHIEF ADMIN OFCR OF THE HOUSE,2014Q2,PERSONNEL COMPENSATION,"","BROWN,JASON",04/01/14,06/30/14,BROADCAST PRODUCTION TECHNICIA,"18,906.51",FISCAL YEAR 2014,"","","","BROWN,JASON"
,CHIEF ADMIN OFCR OF THE HOUSE,2014Q2,PERSONNEL COMPENSATION,"","BROWN,JASON",05/01/14,05/20/14,BROADCAST PRODUCTION TECHNICIA (OTHER COMPENSATION),135.26,FISCAL YEAR 2014,"","","","BROWN,JASON"
,CHIEF ADMIN OFCR OF THE HOUSE,2014Q2,PERSONNEL COMPENSATION,"","BROWN,KIMBERLY K",04/01/14,06/30/14,RESOURCE ANALYST,"16,996.17",FISCAL YEAR 2014,"","","","BROWN,KIMBERLY K"
,CHIEF ADMIN OFCR OF THE HOUSE,2014Q2,PERSONNEL COMPENSATION,"","BROWN,LAWRENCE",04/01/14,06/30/14,BROADCAST ENGINEER/PROD SPEC,"21,879.75",FISCAL YEAR 2014,"","","","BROWN,LAWRENCE"
,CHIEF ADMIN OFCR OF THE HOUSE,2014Q2,PERSONNEL COMPENSATION,"","BROWN,LAWRENCE",03/01/14,05/31/14,BROADCAST ENGINEER/PROD SPEC. (OVERTIME),599.58,FISCAL YEAR 2014,"","","","BROWN,LAWRENCE"
,CHIEF ADMIN OFCR OF THE HOUSE,2014Q2,PERSONNEL COMPENSATION,"","BROWN,LAWRENCE",05/01/14,05/20/14,BROADCAST ENGINEER/PROD SPEC. (OTHER COMPENSATION),342.14,FISCAL YEAR 2014,"","","","BROWN,LAWRENCE"
,CHIEF ADMIN OFCR OF THE HOUSE,2014Q2,PERSONNEL COMPENSATION,"","BRUMMELL,JENELLE L",04/01/14,06/30/14,PARALEGAL,"17,720.01",FISCAL YEAR 2014,"","","","BRUMMELL,JENELLE L"
,CHIEF ADMIN OFCR OF THE HOUSE,2014Q2,PERSONNEL COMPENSATION,"","BUCKLER, RICKY L",04/01/14,06/30/14,PURCHASING AGENT,"18,906.51",FISCAL YEAR 2014,"","","","BUCKLER, RICKY L"
,CHIEF ADMIN OFCR OF THE HOUSE,2014Q2,PERSONNEL COMPENSATION,"","BUCKLER, TROY D",04/01/14,06/30/14,PURCHASING AGENT,"16,328.76",FISCAL YEAR 2014,"","","","BUCKLER, TROY D"
,CHIEF ADMIN OFCR OF THE HOUSE,2014Q2,PERSONNEL COMPENSATION,"","BUFORD, MARCIA L",04/01/14,06/30/14,COMPUTER FAC OP SUPERVISOR,"26,648.25",FISCAL YEAR 2014,"","","","BUFORD, MARCIA L"
,CHIEF ADMIN OFCR OF THE HOUSE,2014Q2,PERSONNEL COMPENSATION,"","BURCH, KENNETH J",04/01/14,06/30/14,BUSINESS PROC APPLIC SPEC,"29,765.49",FISCAL YEAR 2014,"","","","BURCH, KENNETH J"
,CHIEF ADMIN OFCR OF THE HOUSE,2014Q2,PERSONNEL COMPENSATION,"","BUTLER, CLARENCE G",04/01/14,06/30/14,JOURNEYMAN FURNITURE SPEC,"15,645.99",FISCAL YEAR 2014,"","","","BUTLER, CLARENCE G"
,CHIEF ADMIN OFCR OF THE HOUSE,2014Q2,PERSONNEL COMPENSATION,"","BUTLER, JAMES F",04/01/14,06/30/14,PAYROLL & BENEFITS MANAGER,"25,746.51",FISCAL YEAR 2014,"","","","BUTLER, JAMES F"
,CHIEF ADMIN OFCR OF THE HOUSE,2014Q2,PERSONNEL COMPENSATION,"","CAIN, MOLLY J",04/01/14,06/30/14,5TH ASST SUPERINTENDENT,"15,645.99",FISCAL YEAR 2014,"","","","CAIN, MOLLY J"
,CHIEF ADMIN OFCR OF THE HOUSE,2014Q2,PERSONNEL COMPENSATION,"","CALLAWAY, ROBERT M",04/01/14,06/30/14,SR BROADCAST ENG./PROD SPEC,"23,941.50",FISCAL YEAR 2014,"","","","CALLAWAY, ROBERT M"
,CHIEF ADMIN OFCR OF THE HOUSE,2014Q2,PERSONNEL COMPENSATION,"","CANNON, DREW",04/01/14,06/30/14,4TH ASST SUPERINTENDENT,"17,913.00",FISCAL YEAR 2014,"","","","CANNON, DREW"
,CHIEF ADMIN OFCR OF THE HOUSE,2014Q2,PERSONNEL COMPENSATION,"","CANNON,SUSANNAH",04/01/14,06/30/14,CUSTOMER SOLUTIONS REP,"13,936.50",FISCAL YEAR 2014,"","","","CANNON,SUSANNAH"
,CHIEF ADMIN OFCR OF THE HOUSE,2014Q2,PERSONNEL COMPENSATION,"","CARCAMO, ALICIA L",04/01/14,06/30/14,ACCOUNTING TECHNICIAN,"19,092.24",FISCAL YEAR 2014,"","","","CARCAMO, ALICIA L"
,CHIEF ADMIN OFCR OF THE HOUSE,2014Q2,PERSONNEL COMPENSATION,"","CARNNIA,CASEY",04/01/14,06/30/14,INTERNET SYSTEMS SPECIALIST,"19,301.76",FISCAL YEAR 2014,"","","","CARNNIA,CASEY"
,CHIEF ADMIN OFCR OF THE HOUSE,2014Q2,PERSONNEL COMPENSATION,"","CARR, JOSH D",04/01/14,06/30/14,SENIOR SYSTEMS ENGINEER,"25,295.01",FISCAL YEAR 2014,"","","","CARR, JOSH D"
,CHIEF ADMIN OFCR OF THE HOUSE,2014Q2,PERSONNEL COMPENSATION,"","CARRICO, RONALD",04/01/14,06/30/14,SR BUSINESS PROCESS APPL SPEC,"36,753.00",FISCAL YEAR 2014,"","","","CARRICO, RONALD"
,CHIEF ADMIN OFCR OF THE HOUSE,2014Q2,PERSONNEL COMPENSATION,"","CARSON,LAWRENCE T",04/01/14,06/30/14,SALES SPECIALIST,"10,196.76",FISCAL YEAR 2014,"","","","CARSON,LAWRENCE T"
,CHIEF ADMIN OFCR OF THE HOUSE,2014Q2,PERSONNEL COMPENSATION,"","CARSON,LAWRENCE T",03/01/14,05/31/14,SALES SPECIALIST (OVERTIME),58.82,FISCAL YEAR 2014,"","","","CARSON,LAWRENCE T"
,CHIEF ADMIN OFCR OF THE HOUSE,2014Q2,PERSONNEL COMPENSATION,"","CARTER JR, JOHN L",04/01/14,06/30/14,"MANAGER, FINISHING","25,025.01",FISCAL YEAR 2014,"","","","CARTER JR, JOHN L"
,CHIEF ADMIN OFCR OF THE HOUSE,2014Q2,PERSONNEL COMPENSATION,"","CARTER,DELISA D",04/01/14,06/30/14,SR. SOFTWARE SPECIALIST,"35,305.76",FISCAL YEAR 2014,"","","","CARTER,DELISA D"
,CHIEF ADMIN OFCR OF THE HOUSE,2014Q2,PERSONNEL COMPENSATION,"","CASSIDY, ED",04/01/14,06/30/14,CHIEF ADMINISTRATIVE OFFICER,"43,125.00",FISCAL YEAR 2014,"","","","CASSIDY, ED"
,CHIEF ADMIN OFCR OF THE HOUSE,2014Q2,PERSONNEL COMPENSATION,"","CAULK, ANDREW T",04/01/14,06/30/14,SUPERVISOR,"24,392.01",FISCAL YEAR 2014,"","","","CAULK, ANDREW T"
,CHIEF ADMIN OFCR OF THE HOUSE,2014Q2,PERSONNEL COMPENSATION,"","CHABOT, ELLIOT C",04/01/14,06/30/14,SR SYSTEMS ANALYST,"32,331.00",FISCAL YEAR 2014,"","","","CHABOT, ELLIOT C"
,CHIEF ADMIN OFCR OF THE HOUSE,2014Q2,PERSONNEL COMPENSATION,"","CHAMBERS, KEVIN N",04/01/14,06/30/14,SR CUSTOMER SOLUTIONS REP,"20,489.01",FISCAL YEAR 2014,"","","","CHAMBERS, KEVIN N"
,CHIEF ADMIN OFCR OF THE HOUSE,2014Q2,PERSONNEL COMPENSATION,"","CHAMBERS,KEVINA D",04/01/14,06/30/14,ACCOUNTING TECHNICIAN,"12,350.42",FISCAL YEAR 2014,"","","","CHAMBERS,KEVINA D"
,CHIEF ADMIN OFCR OF THE HOUSE,2014Q2,PERSONNEL COMPENSATION,"","CHANG, SU-HWA",04/01/14,06/30/14,SENIOR SYSTEMS ENGINEER,"30,278.49",FISCAL YEAR 2014,"","","","CHANG, SU-HWA"
,CHIEF ADMIN OFCR OF THE HOUSE,2014Q2,PERSONNEL COMPENSATION,"","CHEN, SUSAN",04/01/14,06/30/14,FINANCIAL COUNSELOR,"16,341.00",FISCAL YEAR 2014,"","","","CHEN, SUSAN"
,CHIEF ADMIN OFCR OF THE HOUSE,2014Q2,PERSONNEL COMPENSATION,"","CICALE, MICHAEL P",04/01/14,06/30/14,SR CUSTOMER SOLUTIONS REP,"19,092.24",FISCAL YEAR 2014,"","","","CICALE, MICHAEL P"
,CHIEF ADMIN OFCR OF THE HOUSE,2014Q2,PERSONNEL COMPENSATION,"","CLAGGETT, TIMOTHY A",04/01/14,06/30/14,JOURNEYMAN TEXTILE SPEC,"19,092.24",FISCAL YEAR 2014,"","","","CLAGGETT, TIMOTHY A"
,CHIEF ADMIN OFCR OF THE HOUSE,2014Q2,PERSONNEL COMPENSATION,"","CLARK, MARION",04/01/14,06/30/14,SR TELECOMMUNICATIONS ADMIN,"17,913.00",FISCAL YEAR 2014,"","","","CLARK, MARION"
,CHIEF ADMIN OFCR OF THE HOUSE,2014Q2,PERSONNEL COMPENSATION,"","CLARKE, JOHN P",04/01/14,06/30/14,SUPERVISOR,"21,879.75",FISCAL YEAR 2014,"","","","CLARKE, JOHN P"
,CHIEF ADMIN OFCR OF THE HOUSE,2014Q2,PERSONNEL COMPENSATION,"","COAKLEY,KRISTEN J",04/01/14,06/30/14,SR TELECOMMUNICATIONS ADMIN,"16,734.99",FISCAL YEAR 2014,"","","","COAKLEY,KRISTEN J"
,CHIEF ADMIN OFCR OF THE HOUSE,2014Q2,PERSONNEL COMPENSATION,"","COBB, FAYE C",04/01/14,06/30/14,"DIR, BUDGET, POLICY & PLANNING","38,975.76",FISCAL YEAR 2014,"","","","COBB, FAYE C"
,CHIEF ADMIN OFCR OF THE HOUSE,2014Q2,PERSONNEL COMPENSATION,"","COLBERT, RAY C",04/01/14,06/30/14,SR BROADCAST ENG/PROD SPECLST,"23,488.50",FISCAL YEAR 2014,"","","","COLBERT, RAY C"
,CHIEF ADMIN OFCR OF THE HOUSE,2014Q2,PERSONNEL COMPENSATION,"","COLBERT, RAY C",03/01/14,05/31/14,SR BROADCAST ENG/PROD SPECLST (OVERTIME),643.66,FISCAL YEAR 2014,"","","","COLBERT, RAY C"
,CHIEF ADMIN OFCR OF THE HOUSE,2014Q2,PERSONNEL COMPENSATION,"","COLBERT, RAY C",05/01/14,05/20/14,SR BROADCAST ENG/PROD SPECLST (OTHER COMPENSATION),158.10,FISCAL YEAR 2014,"","","","COLBERT, RAY C"
,CHIEF ADMIN OFCR OF THE HOUSE,2014Q2,PERSONNEL COMPENSATION,"","COLLINS, JOHN B",04/01/14,06/30/14,BROADCAST PRODUCTION TECHNICIA,"22,852.54",FISCAL YEAR 2014,"","","","COLLINS, JOHN B"
,CHIEF ADMIN OFCR OF THE HOUSE,2014Q2,PERSONNEL COMPENSATION,"","COLLINS, JOHN B",03/01/14,05/31/14,BROADCAST PRODUCTION TECHNICIA (OVERTIME),"1,295.42",FISCAL YEAR 2014,"","","","COLLINS, JOHN B"
,CHIEF ADMIN OFCR OF THE HOUSE,2014Q2,PERSONNEL COMPENSATION,"","COLLINS, JOHN B",05/01/14,05/20/14,BROADCAST PRODUCTION TECHNICIA (OTHER COMPENSATION),633.90,FISCAL YEAR 2014,"","","","COLLINS, JOHN B"
,CHIEF ADMIN OFCR OF THE HOUSE,2014Q2,PERSONNEL COMPENSATION,"","COLLINS,JOEL",04/01/14,05/31/14,SR INTERNET SYSTEMS SPECIALIST,"13,736.14",FISCAL YEAR 2014,"","","","COLLINS,JOEL"
,CHIEF ADMIN OFCR OF THE HOUSE,2014Q2,PERSONNEL COMPENSATION,"","CONNOLLY,ERIC",04/01/14,06/30/14,PHOTOGRAPHER,"14,967.51",FISCAL YEAR 2014,"","","","CONNOLLY,ERIC"
,CHIEF ADMIN OFCR OF THE HOUSE,2014Q2,PERSONNEL COMPENSATION,"","COOK, ERIC H",04/01/14,06/30/14,NETWORK TECHNICIAN,"20,489.01",FISCAL YEAR 2014,"","","","COOK, ERIC H"
,CHIEF ADMIN OFCR OF THE HOUSE,2014Q2,PERSONNEL COMPENSATION,"","COOPER, RICHARD S",04/01/14,06/30/14,STAFF ACCOUNTANT (A),"25,295.01",FISCAL YEAR 2014,"","","","COOPER, RICHARD S"
,CHIEF ADMIN OFCR OF THE HOUSE,2014Q2,PERSONNEL COMPENSATION,"","CORNEJO, LUIS E",04/01/14,06/30/14,SENIOR SYSTEMS ENGINEER,"25,746.51",FISCAL YEAR 2014,"","","","CORNEJO, LUIS E"
,CHIEF ADMIN OFCR OF THE HOUSE,2014Q2,PERSONNEL COMPENSATION,"","COX, BRIDGET A",04/01/14,06/30/14,SENIOR SYSTEMS ANALYST,"29,765.49",FISCAL YEAR 2014,"","","","COX, BRIDGET A"
,CHIEF ADMIN OFCR OF THE HOUSE,2014Q2,PERSONNEL COMPENSATION,"","COYNE III, THOMAS E",04/01/14,06/30/14,ASSISTANT CAO,"42,102.75",FISCAL YEAR 2014,"","","","COYNE III, THOMAS E"
,CHIEF ADMIN OFCR OF THE HOUSE,2014Q2,PERSONNEL COMPENSATION,"","CRUDUP III, WILLIAM D",04/01/14,06/30/14,LOGISTICS & DIST SPEC (A),"12,448.50",FISCAL YEAR 2014,"","","","CRUDUP III, WILLIAM D"
,CHIEF ADMIN OFCR OF THE HOUSE,2014Q2,PERSONNEL COMPENSATION,"","CUFF,LOREN D",04/01/14,06/30/14,INTERNET SYSTEMS SPECIALIST,"19,697.49",FISCAL YEAR 2014,"","","","CUFF,LOREN D"
,CHIEF ADMIN OFCR OF THE HOUSE,2014Q2,PERSONNEL COMPENSATION,"","CUFFEY, LAWRENCE",04/01/14,06/30/14,SR RECVNG AND WAREHOUSING SPEC,"18,027.00",FISCAL YEAR 2014,"","","","CUFFEY, LAWRENCE"
,CHIEF ADMIN OFCR OF THE HOUSE,2014Q2,PERSONNEL COMPENSATION,"","CUPRILL, CARLOS",04/01/14,06/30/14,SR TECHNICAL SUPPORT REP,"22,776.51",FISCAL YEAR 2014,"","","","CUPRILL, CARLOS"
,CHIEF ADMIN OFCR OF THE HOUSE,2014Q2,PERSONNEL COMPENSATION,"","CUTLER JR, BENJAMIN S",04/01/14,06/30/14,PAYROLL & BENEFITS ASSISTANT,"15,645.99",FISCAL YEAR 2014,"","","","CUTLER JR, BENJAMIN S"
,CHIEF ADMIN OFCR OF THE HOUSE,2014Q2,PERSONNEL COMPENSATION,"","DAHL,RYAN S",04/01/14,06/30/14,MEDIA LOGISTICS COORDINATOR,"15,307.26",FISCAL YEAR 2014,"","","","DAHL,RYAN S"
,CHIEF ADMIN OFCR OF THE HOUSE,2014Q2,PERSONNEL COMPENSATION,"","DAHLSTROM, DARREN",04/01/14,06/30/14,JOURNEYMAN FURNITURE SPEC,"19,877.25",FISCAL YEAR 2014,"","","","DAHLSTROM, DARREN"
,CHIEF ADMIN OFCR OF THE HOUSE,2014Q2,PERSONNEL COMPENSATION,"","DAS, SATYENDRA K",04/01/14,06/30/14,BUSINESS PROC APPLIC SPEC,"30,278.49",FISCAL YEAR 2014,"","","","DAS, SATYENDRA K"
,CHIEF ADMIN OFCR OF THE HOUSE,2014Q2,PERSONNEL COMPENSATION,"","DAVENPORT,KAREN V",04/01/14,06/30/14,FINANCIAL ANALYST,"21,879.75",FISCAL YEAR 2014,"","","","DAVENPORT,KAREN V"
,CHIEF ADMIN OFCR OF THE HOUSE,2014Q2,PERSONNEL COMPENSATION,"","DAVIS, JOHN J",04/01/14,06/30/14,BROADCAST PRODUCTION TECHNICIA,"22,776.51",FISCAL YEAR 2014,"","","","DAVIS, JOHN J"
,CHIEF ADMIN OFCR OF THE HOUSE,2014Q2,PERSONNEL COMPENSATION,"","DAVIS, JOHN J",05/01/14,05/20/14,BROADCAST PRODUCTION TECHNICIA (OTHER COMPENSATION),"1,359.46",FISCAL YEAR 2014,"","","","DAVIS, JOHN J"
,CHIEF ADMIN OFCR OF THE HOUSE,2014Q2,PERSONNEL COMPENSATION,"","DAVIS, STACHIA G",04/01/14,06/30/14,DIR MOD FURN & TRANSITION,"27,711.24",FISCAL YEAR 2014,"","","","DAVIS, STACHIA G"
,CHIEF ADMIN OFCR OF THE HOUSE,2014Q2,PERSONNEL COMPENSATION,"","DAVIS,SCOTT K",04/01/14,06/30/14,PAYROLL & BENEFITS GENERALIST,"16,734.99",FISCAL YEAR 2014,"","","","DAVIS,SCOTT K"
,CHIEF ADMIN OFCR OF THE HOUSE,2014Q2,PERSONNEL COMPENSATION,"","DAWKINS, JOANN",04/01/14,06/30/14,SR TELECOMM ADMIN,"16,328.76",FISCAL YEAR 2014,"","","","DAWKINS, JOANN"
,CHIEF ADMIN OFCR OF THE HOUSE,2014Q2,PERSONNEL COMPENSATION,"","DEAN, JOSEPH M",04/01/14,06/30/14,JOURNEYMAN TEXTILE SPEC,"20,489.01",FISCAL YEAR 2014,"","","","DEAN, JOSEPH M"
,CHIEF ADMIN OFCR OF THE HOUSE,2014Q2,PERSONNEL COMPENSATION,"","DEAVER,JAMES",04/01/14,06/30/14,SENIOR SYSTEMS ENGINEER,"32,388.00",FISCAL YEAR 2014,"","","","DEAVER,JAMES"
,CHIEF ADMIN OFCR OF THE HOUSE,2014Q2,PERSONNEL COMPENSATION,"","DELISLE,KALDON A",04/01/14,06/30/14,JOURNEYMAN FURNITURE SPEC,"13,947.24",FISCAL YEAR 2014,"","","","DELISLE,KALDON A"
,CHIEF ADMIN OFCR OF THE HOUSE,2014Q2,PERSONNEL COMPENSATION,"","DELUCA, ALAN",04/01/14,06/30/14,COMPUTER FACILITIES OP MGR (A),"35,512.26",FISCAL YEAR 2014,"","","","DELUCA, ALAN"
,CHIEF ADMIN OFCR OF THE HOUSE,2014Q2,PERSONNEL COMPENSATION,"","DENT,RICHARD H",04/01/14,06/30/14,JOURNEYMAN TEXTILE SPEC,"12,802.08",FISCAL YEAR 2014,"","","","DENT,RICHARD H"
,CHIEF ADMIN OFCR OF THE HOUSE,2014Q2,PERSONNEL COMPENSATION,"","DERRICK, SCOTT",04/01/14,06/30/14,GRAPHICS & DESKTOP PUBL SPEC,"22,776.51",FISCAL YEAR 2014,"","","","DERRICK, SCOTT"
,CHIEF ADMIN OFCR OF THE HOUSE,2014Q2,PERSONNEL COMPENSATION,"","DICKIE, JAMES",04/01/14,06/30/14,ENGINEERING OPS MANAGER,"30,709.26",FISCAL YEAR 2014,"","","","DICKIE, JAMES"
,CHIEF ADMIN OFCR OF THE HOUSE,2014Q2,PERSONNEL COMPENSATION,"","DIEFFENDERFER, GARY L",04/01/14,06/30/14,SR. APPLICATION DBA SPECIALIST,"32,388.00",FISCAL YEAR 2014,"","","","DIEFFENDERFER, GARY L"
,CHIEF ADMIN OFCR OF THE HOUSE,2014Q2,PERSONNEL COMPENSATION,"","DOBBINS, MARK",04/01/14,06/30/14,"MANAGER, PURCHASING","23,228.49",FISCAL YEAR 2014,"","","","DOBBINS, MARK"
,CHIEF ADMIN OFCR OF THE HOUSE,2014Q2,PERSONNEL COMPENSATION,"","DOODY,ERICA",04/01/14,06/30/14,ADMINISTRATIVE SPECIALIST,"11,258.01",FISCAL YEAR 2014,"","","","DOODY,ERICA"
,CHIEF ADMIN OFCR OF THE HOUSE,2014Q2,PERSONNEL COMPENSATION,"","DOOLEY,GENEVA",04/01/14,06/30/14,SENIOR SOFTWARE SPECIALIST,"32,388.00",FISCAL YEAR 2014,"","","","DOOLEY,GENEVA"
,CHIEF ADMIN OFCR OF THE HOUSE,2014Q2,PERSONNEL COMPENSATION,"","DOZIER, BRIAN A",04/01/14,06/30/14,INVENTORY ADMINISTRATOR,"15,307.26",FISCAL YEAR 2014,"","","","DOZIER, BRIAN A"
,CHIEF ADMIN OFCR OF THE HOUSE,2014Q2,PERSONNEL COMPENSATION,"","DUENAS, JOSEPH E",04/01/14,06/30/14,TECHNICAL SUPPORT REP,"18,906.51",FISCAL YEAR 2014,"","","","DUENAS, JOSEPH E"
,CHIEF ADMIN OFCR OF THE HOUSE,2014Q2,PERSONNEL COMPENSATION,"","DUNKLIN, KELDA Y",04/01/14,06/30/14,SR TECHNICAL SUPPORT REP,"26,648.25",FISCAL YEAR 2014,"","","","DUNKLIN, KELDA Y"
,CHIEF ADMIN OFCR OF THE HOUSE,2014Q2,PERSONNEL COMPENSATION,"","DURAN, ROLANDO",04/01/14,06/30/14,ELECTRONICS TECHNICIAN (A),"22,328.01",FISCAL YEAR 2014,"","","","DURAN, ROLANDO"
,CHIEF ADMIN OFCR OF THE HOUSE,2014Q2,PERSONNEL COMPENSATION,"","DURAN, ROLANDO",05/01/14,05/31/14,ELECTRONICS TECHNICIAN (A) (OVERTIME),483.05,FISCAL YEAR 2014,"","","","DURAN, ROLANDO"
,CHIEF ADMIN OFCR OF THE HOUSE,2014Q2,PERSONNEL COMPENSATION,"","DURAN, ROLANDO",05/01/14,05/20/14,ELECTRONICS TECHNICIAN (A) (OTHER COMPENSATION),106.28,FISCAL YEAR 2014,"","","","DURAN, ROLANDO"
,CHIEF ADMIN OFCR OF THE HOUSE,2014Q2,PERSONNEL COMPENSATION,"","EGERSON, TROY H",04/01/14,06/30/14,JOURNEYMAN TEXTILE SPEC,"18,304.74",FISCAL YEAR 2014,"","","","EGERSON, TROY H"
,CHIEF ADMIN OFCR OF THE HOUSE,2014Q2,PERSONNEL COMPENSATION,"","ELIAS, ANDREW C",04/01/14,06/30/14,DEPUTY DIRECTOR,"29,765.49",FISCAL YEAR 2014,"","","","ELIAS, ANDREW C"
,CHIEF ADMIN OFCR OF THE HOUSE,2014Q2,PERSONNEL COMPENSATION,"","ELLIN, JAMES B",04/01/14,06/30/14,SR NETWORK SYSTEMS ENGINEER,"29,592.00",FISCAL YEAR 2014,"","","","ELLIN, JAMES B"
,CHIEF ADMIN OFCR OF THE HOUSE,2014Q2,PERSONNEL COMPENSATION,"","ELLIOTT, RONALD",04/01/14,06/30/14,SR INFO SYST. SECURITY ANALYST,"25,295.01",FISCAL YEAR 2014,"","","","ELLIOTT, RONALD"
,CHIEF ADMIN OFCR OF THE HOUSE,2014Q2,PERSONNEL COMPENSATION,"","ELLIS,FRANKLIN M",04/21/14,06/30/14,SR SYSTEMS SUPPORT ENGINEER,"17,565.33",FISCAL YEAR 2014,"","","","ELLIS,FRANKLIN M"
,CHIEF ADMIN OFCR OF THE HOUSE,2014Q2,PERSONNEL COMPENSATION,"","ELLIS-GREGG, SHARON",04/01/14,06/30/14,PAYROLL & BENEFITS ASSISTANT,"14,276.01",FISCAL YEAR 2014,"","","","ELLIS-GREGG, SHARON"
,CHIEF ADMIN OFCR OF THE HOUSE,2014Q2,PERSONNEL COMPENSATION,"","ELLIS-JONES, DEBORAH",04/01/14,06/30/14,ADMIN-FINANCE & PAYROLL,"23,488.50",FISCAL YEAR 2014,"","","","ELLIS-JONES, DEBORAH"
,CHIEF ADMIN OFCR OF THE HOUSE,2014Q2,PERSONNEL COMPENSATION,"","EMAMALI, NICOLE S",04/01/14,06/30/14,SR TECHNICAL SUPPORT REP,"27,711.24",FISCAL YEAR 2014,"","","","EMAMALI, NICOLE S"
,CHIEF ADMIN OFCR OF THE HOUSE,2014Q2,PERSONNEL COMPENSATION,"","ENGLISH, JOSEPH H",04/01/14,06/30/14,MOBILE COMM SPECIALIST (DATA),"25,295.01",FISCAL YEAR 2014,"","","","ENGLISH, JOSEPH H"
,CHIEF ADMIN OFCR OF THE HOUSE,2014Q2,PERSONNEL COMPENSATION,"","ERVING, JAMES H",04/01/14,06/30/14,COMMUNICATIONS SPECIALIST,"26,199.24",FISCAL YEAR 2014,"","","","ERVING, JAMES H"
,CHIEF ADMIN OFCR OF THE HOUSE,2014Q2,PERSONNEL COMPENSATION,"","EVANS JR, WILLIAM R",04/01/14,06/30/14,ELECTRONICS TECHNICIAN (A),"22,776.51",FISCAL YEAR 2014,"","","","EVANS JR, WILLIAM R"
,CHIEF ADMIN OFCR OF THE HOUSE,2014Q2,PERSONNEL COMPENSATION,"","EVANS JR, WILLIAM R",03/01/14,05/31/14,ELECTRONICS TECHNICIAN (A) (OVERTIME),"1,981.97",FISCAL YEAR 2014,"","","","EVANS JR, WILLIAM R"
,CHIEF ADMIN OFCR OF THE HOUSE,2014Q2,PERSONNEL COMPENSATION,"","EVANS JR, WILLIAM R",05/01/14,05/20/14,ELECTRONICS TECHNICIAN (A) (OTHER COMPENSATION),608.12,FISCAL YEAR 2014,"","","","EVANS JR, WILLIAM R"
,CHIEF ADMIN OFCR OF THE HOUSE,2014Q2,PERSONNEL COMPENSATION,"","EVANS,THOMAS F",03/17/14,06/30/14,INFO SYSTEMS SECURITY ANALYST,"26,620.53",FISCAL YEAR 2014,"","","","EVANS,THOMAS F"
,CHIEF ADMIN OFCR OF THE HOUSE,2014Q2,PERSONNEL COMPENSATION,"","EWERS, GRETCHEN",04/01/14,06/30/14,MANAGER,"26,648.25",FISCAL YEAR 2014,"","","","EWERS, GRETCHEN"
,CHIEF ADMIN OFCR OF THE HOUSE,2014Q2,PERSONNEL COMPENSATION,"","EWING JR, JOHN C",04/01/14,06/30/14,RECEIVING/WAREHOUSE SPECIALIST,"10,890.74",FISCAL YEAR 2014,"","","","EWING JR, JOHN C"
,CHIEF ADMIN OFCR OF THE HOUSE,2014Q2,PERSONNEL COMPENSATION,"","FARLEY, JOANN I",04/01/14,06/30/14,FINANCIAL COUNSELOR,"17,913.00",FISCAL YEAR 2014,"","","","FARLEY, JOANN I"
,CHIEF ADMIN OFCR OF THE HOUSE,2014Q2,PERSONNEL COMPENSATION,"","FISHER, JEROME",04/01/14,06/30/14,SR TECH SOLUTIONS ENGINEER,"24,841.50",FISCAL YEAR 2014,"","","","FISHER, JEROME"
,CHIEF ADMIN OFCR OF THE HOUSE,2014Q2,PERSONNEL COMPENSATION,"","FONTNEAU, BRUCE",04/01/14,06/30/14,SYSTEMS ENGINEER,"23,488.50",FISCAL YEAR 2014,"","","","FONTNEAU, BRUCE"
,CHIEF ADMIN OFCR OF THE HOUSE,2014Q2,PERSONNEL COMPENSATION,"","FORD, DARIN J",04/01/14,06/30/14,SR TECHNICAL SUPPORT REP (A),"22,776.51",FISCAL YEAR 2014,"","","","FORD, DARIN J"
,CHIEF ADMIN OFCR OF THE HOUSE,2014Q2,PERSONNEL COMPENSATION,"","FORGIONE, JOHN A",04/01/14,06/30/14,SR CUSTOMER SOLUTIONS REP,"19,092.24",FISCAL YEAR 2014,"","","","FORGIONE, JOHN A"
,CHIEF ADMIN OFCR OF THE HOUSE,2014Q2,PERSONNEL COMPENSATION,"","FOSTER, CHARLES J",04/01/14,06/30/14,PAYROLL & BENEFITS ASSISTANT,"14,276.01",FISCAL YEAR 2014,"","","","FOSTER, CHARLES J"
,CHIEF ADMIN OFCR OF THE HOUSE,2014Q2,PERSONNEL COMPENSATION,"","FOUNTAIN,ANIKA",04/01/14,06/30/14,TECH SOLUTIONS TECHNICIAN,"17,913.00",FISCAL YEAR 2014,"","","","FOUNTAIN,ANIKA"
,CHIEF ADMIN OFCR OF THE HOUSE,2014Q2,PERSONNEL COMPENSATION,"","FRANK, DEBBIE",04/01/14,06/30/14,SR EA COUNSELOR,"28,458.24",FISCAL YEAR 2014,"","","","FRANK, DEBBIE"
,CHIEF ADMIN OFCR OF THE HOUSE,2014Q2,PERSONNEL COMPENSATION,"","FRAVEL,DON J",04/01/14,06/30/14,TECH SOLUTIONS TECHNICIAN,"17,517.75",FISCAL YEAR 2014,"","","","FRAVEL,DON J"
,CHIEF ADMIN OFCR OF THE HOUSE,2014Q2,PERSONNEL COMPENSATION,"","FRECH, JASON L",04/01/14,06/30/14,SR SYSTEMS ENGINEER,"26,172.00",FISCAL YEAR 2014,"","","","FRECH, JASON L"
,CHIEF ADMIN OFCR OF THE HOUSE,2014Q2,PERSONNEL COMPENSATION,"","FREEMAN, ANTOINETTE P",04/01/14,06/30/14,ADMINISTRATIVE SPECIALIST,"14,955.24",FISCAL YEAR 2014,"","","","FREEMAN, ANTOINETTE P"
,CHIEF ADMIN OFCR OF THE HOUSE,2014Q2,PERSONNEL COMPENSATION,"","FREENEY, MALCOLM",04/01/14,06/30/14,PROJECT MANAGER,"25,746.51",FISCAL YEAR 2014,"","","","FREENEY, MALCOLM"
,CHIEF ADMIN OFCR OF THE HOUSE,2014Q2,PERSONNEL COMPENSATION,"","FRENCH, CAROL",04/01/14,06/30/14,PAYROLL & BENEFITS GENERALIST,"18,304.74",FISCAL YEAR 2014,"","","","FRENCH, CAROL"
,CHIEF ADMIN OFCR OF THE HOUSE,2014Q2,PERSONNEL COMPENSATION,"","FRENCH, CHARLES",04/01/14,06/30/14,SENIOR NETWORK TECHNICIAN,"25,295.01",FISCAL YEAR 2014,"","","","FRENCH, CHARLES"
,CHIEF ADMIN OFCR OF THE HOUSE,2014Q2,PERSONNEL COMPENSATION,"","FRITZ,ERIC D",04/01/14,06/30/14,SENIOR SYSTEMS ENGINEER,"27,197.76",FISCAL YEAR 2014,"","","","FRITZ,ERIC D"
,CHIEF ADMIN OFCR OF THE HOUSE,2014Q2,PERSONNEL COMPENSATION,"","GAINES, JULIA W",04/01/14,06/30/14,SPECIAL ASSISTANT (A),"25,025.01",FISCAL YEAR 2014,"","","","GAINES, JULIA W"
,CHIEF ADMIN OFCR OF THE HOUSE,2014Q2,PERSONNEL COMPENSATION,"","GALLAGHER, RENEE",04/01/14,06/30/14,SR INFO SYST. SECURITY ANALYST,"25,596.01",FISCAL YEAR 2014,"","","","GALLAGHER, RENEE"
,CHIEF ADMIN OFCR OF THE HOUSE,2014Q2,PERSONNEL COMPENSATION,"","GARAY, GERMAN",04/01/14,06/30/14,BROADCAST PRODUCTION TECHNICIA,"22,776.51",FISCAL YEAR 2014,"","","","GARAY, GERMAN"
,CHIEF ADMIN OFCR OF THE HOUSE,2014Q2,PERSONNEL COMPENSATION,"","GARAY, GERMAN",03/01/14,05/31/14,BROADCAST PRODUCTION TECHNICIA (OVERTIME),"3,613.54",FISCAL YEAR 2014,"","","","GARAY, GERMAN"
,CHIEF ADMIN OFCR OF THE HOUSE,2014Q2,PERSONNEL COMPENSATION,"","GARAY, GERMAN",05/01/14,05/20/14,BROADCAST PRODUCTION TECHNICIA (OTHER COMPENSATION),836.56,FISCAL YEAR 2014,"","","","GARAY, GERMAN"
,CHIEF ADMIN OFCR OF THE HOUSE,2014Q2,PERSONNEL COMPENSATION,"","GASKINS, JAMES R",04/01/14,06/30/14,BRANCH MANAGER,"32,388.00",FISCAL YEAR 2014,"","","","GASKINS, JAMES R"
,CHIEF ADMIN OFCR OF THE HOUSE,2014Q2,PERSONNEL COMPENSATION,"","GATES, TRENA F",04/01/14,06/30/14,FINANCIAL COUNSELOR,"20,883.75",FISCAL YEAR 2014,"","","","GATES, TRENA F"
,CHIEF ADMIN OFCR OF THE HOUSE,2014Q2,PERSONNEL COMPENSATION,"","GATES,COREY M",04/01/14,06/30/14,JOURNEYMAN TEXTILE SPEC,"13,254.75",FISCAL YEAR 2014,"","","","GATES,COREY M"
,CHIEF ADMIN OFCR OF THE HOUSE,2014Q2,PERSONNEL COMPENSATION,"","GATES,THOMAS D",04/01/14,06/30/14,SENIOR SYSTEMS ENGINEER,"23,941.50",FISCAL YEAR 2014,"","","","GATES,THOMAS D"
,CHIEF ADMIN OFCR OF THE HOUSE,2014Q2,PERSONNEL COMPENSATION,"","GEPERT,DARLA M",04/01/14,06/30/14,ADMINISTRATIVE SPECIALIST (A),"12,914.25",FISCAL YEAR 2014,"","","","GEPERT,DARLA M"
,CHIEF ADMIN OFCR OF THE HOUSE,2014Q2,PERSONNEL COMPENSATION,"","GEPERT,DARLA M",05/01/14,05/31/14,ADMINISTRATIVE SPECIALIST (A) (OVERTIME),149.01,FISCAL YEAR 2014,"","","","GEPERT,DARLA M"
,CHIEF ADMIN OFCR OF THE HOUSE,2014Q2,PERSONNEL COMPENSATION,"","GERARDEN,PAUL J",04/01/14,06/30/14,CUSTOMER SOLUTIONS REP,"13,594.50",FISCAL YEAR 2014,"","","","GERARDEN,PAUL J"
,CHIEF ADMIN OFCR OF THE HOUSE,2014Q2,PERSONNEL COMPENSATION,"","GILLIS,DANIEL",04/01/14,06/30/14,ADA AIDE,"6,908.07",FISCAL YEAR 2014,"","","","GILLIS,DANIEL"
,CHIEF ADMIN OFCR OF THE HOUSE,2014Q2,PERSONNEL COMPENSATION,"","GILLIS,DANIEL",03/01/14,05/31/14,ADA AIDE (OVERTIME),"6,246.00",FISCAL YEAR 2014,"","","","GILLIS,DANIEL"
,CHIEF ADMIN OFCR OF THE HOUSE,2014Q2,PERSONNEL COMPENSATION,"","GIZARA, MICHAEL P",04/01/14,06/30/14,SR APPLICATION SECURITY ANALYS,"29,252.49",FISCAL YEAR 2014,"","","","GIZARA, MICHAEL P"
,CHIEF ADMIN OFCR OF THE HOUSE,2014Q2,PERSONNEL COMPENSATION,"","GOGGINS II, JAMES D",04/01/14,06/30/14,NETWORK COMM SPECIALIST (A),"22,776.51",FISCAL YEAR 2014,"","","","GOGGINS II, JAMES D"
,CHIEF ADMIN OFCR OF THE HOUSE,2014Q2,PERSONNEL COMPENSATION,"","GOLDSBOROUGH-LEE, ANGEL M",04/01/14,06/30/14,"DIR, TECH MGT & INTERNAL CTRLS","34,892.76",FISCAL YEAR 2014,"","","","GOLDSBOROUGH-LEE, ANGEL M"
,CHIEF ADMIN OFCR OF THE HOUSE,2014Q2,PERSONNEL COMPENSATION,"","GONZALEZ, ROSARIO D",04/01/14,06/30/14,SR CUSTOMER SOLUTIONS REP,"20,093.76",FISCAL YEAR 2014,"","","","GONZALEZ, ROSARIO D"
,CHIEF ADMIN OFCR OF THE HOUSE,2014Q2,PERSONNEL COMPENSATION,"","GOODIN,EMILY L",04/01/14,06/30/14,SENIOR COMMUNICATIONS SPEC,"18,117.24",FISCAL YEAR 2014,"","","","GOODIN,EMILY L"
,CHIEF ADMIN OFCR OF THE HOUSE,2014Q2,PERSONNEL COMPENSATION,"","GOODMAN,JESSICA L",04/01/14,06/30/14,PAYROLL & BENEFITS GENERALIST,"13,606.74",FISCAL YEAR 2014,"","","","GOODMAN,JESSICA L"
,CHIEF ADMIN OFCR OF THE HOUSE,2014Q2,PERSONNEL COMPENSATION,"","GOULD, MICHAEL",04/01/14,06/30/14,"MANAGER, REMEDY MANAGEMENT","30,152.49",FISCAL YEAR 2014,"","","","GOULD, MICHAEL"
,CHIEF ADMIN OFCR OF THE HOUSE,2014Q2,PERSONNEL COMPENSATION,"","GRAEUB, ANDREW C",04/01/14,06/30/14,"MANAGER, NETWORK SYST ENGINEER","34,277.76",FISCAL YEAR 2014,"","","","GRAEUB, ANDREW C"
,CHIEF ADMIN OFCR OF THE HOUSE,2014Q2,PERSONNEL COMPENSATION,"","GRECO,JACQUELINE M",04/01/14,06/30/14,FINANCIAL ASSISTANT,"10,368.24",FISCAL YEAR 2014,"","","","GRECO,JACQUELINE M"
,CHIEF ADMIN OFCR OF THE HOUSE,2014Q2,PERSONNEL COMPENSATION,"","GREEN, CAROLINE",04/01/14,06/30/14,TECHNICAL SUPPORT REP (A),"17,913.00",FISCAL YEAR 2014,"","","","GREEN, CAROLINE"
,CHIEF ADMIN OFCR OF THE HOUSE,2014Q2,PERSONNEL COMPENSATION,"","GREEN, MITCHELL",04/01/14,06/30/14,CONTRACT ADMINISTRATOR,"32,388.00",FISCAL YEAR 2014,"","","","GREEN, MITCHELL"
,CHIEF ADMIN OFCR OF THE HOUSE,2014Q2,PERSONNEL COMPENSATION,"","GREEN,ANDREW L",04/01/14,06/30/14,TECHNICAL SUPPORT REP,"18,117.24",FISCAL YEAR 2014,"","","","GREEN,ANDREW L"
,CHIEF ADMIN OFCR OF THE HOUSE,2014Q2,PERSONNEL COMPENSATION,"","GREENE, CHANTEL T",04/01/14,06/30/14,MGR BUS SYS AND INTEGRATION,"35,512.26",FISCAL YEAR 2014,"","","","GREENE, CHANTEL T"
,CHIEF ADMIN OFCR OF THE HOUSE,2014Q2,PERSONNEL COMPENSATION,"","GRIGGS,KYLE R",03/01/14,06/30/14,CONTRACTS SPECIALIST,"20,526.06",FISCAL YEAR 2014,"","","","GRIGGS,KYLE R"
,CHIEF ADMIN OFCR OF THE HOUSE,2014Q2,PERSONNEL COMPENSATION,"","GRISWOLD,RAYMOND",04/01/14,06/30/14,"DIRECTOR, ACQ & CONTRACT MGMT","33,656.49",FISCAL YEAR 2014,"","","","GRISWOLD,RAYMOND"
,CHIEF ADMIN OFCR OF THE HOUSE,2014Q2,PERSONNEL COMPENSATION,"","GRONSKI,ROBERT S",04/01/14,06/30/14,SR BUSINESS PROCESS APPL SPEC,"30,152.49",FISCAL YEAR 2014,"","","","GRONSKI,ROBERT S"
,CHIEF ADMIN OFCR OF THE HOUSE,2014Q2,PERSONNEL COMPENSATION,"","GUARNERO,DAVID P",04/01/14,06/30/14,PAYROLL & BENEFITS GENERALIST,"15,947.01",FISCAL YEAR 2014,"","","","GUARNERO,DAVID P"
,CHIEF ADMIN OFCR OF THE HOUSE,2014Q2,PERSONNEL COMPENSATION,"","GUDURU,PRATAP K",04/01/14,06/30/14,SENIOR SYSTEMS ENGINEER,"31,269.75",FISCAL YEAR 2014,"","","","GUDURU,PRATAP K"
,CHIEF ADMIN OFCR OF THE HOUSE,2014Q2,PERSONNEL COMPENSATION,"","GUGLIOTTA,NORMAN",04/01/14,06/30/14,FINANCIAL COUNSELOR (A),"16,734.99",FISCAL YEAR 2014,"","","","GUGLIOTTA,NORMAN"
,CHIEF ADMIN OFCR OF THE HOUSE,2014Q2,PERSONNEL COMPENSATION,"","HALL,MORGAN",04/01/14,06/30/14,FACILITIES MANAGEMENT SPECIALI,"17,126.76",FISCAL YEAR 2014,"","","","HALL,MORGAN"
,CHIEF ADMIN OFCR OF THE HOUSE,2014Q2,PERSONNEL COMPENSATION,"","HAMBRIC, STEEN H",04/01/14,06/30/14,ASSISTANT CAO,"42,102.75",FISCAL YEAR 2014,"","","","HAMBRIC, STEEN H"
,CHIEF ADMIN OFCR OF THE HOUSE,2014Q2,PERSONNEL COMPENSATION,"","HAMEL,RYAN T",04/01/14,06/30/14,THIRD ASSISTANT,"16,734.99",FISCAL YEAR 2014,"","","","HAMEL,RYAN T"
,CHIEF ADMIN OFCR OF THE HOUSE,2014Q2,PERSONNEL COMPENSATION,"","HAMNER, PHILIP D",04/01/14,06/30/14,"DIRECTOR, ACCOUNTING","36,133.26",FISCAL YEAR 2014,"","","","HAMNER, PHILIP D"
,CHIEF ADMIN OFCR OF THE HOUSE,2014Q2,PERSONNEL COMPENSATION,"","HANEY, WINSTON",04/01/14,06/30/14,ACCOUNT MANAGEMENT COUNSELOR,"13,936.50",FISCAL YEAR 2014,"","","","HANEY, WINSTON"
,CHIEF ADMIN OFCR OF THE HOUSE,2014Q2,PERSONNEL COMPENSATION,"","HANONU, TINA M",04/01/14,06/30/14,ASSISTANT CAO,"42,102.75",FISCAL YEAR 2014,"","","","HANONU, TINA M"
,CHIEF ADMIN OFCR OF THE HOUSE,2014Q2,PERSONNEL COMPENSATION,"","HAQ,RABIA",01/01/14,06/30/14,BUSINESS PROC APPLIC SPEC,"22,153.37",FISCAL YEAR 2014,"","","","HAQ,RABIA"
,CHIEF ADMIN OFCR OF THE HOUSE,2014Q2,PERSONNEL COMPENSATION,"","HARGROVE, BRIAN",04/01/14,06/30/14,LOGISTICS & DIST SPEC (A),"10,494.99",FISCAL YEAR 2014,"","","","HARGROVE, BRIAN"
,CHIEF ADMIN OFCR OF THE HOUSE,2014Q2,PERSONNEL COMPENSATION,"","HARRELL,VICKIE",04/01/14,06/30/14,NETWORK TECHNICIAN,"22,776.51",FISCAL YEAR 2014,"","","","HARRELL,VICKIE"
,CHIEF ADMIN OFCR OF THE HOUSE,2014Q2,PERSONNEL COMPENSATION,"","HARRINGTON, KEITH",04/01/14,06/30/14,FINANCIAL COUNSELOR,"22,865.76",FISCAL YEAR 2014,"","","","HARRINGTON, KEITH"
,CHIEF ADMIN OFCR OF THE HOUSE,2014Q2,PERSONNEL COMPENSATION,"","HARRIS, DONALD",04/01/14,06/30/14,SR NETWORK COMM SPECIALIST,"28,738.50",FISCAL YEAR 2014,"","","","HARRIS, DONALD"
,CHIEF ADMIN OFCR OF THE HOUSE,2014Q2,PERSONNEL COMPENSATION,"","HARRIS, KEVIN",04/01/14,06/30/14,JOURNEYMAN FURNITURE SPEC,"19,092.24",FISCAL YEAR 2014,"","","","HARRIS, KEVIN"
,CHIEF ADMIN OFCR OF THE HOUSE,2014Q2,PERSONNEL COMPENSATION,"","HARRIS, STEPHANIE A",04/01/14,06/30/14,SR BUSINESS PROC APPL SPEC II,"42,102.75",FISCAL YEAR 2014,"","","","HARRIS, STEPHANIE A"
,CHIEF ADMIN OFCR OF THE HOUSE,2014Q2,PERSONNEL COMPENSATION,"","HARVEY, JAMIE",04/01/14,06/30/14,SR TELECOMMUNICATIONS ADMIN (A,"16,670.25",FISCAL YEAR 2014,"","","","HARVEY, JAMIE"
,CHIEF ADMIN OFCR OF THE HOUSE,2014Q2,PERSONNEL COMPENSATION,"","HARVEY,KINSEY B",04/01/14,06/30/14,MEDIA LOGISTICS COORDINATOR,"16,341.00",FISCAL YEAR 2014,"","","","HARVEY,KINSEY B"
,CHIEF ADMIN OFCR OF THE HOUSE,2014Q2,PERSONNEL COMPENSATION,"","HAYES,KATHLEEN M",04/01/14,06/30/14,CUSTOMER SOLUTIONS REP,"14,626.50",FISCAL YEAR 2014,"","","","HAYES,KATHLEEN M"
,CHIEF ADMIN OFCR OF THE HOUSE,2014Q2,PERSONNEL COMPENSATION,"","HAYES,MICHELLE P",04/01/14,06/30/14,SENIOR SYSTEMS ENGINEER,"31,827.75",FISCAL YEAR 2014,"","","","HAYES,MICHELLE P"
,CHIEF ADMIN OFCR OF THE HOUSE,2014Q2,PERSONNEL COMPENSATION,"","HEEB III, JOHN J",04/01/14,06/30/14,SR BUSINESS PROCESS APPL SPEC,"34,066.74",FISCAL YEAR 2014,"","","","HEEB III, JOHN J"
,CHIEF ADMIN OFCR OF THE HOUSE,2014Q2,PERSONNEL COMPENSATION,"","HEFNER,JEREMY",04/01/14,06/30/14,SR SYSTEMS SECURITY ENGINEER,"32,947.50",FISCAL YEAR 2014,"","","","HEFNER,JEREMY"
,CHIEF ADMIN OFCR OF THE HOUSE,2014Q2,PERSONNEL COMPENSATION,"","HERBERT, GREGORY L",04/01/14,06/30/14,REC/WAREHOUSE SPEC (A),"12,149.76",FISCAL YEAR 2014,"","","","HERBERT, GREGORY L"
,CHIEF ADMIN OFCR OF THE HOUSE,2014Q2,PERSONNEL COMPENSATION,"","HERBERT,DONNA",04/01/14,06/30/14,FINANCIAL ANALYST,"19,697.49",FISCAL YEAR 2014,"","","","HERBERT,DONNA"
,CHIEF ADMIN OFCR OF THE HOUSE,2014Q2,PERSONNEL COMPENSATION,"","HIBBS, CYNTHIA",04/01/14,06/30/14,NETWORK COORDINATOR (A),"19,092.24",FISCAL YEAR 2014,"","","","HIBBS, CYNTHIA"
,CHIEF ADMIN OFCR OF THE HOUSE,2014Q2,PERSONNEL COMPENSATION,"","HIRSCH, PATRICK A",04/01/14,06/30/14,DIR-HOUSE RECORDING STUDIO,"41,365.26",FISCAL YEAR 2014,"","","","HIRSCH, PATRICK A"
,CHIEF ADMIN OFCR OF THE HOUSE,2014Q2,PERSONNEL COMPENSATION,"","HITE,JASON A",04/01/14,06/30/14,CHIEF HUMAN RESOURCES OFFICER,"42,102.75",FISCAL YEAR 2014,"","","","HITE,JASON A"
,CHIEF ADMIN OFCR OF THE HOUSE,2014Q2,PERSONNEL COMPENSATION,"","HOBBS, DENINE",04/01/14,06/30/14,SPECIAL ASSISTANT,"25,143.84",FISCAL YEAR 2014,"","","","HOBBS, DENINE"
,CHIEF ADMIN OFCR OF THE HOUSE,2014Q2,PERSONNEL COMPENSATION,"","HODGES, JOHN E",04/01/14,06/30/14,"MANAGER, SALES & CUSTOMER SVC","25,025.01",FISCAL YEAR 2014,"","","","HODGES, JOHN E"
,CHIEF ADMIN OFCR OF THE HOUSE,2014Q2,PERSONNEL COMPENSATION,"","HOKHOLD, MARK D",04/01/14,06/30/14,SYSTEMS ENGINEER,"25,295.01",FISCAL YEAR 2014,"","","","HOKHOLD, MARK D"
,CHIEF ADMIN OFCR OF THE HOUSE,2014Q2,PERSONNEL COMPENSATION,"","HOLAU,GEORGE",04/01/14,06/30/14,FINANCIAL COUNSELOR,"20,883.75",FISCAL YEAR 2014,"","","","HOLAU,GEORGE"
,CHIEF ADMIN OFCR OF THE HOUSE,2014Q2,PERSONNEL COMPENSATION,"","HOLLAND, GREGORY",04/01/14,06/30/14,LOGISTICS & DIST SPEC (A),"11,683.26",FISCAL YEAR 2014,"","","","HOLLAND, GREGORY"
,CHIEF ADMIN OFCR OF THE HOUSE,2014Q2,PERSONNEL COMPENSATION,"","HOLLEY, STEVEN M",04/01/14,06/30/14,LOGISTICS & DIST SPEC (A),"11,089.74",FISCAL YEAR 2014,"","","","HOLLEY, STEVEN M"
,CHIEF ADMIN OFCR OF THE HOUSE,2014Q2,PERSONNEL COMPENSATION,"","HORNBURG, RICHARD A",04/01/14,06/30/14,BUSINESS PROC APPLIC SPEC,"28,225.74",FISCAL YEAR 2014,"","","","HORNBURG, RICHARD A"
,CHIEF ADMIN OFCR OF THE HOUSE,2014Q2,PERSONNEL COMPENSATION,"","HOWARD, ANTHONY T",04/01/14,06/30/14,JOURNEYMAN TEXTILE SPEC,"16,670.25",FISCAL YEAR 2014,"","","","HOWARD, ANTHONY T"
,CHIEF ADMIN OFCR OF THE HOUSE,2014Q2,PERSONNEL COMPENSATION,"","HUGHES, MICHAEL A",04/01/14,06/30/14,FINANCIAL COUNSELOR,"15,988.26",FISCAL YEAR 2014,"","","","HUGHES, MICHAEL A"
,CHIEF ADMIN OFCR OF THE HOUSE,2014Q2,PERSONNEL COMPENSATION,"","HUNT,DANIEL",04/01/14,06/30/14,SR NETWORK COMM SPECIALIST,"31,269.75",FISCAL YEAR 2014,"","","","HUNT,DANIEL"
,CHIEF ADMIN OFCR OF THE HOUSE,2014Q2,PERSONNEL COMPENSATION,"","HUNTER, STEVE",04/01/14,06/30/14,ACCOUNT MANAGEMENT COUNSELOR,"13,708.50",FISCAL YEAR 2014,"","","","HUNTER, STEVE"
,CHIEF ADMIN OFCR OF THE HOUSE,2014Q2,PERSONNEL COMPENSATION,"","HUNTER, STEVE",05/01/14,05/31/14,ACCOUNT MANAGEMENT COUNSELOR (OVERTIME),588.22,FISCAL YEAR 2014,"","","","HUNTER, STEVE"
,CHIEF ADMIN OFCR OF THE HOUSE,2014Q2,PERSONNEL COMPENSATION,"","HURDA, JACQUELINE L",04/01/14,06/30/14,FINANCIAL COUNSELOR (A),"20,093.76",FISCAL YEAR 2014,"","","","HURDA, JACQUELINE L"
,CHIEF ADMIN OFCR OF THE HOUSE,2014Q2,PERSONNEL COMPENSATION,"","ILOG,ANGELA M",04/01/14,06/30/14,CONTRACTS SUPPORT ADMIN,"14,626.50",FISCAL YEAR 2014,"","","","ILOG,ANGELA M"
,CHIEF ADMIN OFCR OF THE HOUSE,2014Q2,PERSONNEL COMPENSATION,"","JACKSON, REGGIE",04/01/14,06/30/14,SR TECHNICAL SUPPORT REP (A),"23,941.50",FISCAL YEAR 2014,"","","","JACKSON, REGGIE"
,CHIEF ADMIN OFCR OF THE HOUSE,2014Q2,PERSONNEL COMPENSATION,"","JACKSON, WANDA J",04/01/14,06/30/14,TELECOMMUNICATIONS BRANCH MNGR,"27,197.76",FISCAL YEAR 2014,"","","","JACKSON, WANDA J"
,CHIEF ADMIN OFCR OF THE HOUSE,2014Q2,PERSONNEL COMPENSATION,"","JACOBSON, BRADLEY J",04/01/14,06/30/14,BRANCH MANAGER,"34,892.76",FISCAL YEAR 2014,"","","","JACOBSON, BRADLEY J"
,CHIEF ADMIN OFCR OF THE HOUSE,2014Q2,PERSONNEL COMPENSATION,"","JANIFER, ROLAND S",04/01/14,06/30/14,"SUPERVISOR,LOGIS & DIST (A)","18,304.74",FISCAL YEAR 2014,"","","","JANIFER, ROLAND S"
,CHIEF ADMIN OFCR OF THE HOUSE,2014Q2,PERSONNEL COMPENSATION,"","JECKO,BRITTANY E",04/01/14,06/30/14,HUMAN RESOURCES GENERALIST,"15,947.01",FISCAL YEAR 2014,"","","","JECKO,BRITTANY E"
,CHIEF ADMIN OFCR OF THE HOUSE,2014Q2,PERSONNEL COMPENSATION,"","JEFFERSON,KENYATTA",04/01/14,06/30/14,TECHNICAL SUPPORT REP (A),"18,512.25",FISCAL YEAR 2014,"","","","JEFFERSON,KENYATTA"
,CHIEF ADMIN OFCR OF THE HOUSE,2014Q2,PERSONNEL COMPENSATION,"","JENKINS, JAMES",04/01/14,06/30/14,WORKFLOW COORDINATOR,"19,092.24",FISCAL YEAR 2014,"","","","JENKINS, JAMES"
,CHIEF ADMIN OFCR OF THE HOUSE,2014Q2,PERSONNEL COMPENSATION,"","JENNINGS, ARACELI",04/01/14,06/30/14,FINANCE ASSISTANT,"16,670.25",FISCAL YEAR 2014,"","","","JENNINGS, ARACELI"
,CHIEF ADMIN OFCR OF THE HOUSE,2014Q2,PERSONNEL COMPENSATION,"","JOHANN, DEREK",04/01/14,06/30/14,SR RECEIVING & WAREHOUSIN SPEC,"16,670.25",FISCAL YEAR 2014,"","","","JOHANN, DEREK"
,CHIEF ADMIN OFCR OF THE HOUSE,2014Q2,PERSONNEL COMPENSATION,"","JOHNSON, ANDRE",04/01/14,06/30/14,APPLICATION DBA SPECIALIST,"22,927.17",FISCAL YEAR 2014,"","","","JOHNSON, ANDRE"
,CHIEF ADMIN OFCR OF THE HOUSE,2014Q2,PERSONNEL COMPENSATION,"","JOHNSON, DWAYNE",04/01/14,06/30/14,RETAIL INVENTORY SPECIALIST,"14,615.25",FISCAL YEAR 2014,"","","","JOHNSON, DWAYNE"
,CHIEF ADMIN OFCR OF THE HOUSE,2014Q2,PERSONNEL COMPENSATION,"","JOHNSON, ERIC C",03/01/14,06/30/14,LOGISTICS & DIST SPEC (A),"17,151.26",FISCAL YEAR 2014,"","","","JOHNSON, ERIC C"
,CHIEF ADMIN OFCR OF THE HOUSE,2014Q2,PERSONNEL COMPENSATION,"","JOHNSON, MARGARET K",04/01/14,06/30/14,SR MODULAR FURNITURE SPEC,"17,517.75",FISCAL YEAR 2014,"","","","JOHNSON, MARGARET K"
,CHIEF ADMIN OFCR OF THE HOUSE,2014Q2,PERSONNEL COMPENSATION,"","JOHNSON, REGINALD",04/01/14,06/30/14,FINANCIAL COUNSELOR (A),"17,517.75",FISCAL YEAR 2014,"","","","JOHNSON, REGINALD"
,CHIEF ADMIN OFCR OF THE HOUSE,2014Q2,PERSONNEL COMPENSATION,"","JOHNSON, ROBERT C",04/01/14,06/30/14,SENIOR SYSTEMS ENGINEER,"29,936.49",FISCAL YEAR 2014,"","","","JOHNSON, ROBERT C"
,CHIEF ADMIN OFCR OF THE HOUSE,2014Q2,PERSONNEL COMPENSATION,"","JOHNSON,KWASI Z",04/01/14,06/30/14,LOGISTICS & DIST SPEC (A),"9,092.49",FISCAL YEAR 2014,"","","","JOHNSON,KWASI Z"
,CHIEF ADMIN OFCR OF THE HOUSE,2014Q2,PERSONNEL COMPENSATION,"","JONES III,CLARENCE",04/01/14,06/30/14,SENIOR NETWORK TECHNICIAN,"19,301.76",FISCAL YEAR 2014,"","","","JONES III,CLARENCE"
,CHIEF ADMIN OFCR OF THE HOUSE,2014Q2,PERSONNEL COMPENSATION,"","JONES JR, CHARLES J",04/01/14,06/30/14,NETWORK COMM SPECIALIST,"24,392.01",FISCAL YEAR 2014,"","","","JONES JR, CHARLES J"
,CHIEF ADMIN OFCR OF THE HOUSE,2014Q2,PERSONNEL COMPENSATION,"","JONES, DEBORAH D",04/01/14,06/30/14,FINANCIAL COUNSELOR,"21,280.74",FISCAL YEAR 2014,"","","","JONES, DEBORAH D"
,CHIEF ADMIN OFCR OF THE HOUSE,2014Q2,PERSONNEL COMPENSATION,"","JONES, MITCHAEL",04/01/14,06/30/14,TECHNICAL TRAINER,"20,093.76",FISCAL YEAR 2014,"","","","JONES, MITCHAEL"
,CHIEF ADMIN OFCR OF THE HOUSE,2014Q2,PERSONNEL COMPENSATION,"","JONES, STEPHEN E",04/01/14,06/30/14,SENIOR SYSTEMS ENGINEER,"30,709.26",FISCAL YEAR 2014,"","","","JONES, STEPHEN E"
,CHIEF ADMIN OFCR OF THE HOUSE,2014Q2,PERSONNEL COMPENSATION,"","JONES, WESLEY D",04/01/14,06/30/14,LOGISTICS & DIST SPEC (A),"11,386.74",FISCAL YEAR 2014,"","","","JONES, WESLEY D"
,CHIEF ADMIN OFCR OF THE HOUSE,2014Q2,PERSONNEL COMPENSATION,"","JONES,RODNEY B",04/01/14,06/30/14,SR TECHNICAL SUPPORT REP,"21,426.99",FISCAL YEAR 2014,"","","","JONES,RODNEY B"
,CHIEF ADMIN OFCR OF THE HOUSE,2014Q2,PERSONNEL COMPENSATION,"","JONES,YOLANDA S",04/01/14,06/30/14,PAYROLL & BENEFITS GENERALIST,"16,341.00",FISCAL YEAR 2014,"","","","JONES,YOLANDA S"
,CHIEF ADMIN OFCR OF THE HOUSE,2014Q2,PERSONNEL COMPENSATION,"","JORDAN, YONG O",04/01/14,06/30/14,SR TECH SOLUTIONS ENGINEER,"24,841.50",FISCAL YEAR 2014,"","","","JORDAN, YONG O"
,CHIEF ADMIN OFCR OF THE HOUSE,2014Q2,PERSONNEL COMPENSATION,"","JORDAN,CHRISTOPHER",04/01/14,06/30/14,DIRECTOR BUSINESS CONTINUITY,"38,975.76",FISCAL YEAR 2014,"","","","JORDAN,CHRISTOPHER"
,CHIEF ADMIN OFCR OF THE HOUSE,2014Q2,PERSONNEL COMPENSATION,"","JOYCE, ERIC",04/01/14,06/30/14,SUPERVISOR,"28,225.74",FISCAL YEAR 2014,"","","","JOYCE, ERIC"
,CHIEF ADMIN OFCR OF THE HOUSE,2014Q2,PERSONNEL COMPENSATION,"","JUDGE, NANCY",04/01/14,06/30/14,CUSTOMER SOLUTIONS REP,"15,645.99",FISCAL YEAR 2014,"","","","JUDGE, NANCY"
,CHIEF ADMIN OFCR OF THE HOUSE,2014Q2,PERSONNEL COMPENSATION,"","KAHLER, KENT",04/01/14,06/30/14,SYSTEMS ENGINEER,"25,295.01",FISCAL YEAR 2014,"","","","KAHLER, KENT"
,CHIEF ADMIN OFCR OF THE HOUSE,2014Q2,PERSONNEL COMPENSATION,"","KAPLAN,LEAH",04/01/14,06/30/14,MEDIA LOGISTICS ASSISTANT,"12,577.74",FISCAL YEAR 2014,"","","","KAPLAN,LEAH"
,CHIEF ADMIN OFCR OF THE HOUSE,2014Q2,PERSONNEL COMPENSATION,"","KEANE, MICHAEL T",04/01/14,06/30/14,"MANAGER, WORKFLOW MANAGEMENT","23,037.00",FISCAL YEAR 2014,"","","","KEANE, MICHAEL T"
,CHIEF ADMIN OFCR OF THE HOUSE,2014Q2,PERSONNEL COMPENSATION,"","KELLAHER,ANTHONY",04/01/14,06/30/14,MEDIA LOGISTICS COORDINATOR,"18,512.25",FISCAL YEAR 2014,"","","","KELLAHER,ANTHONY"
,CHIEF ADMIN OFCR OF THE HOUSE,2014Q2,PERSONNEL COMPENSATION,"","KELLEY, KEVIN S",04/01/14,06/30/14,CUSTOMER SOLUTIONS REP,"16,328.76",FISCAL YEAR 2014,"","","","KELLEY, KEVIN S"
,CHIEF ADMIN OFCR OF THE HOUSE,2014Q2,PERSONNEL COMPENSATION,"","KELLEY, MARY M",04/01/14,06/30/14,RESOURCE MANAGER,"29,252.49",FISCAL YEAR 2014,"","","","KELLEY, MARY M"
,CHIEF ADMIN OFCR OF THE HOUSE,2014Q2,PERSONNEL COMPENSATION,"","KELLEY, TARA A",04/01/14,06/30/14,COMMUNICATIONS SPEC (A),"21,280.74",FISCAL YEAR 2014,"","","","KELLEY, TARA A"
,CHIEF ADMIN OFCR OF THE HOUSE,2014Q2,PERSONNEL COMPENSATION,"","KEMP, DAVID S",04/01/14,06/30/14,SENIOR SYSTEMS ENGINEER,"33,505.50",FISCAL YEAR 2014,"","","","KEMP, DAVID S"
,CHIEF ADMIN OFCR OF THE HOUSE,2014Q2,PERSONNEL COMPENSATION,"","KENEALY, PATRICK T",04/01/14,06/30/14,FINANCIAL ANALYST,"35,184.99",FISCAL YEAR 2014,"","","","KENEALY, PATRICK T"
,CHIEF ADMIN OFCR OF THE HOUSE,2014Q2,PERSONNEL COMPENSATION,"","KILSON,FRANKLIN P",04/01/14,06/30/14,NETWORK TECHNICIAN,"21,879.75",FISCAL YEAR 2014,"","","","KILSON,FRANKLIN P"
,CHIEF ADMIN OFCR OF THE HOUSE,2014Q2,PERSONNEL COMPENSATION,"","KIMBALL, MARK E",04/01/14,06/30/14,SR TECHNICAL SUPPORT REP (A),"22,328.01",FISCAL YEAR 2014,"","","","KIMBALL, MARK E"
,CHIEF ADMIN OFCR OF THE HOUSE,2014Q2,PERSONNEL COMPENSATION,"","KING, JOHN A",04/01/14,06/30/14,"SUPERVISOR,LOGISTICS & DIST (A","17,913.00",FISCAL YEAR 2014,"","","","KING, JOHN A"
,CHIEF ADMIN OFCR OF THE HOUSE,2014Q2,PERSONNEL COMPENSATION,"","KLEMP, CAROLINE",04/01/14,06/30/14,DIRECTOR MEMBERS' SERVICES,"35,184.99",FISCAL YEAR 2014,"","","","KLEMP, CAROLINE"
,CHIEF ADMIN OFCR OF THE HOUSE,2014Q2,PERSONNEL COMPENSATION,"","KLUSSENDORF, KATHLEEN M",04/01/14,06/30/14,SPECIAL ASSISTANT,"27,553.26",FISCAL YEAR 2014,"","","","KLUSSENDORF, KATHLEEN M"
,CHIEF ADMIN OFCR OF THE HOUSE,2014Q2,PERSONNEL COMPENSATION,"","KNELL, KATHERINE A",04/01/14,06/30/14,HRIS APPLICATIONS MANAGER,"40,192.26",FISCAL YEAR 2014,"","","","KNELL, KATHERINE A"
,CHIEF ADMIN OFCR OF THE HOUSE,2014Q2,PERSONNEL COMPENSATION,"","KNOERL, THOMAS K",04/01/14,06/30/14,NETWORK COMMUNICATIONS SPEC,"26,648.25",FISCAL YEAR 2014,"","","","KNOERL, THOMAS K"
,CHIEF ADMIN OFCR OF THE HOUSE,2014Q2,PERSONNEL COMPENSATION,"","KONOPATSKI,FRANK",04/01/14,06/30/14,SR COMM SECURITY ANALYST,"24,392.01",FISCAL YEAR 2014,"","","","KONOPATSKI,FRANK"
,CHIEF ADMIN OFCR OF THE HOUSE,2014Q2,PERSONNEL COMPENSATION,"","KORNACKI, OLGA R",04/01/14,06/30/14,DIRECTOR,"32,947.50",FISCAL YEAR 2014,"","","","KORNACKI, OLGA R"
,CHIEF ADMIN OFCR OF THE HOUSE,2014Q2,PERSONNEL COMPENSATION,"","KOSH, EMORY A",04/01/14,05/31/14,PAYROLL & BENEFITS GENERALIST,"6,322.11",FISCAL YEAR 2014,"","","","KOSH, EMORY A"
,CHIEF ADMIN OFCR OF THE HOUSE,2014Q2,PERSONNEL COMPENSATION,"","KOSH, EMORY A",01/01/14,01/31/14,PAYROLL & BENEFITS GENERALIST (OVERTIME),612.78,FISCAL YEAR 2014,"","","","KOSH, EMORY A"
,CHIEF ADMIN OFCR OF THE HOUSE,2014Q2,PERSONNEL COMPENSATION,"","KOSH, EMORY A",05/01/14,05/31/14,PAYROLL & BENEFITS GENERALIST (OTHER COMPENSATION),755.40,FISCAL YEAR 2014,"","","","KOSH, EMORY A"
,CHIEF ADMIN OFCR OF THE HOUSE,2014Q2,PERSONNEL COMPENSATION,"","KOZTOSKI, DOUGLAS W",04/01/14,06/30/14,BROADCAST PRODUCTION TECHNICIA,"19,565.58",FISCAL YEAR 2014,"","","","KOZTOSKI, DOUGLAS W"
,CHIEF ADMIN OFCR OF THE HOUSE,2014Q2,PERSONNEL COMPENSATION,"","KOZTOSKI, DOUGLAS W",03/01/14,05/31/14,BROADCAST PRODUCTION TECHNICIA (OVERTIME),982.34,FISCAL YEAR 2014,"","","","KOZTOSKI, DOUGLAS W"
,CHIEF ADMIN OFCR OF THE HOUSE,2014Q2,PERSONNEL COMPENSATION,"","KOZTOSKI, DOUGLAS W",05/01/14,05/20/14,BROADCAST PRODUCTION TECHNICIA (OTHER COMPENSATION),349.14,FISCAL YEAR 2014,"","","","KOZTOSKI, DOUGLAS W"
,CHIEF ADMIN OFCR OF THE HOUSE,2014Q2,PERSONNEL COMPENSATION,"","KRAFT,NORMAN R",04/01/14,06/30/14,INTERNET SYSTEMS SPECIALIST,"23,037.00",FISCAL YEAR 2014,"","","","KRAFT,NORMAN R"
,CHIEF ADMIN OFCR OF THE HOUSE,2014Q2,PERSONNEL COMPENSATION,"","KRALY,ELIZABETH A",04/01/14,06/30/14,"MANAGER, CAO HUMAN RESOURCES","27,197.76",FISCAL YEAR 2014,"","","","KRALY,ELIZABETH A"
,CHIEF ADMIN OFCR OF THE HOUSE,2014Q2,PERSONNEL COMPENSATION,"","KRAMER, STEPHEN",04/01/14,06/30/14,NETWORK COMMUNICATIONS SPEC,"25,295.01",FISCAL YEAR 2014,"","","","KRAMER, STEPHEN"
,CHIEF ADMIN OFCR OF THE HOUSE,2014Q2,PERSONNEL COMPENSATION,"","KREMKAU,REBECCA K",04/01/14,06/30/14,FINANCIAL ANALYST,"21,426.99",FISCAL YEAR 2014,"","","","KREMKAU,REBECCA K"
,CHIEF ADMIN OFCR OF THE HOUSE,2014Q2,PERSONNEL COMPENSATION,"","KUPER, KAREN",04/01/14,06/30/14,SPECIAL ASSISTANT/OPER SUPERVI,"25,295.01",FISCAL YEAR 2014,"","","","KUPER, KAREN"
,CHIEF ADMIN OFCR OF THE HOUSE,2014Q2,PERSONNEL COMPENSATION,"","LAGASSE, DANIEL",04/01/14,06/30/14,MOBILE COMM SPEC - TELEPHONY,"31,301.76",FISCAL YEAR 2014,"","","","LAGASSE, DANIEL"
,CHIEF ADMIN OFCR OF THE HOUSE,2014Q2,PERSONNEL COMPENSATION,"","LAU,DAVID E",04/01/14,06/30/14,INFORMATION SECURITY MANAGER,"33,041.76",FISCAL YEAR 2014,"","","","LAU,DAVID E"
,CHIEF ADMIN OFCR OF THE HOUSE,2014Q2,PERSONNEL COMPENSATION,"","LEBER, DENNIS",04/01/14,06/30/14,SR NETWORK SYSTEMS ENGINEER,"28,225.74",FISCAL YEAR 2014,"","","","LEBER, DENNIS"
,CHIEF ADMIN OFCR OF THE HOUSE,2014Q2,PERSONNEL COMPENSATION,"","LEE, DARNELL A",04/01/14,06/30/14,ASSISTANT CAO,"36,539.76",FISCAL YEAR 2014,"","","","LEE, DARNELL A"
,CHIEF ADMIN OFCR OF THE HOUSE,2014Q2,PERSONNEL COMPENSATION,"","LEIBACH,WILLIAM",04/01/14,06/30/14,"DIRECTOR, INTERNAL CONTROLS","33,656.49",FISCAL YEAR 2014,"","","","LEIBACH,WILLIAM"
,CHIEF ADMIN OFCR OF THE HOUSE,2014Q2,PERSONNEL COMPENSATION,"","LEIBY,FREDERICK",04/01/14,06/30/14,CONTRACT ADMINISTRATOR,"18,117.24",FISCAL YEAR 2014,"","","","LEIBY,FREDERICK"
,CHIEF ADMIN OFCR OF THE HOUSE,2014Q2,PERSONNEL COMPENSATION,"","LEON-CAMPOS, CARLOS",04/01/14,06/30/14,MANAGER,"24,841.50",FISCAL YEAR 2014,"","","","LEON-CAMPOS, CARLOS"
,CHIEF ADMIN OFCR OF THE HOUSE,2014Q2,PERSONNEL COMPENSATION,"","LEONARD,DENISE D",04/01/14,06/30/14,WORKFLOW COORDINATOR,"15,947.01",FISCAL YEAR 2014,"","","","LEONARD,DENISE D"
,CHIEF ADMIN OFCR OF THE HOUSE,2014Q2,PERSONNEL COMPENSATION,"","LESNEWSKY,ERIK",04/01/14,06/30/14,ADA AIDE,"6,280.05",FISCAL YEAR 2014,"","","","LESNEWSKY,ERIK"
,CHIEF ADMIN OFCR OF THE HOUSE,2014Q2,PERSONNEL COMPENSATION,"","LESNEWSKY,ERIK",03/01/14,05/31/14,ADA AIDE (OVERTIME),"8,085.45",FISCAL YEAR 2014,"","","","LESNEWSKY,ERIK"
,CHIEF ADMIN OFCR OF THE HOUSE,2014Q2,PERSONNEL COMPENSATION,"","LEVENGOOD, DAVID S",04/01/14,06/30/14,TECHNICAL TRAINER,"18,906.51",FISCAL YEAR 2014,"","","","LEVENGOOD, DAVID S"
,CHIEF ADMIN OFCR OF THE HOUSE,2014Q2,PERSONNEL COMPENSATION,"","LEWIS, JOHN T",04/01/14,06/30/14,DIRECTOR FURNISHINGS,"28,225.74",FISCAL YEAR 2014,"","","","LEWIS, JOHN T"
,CHIEF ADMIN OFCR OF THE HOUSE,2014Q2,PERSONNEL COMPENSATION,"","LEWIS, ROBERT M",04/01/14,06/30/14,PHOTOGRAPHIC LAB TECHNICIAN,"17,347.74",FISCAL YEAR 2014,"","","","LEWIS, ROBERT M"
,CHIEF ADMIN OFCR OF THE HOUSE,2014Q2,PERSONNEL COMPENSATION,"","LIM,CHAU T",04/01/14,06/30/14,SENIOR ACCOUNTANT (A),"25,295.01",FISCAL YEAR 2014,"","","","LIM,CHAU T"
,CHIEF ADMIN OFCR OF THE HOUSE,2014Q2,PERSONNEL COMPENSATION,"","LINVILLE, RAY A",04/01/14,06/30/14,SENIOR SYSTEMS ENGINEER,"30,278.49",FISCAL YEAR 2014,"","","","LINVILLE, RAY A"
,CHIEF ADMIN OFCR OF THE HOUSE,2014Q2,PERSONNEL COMPENSATION,"","LITTLE, ANDREAL P",04/01/14,06/30/14,ADMINISTRATIVE SPECIALIST,"16,328.76",FISCAL YEAR 2014,"","","","LITTLE, ANDREAL P"
,CHIEF ADMIN OFCR OF THE HOUSE,2014Q2,PERSONNEL COMPENSATION,"","LITTLE, HAROLD M",04/01/14,06/30/14,SR TECH SOLUTIONS ENGINEER,"24,392.01",FISCAL YEAR 2014,"","","","LITTLE, HAROLD M"
,CHIEF ADMIN OFCR OF THE HOUSE,2014Q2,PERSONNEL COMPENSATION,"","LOGAN, KATHERINE J",04/01/14,06/30/14,DIRECTOR PAYROLL AND BENEFITS,"40,192.26",FISCAL YEAR 2014,"","","","LOGAN, KATHERINE J"
,CHIEF ADMIN OFCR OF THE HOUSE,2014Q2,PERSONNEL COMPENSATION,"","LONG, JOHN P",04/01/14,06/30/14,SR MODULAR FURNITURE SPEC,"25,926.24",FISCAL YEAR 2014,"","","","LONG, JOHN P"
,CHIEF ADMIN OFCR OF THE HOUSE,2014Q2,PERSONNEL COMPENSATION,"","LOVING, ANTHONY",04/01/14,06/30/14,APPLICATION DBA SPECIALIST,"28,225.74",FISCAL YEAR 2014,"","","","LOVING, ANTHONY"
,CHIEF ADMIN OFCR OF THE HOUSE,2014Q2,PERSONNEL COMPENSATION,"","MAAS, JENNIFER A",04/01/14,06/30/14,"MGR, USER EXPERIENCE & DESIGN","26,687.01",FISCAL YEAR 2014,"","","","MAAS, JENNIFER A"
,CHIEF ADMIN OFCR OF THE HOUSE,2014Q2,PERSONNEL COMPENSATION,"","MAGNOTTI IV,LOUIS",04/01/14,06/30/14,AUDIO SPECIALIST,"17,720.01",FISCAL YEAR 2014,"","","","MAGNOTTI IV,LOUIS"
,CHIEF ADMIN OFCR OF THE HOUSE,2014Q2,PERSONNEL COMPENSATION,"","MAGNOTTI IV,LOUIS",05/01/14,05/20/14,AUDIO SPECIALIST (OTHER COMPENSATION),8.52,FISCAL YEAR 2014,"","","","MAGNOTTI IV,LOUIS"
,CHIEF ADMIN OFCR OF THE HOUSE,2014Q2,PERSONNEL COMPENSATION,"","MAGRUDER, TIMOTHY",04/01/14,06/30/14,JOURNEYMAN FURNITURE SPEC,"15,645.99",FISCAL YEAR 2014,"","","","MAGRUDER, TIMOTHY"
,CHIEF ADMIN OFCR OF THE HOUSE,2014Q2,PERSONNEL COMPENSATION,"","MAHAR,EDWARD A",04/01/14,06/30/14,"DIR, INFO SYSTEMS SECURITY","37,758.00",FISCAL YEAR 2014,"","","","MAHAR,EDWARD A"
,CHIEF ADMIN OFCR OF THE HOUSE,2014Q2,PERSONNEL COMPENSATION,"","MAIDEN III, LEWIS L",04/01/14,06/30/14,LOGISTICS & DIST SPEC (A),"14,615.25",FISCAL YEAR 2014,"","","","MAIDEN III, LEWIS L"
,CHIEF ADMIN OFCR OF THE HOUSE,2014Q2,PERSONNEL COMPENSATION,"","MALASPINA,KIMBERLY J",04/01/14,06/30/14,JOURNEYMAN TEXTILE SPEC,"17,126.76",FISCAL YEAR 2014,"","","","MALASPINA,KIMBERLY J"
,CHIEF ADMIN OFCR OF THE HOUSE,2014Q2,PERSONNEL COMPENSATION,"","MALLON, MICHAEL P",04/01/14,06/30/14,RESOURCE ANALYST,"22,927.17",FISCAL YEAR 2014,"","","","MALLON, MICHAEL P"
,CHIEF ADMIN OFCR OF THE HOUSE,2014Q2,PERSONNEL COMPENSATION,"","MALLOY, DEON",04/01/14,06/30/14,SR TECHNICAL SUPPORT REP (A),"22,328.01",FISCAL YEAR 2014,"","","","MALLOY, DEON"
,CHIEF ADMIN OFCR OF THE HOUSE,2014Q2,PERSONNEL COMPENSATION,"","MANSON, JOHN L",04/01/14,06/30/14,SR NETWORK COMM SPEC (A),"30,278.49",FISCAL YEAR 2014,"","","","MANSON, JOHN L"
,CHIEF ADMIN OFCR OF THE HOUSE,2014Q2,PERSONNEL COMPENSATION,"","MARCUM JR, VINCENT L",04/01/14,06/30/14,JOURNEYMAN TEXTILE SPEC,"19,092.24",FISCAL YEAR 2014,"","","","MARCUM JR, VINCENT L"
,CHIEF ADMIN OFCR OF THE HOUSE,2014Q2,PERSONNEL COMPENSATION,"","MARCUS, RALPH J",04/01/14,06/30/14,TECHNICAL DIRECTOR (A),"24,392.01",FISCAL YEAR 2014,"","","","MARCUS, RALPH J"
,CHIEF ADMIN OFCR OF THE HOUSE,2014Q2,PERSONNEL COMPENSATION,"","MARCUS, RALPH J",03/01/14,05/31/14,TECHNICAL DIRECTOR (A) (OVERTIME),"2,040.46",FISCAL YEAR 2014,"","","","MARCUS, RALPH J"
,CHIEF ADMIN OFCR OF THE HOUSE,2014Q2,PERSONNEL COMPENSATION,"","MARCUS, RALPH J",05/01/14,05/20/14,TECHNICAL DIRECTOR (A) (OTHER COMPENSATION),454.68,FISCAL YEAR 2014,"","","","MARCUS, RALPH J"
,CHIEF ADMIN OFCR OF THE HOUSE,2014Q2,PERSONNEL COMPENSATION,"","MARSH, STEVE W",04/01/14,06/30/14,"MANAGER, ACCOUNTING","29,252.49",FISCAL YEAR 2014,"","","","MARSH, STEVE W"
,CHIEF ADMIN OFCR OF THE HOUSE,2014Q2,PERSONNEL COMPENSATION,"","MARTIN, CHRISTOPHER W",04/01/14,06/30/14,JOURNEYMAN FURNITURE SPEC,"19,877.25",FISCAL YEAR 2014,"","","","MARTIN, CHRISTOPHER W"
,CHIEF ADMIN OFCR OF THE HOUSE,2014Q2,PERSONNEL COMPENSATION,"","MARTINEZ, JAIME D",04/01/14,06/30/14,SENIOR SYSTEMS ENGINEER,"28,738.50",FISCAL YEAR 2014,"","","","MARTINEZ, JAIME D"
,CHIEF ADMIN OFCR OF THE HOUSE,2014Q2,PERSONNEL COMPENSATION,"","MARTINS, RICHARD",04/01/14,06/30/14,MANAGER NETWORK CONFIG. MNGMNT,"34,892.76",FISCAL YEAR 2014,"","","","MARTINS, RICHARD"
,CHIEF ADMIN OFCR OF THE HOUSE,2014Q2,PERSONNEL COMPENSATION,"","MASHETER JR, FREDERICK J",04/01/14,06/30/14,PURCHASING AGENT,"14,955.24",FISCAL YEAR 2014,"","","","MASHETER JR, FREDERICK J"
,CHIEF ADMIN OFCR OF THE HOUSE,2014Q2,PERSONNEL COMPENSATION,"","MASON, TRON",04/01/14,06/30/14,SR NETWORK COMM SPEC,"25,143.84",FISCAL YEAR 2014,"","","","MASON, TRON"
,CHIEF ADMIN OFCR OF THE HOUSE,2014Q2,PERSONNEL COMPENSATION,"","MASSENGALE, DOUG",04/01/14,06/30/14,CHIEF ENGINEER,"31,269.75",FISCAL YEAR 2014,"","","","MASSENGALE, DOUG"
,CHIEF ADMIN OFCR OF THE HOUSE,2014Q2,PERSONNEL COMPENSATION,"","MASSENGALE, DOUG",05/01/14,05/20/14,CHIEF ENGINEER (OTHER COMPENSATION),96.33,FISCAL YEAR 2014,"","","","MASSENGALE, DOUG"
,CHIEF ADMIN OFCR OF THE HOUSE,2014Q2,PERSONNEL COMPENSATION,"","MATADIAL, GLORIA V",04/01/14,06/30/14,SUPERVISOR,"28,738.50",FISCAL YEAR 2014,"","","","MATADIAL, GLORIA V"
,CHIEF ADMIN OFCR OF THE HOUSE,2014Q2,PERSONNEL COMPENSATION,"","MATHIS,MARC R",04/01/14,06/30/14,NETWORK TECHNICIAN,"19,697.49",FISCAL YEAR 2014,"","","","MATHIS,MARC R"
,CHIEF ADMIN OFCR OF THE HOUSE,2014Q2,PERSONNEL COMPENSATION,"","MATTHEWS,LEVI S",04/01/14,06/30/14,SUPERVISOR,"22,735.00",FISCAL YEAR 2014,"","","","MATTHEWS,LEVI S"
,CHIEF ADMIN OFCR OF THE HOUSE,2014Q2,PERSONNEL COMPENSATION,"","MAULDIN,EVAN B",04/01/14,06/30/14,FINANCIAL ANALYST,"20,093.76",FISCAL YEAR 2014,"","","","MAULDIN,EVAN B"
,CHIEF ADMIN OFCR OF THE HOUSE,2014Q2,PERSONNEL COMPENSATION,"","MAZZULLO, MICHAEL A",04/01/14,06/30/14,RECEIVING/WAREHOUSE SPEC,"11,386.74",FISCAL YEAR 2014,"","","","MAZZULLO, MICHAEL A"
,CHIEF ADMIN OFCR OF THE HOUSE,2014Q2,PERSONNEL COMPENSATION,"","MCBRIDE-CHAMBERS, LISBETH",04/01/14,06/30/14,SR EA COUNSELOR,"32,331.00",FISCAL YEAR 2014,"","","","MCBRIDE-CHAMBERS, LISBETH"
,CHIEF ADMIN OFCR OF THE HOUSE,2014Q2,PERSONNEL COMPENSATION,"","MCCAULEY, ERICA C",04/01/14,06/30/14,FINANCIAL COUNSELOR,"16,341.00",FISCAL YEAR 2014,"","","","MCCAULEY, ERICA C"
,CHIEF ADMIN OFCR OF THE HOUSE,2014Q2,PERSONNEL COMPENSATION,"","MCCUE, BRIAN M",04/01/14,06/30/14,FINANCIAL ANALYST,"18,906.51",FISCAL YEAR 2014,"","","","MCCUE, BRIAN M"
,CHIEF ADMIN OFCR OF THE HOUSE,2014Q2,PERSONNEL COMPENSATION,"","MCDONALD, BRADLEY A",04/01/14,06/30/14,"MANAGER, ENTERPRISE APPL SUPP","35,512.26",FISCAL YEAR 2014,"","","","MCDONALD, BRADLEY A"
,CHIEF ADMIN OFCR OF THE HOUSE,2014Q2,PERSONNEL COMPENSATION,"","MCFADDEN, SAINT JUAN",04/01/14,06/30/14,SR PAYROLL & BENS GENERALIST,"20,526.99",FISCAL YEAR 2014,"","","","MCFADDEN, SAINT JUAN"
,CHIEF ADMIN OFCR OF THE HOUSE,2014Q2,PERSONNEL COMPENSATION,"","MCFADDEN,MIRANDA J",04/01/14,06/30/14,FINANCIAL ANALYST,"21,879.75",FISCAL YEAR 2014,"","","","MCFADDEN,MIRANDA J"
,CHIEF ADMIN OFCR OF THE HOUSE,2014Q2,PERSONNEL COMPENSATION,"","MCGARRY, THOMAS K",04/01/14,06/30/14,JOURNEYMAN FURNITURE SPEC,"19,877.25",FISCAL YEAR 2014,"","","","MCGARRY, THOMAS K"
,CHIEF ADMIN OFCR OF THE HOUSE,2014Q2,PERSONNEL COMPENSATION,"","MCKITTRICK, DAVID E",04/01/14,06/30/14,SR BUSINESS PROCESS APPL SPEC,"37,371.24",FISCAL YEAR 2014,"","","","MCKITTRICK, DAVID E"
,CHIEF ADMIN OFCR OF THE HOUSE,2014Q2,PERSONNEL COMPENSATION,"","MCLAUGHLIN,VERA",05/01/14,05/01/14,SPECIAL ASSISTANT (OTHER COMPENSATION),"6,433.92",FISCAL YEAR 2014,"","","","MCLAUGHLIN,VERA"
,CHIEF ADMIN OFCR OF THE HOUSE,2014Q2,PERSONNEL COMPENSATION,"","MCLEAN,MATTHEW",04/01/14,06/30/14,DIRECTOR ENTERPRISE OPERATIONS,"36,539.76",FISCAL YEAR 2014,"","","","MCLEAN,MATTHEW"
,CHIEF ADMIN OFCR OF THE HOUSE,2014Q2,PERSONNEL COMPENSATION,"","MEEK, KATHRYN H",04/01/14,06/30/14,SR INTERNET SYSTEMS SPECIALIST,"33,505.50",FISCAL YEAR 2014,"","","","MEEK, KATHRYN H"
,CHIEF ADMIN OFCR OF THE HOUSE,2014Q2,PERSONNEL COMPENSATION,"","MEISTER, DARLENE T",04/01/14,06/30/14,"DIR, DIVERSITY & ORG CHGE MGT","33,656.49",FISCAL YEAR 2014,"","","","MEISTER, DARLENE T"
,CHIEF ADMIN OFCR OF THE HOUSE,2014Q2,PERSONNEL COMPENSATION,"","MELVIN, MICHAEL C",04/01/14,06/30/14,TECHNICAL SUPPORT REP,"20,093.76",FISCAL YEAR 2014,"","","","MELVIN, MICHAEL C"
,CHIEF ADMIN OFCR OF THE HOUSE,2014Q2,PERSONNEL COMPENSATION,"","MENDOZA,LYDIA",04/01/14,06/30/14,PAYROLL & BENEFITS GENERALIST,"16,734.99",FISCAL YEAR 2014,"","","","MENDOZA,LYDIA"
,CHIEF ADMIN OFCR OF THE HOUSE,2014Q2,PERSONNEL COMPENSATION,"","MEREDITH, DWAINE",04/01/14,06/30/14,LOGISTICS & DIST SPEC (A),"10,494.99",FISCAL YEAR 2014,"","","","MEREDITH, DWAINE"
,CHIEF ADMIN OFCR OF THE HOUSE,2014Q2,PERSONNEL COMPENSATION,"","METZLER,FRANMARIE",03/01/14,05/30/14,PHOTOGRAPHER/LAB TECH (TEMP),"12,890.42",FISCAL YEAR 2014,"","","","METZLER,FRANMARIE"
,CHIEF ADMIN OFCR OF THE HOUSE,2014Q2,PERSONNEL COMPENSATION,"","MICHALEK, WILLIAM",04/01/14,06/30/14,BILLING ADMINISTRATOR,"17,347.74",FISCAL YEAR 2014,"","","","MICHALEK, WILLIAM"
,CHIEF ADMIN OFCR OF THE HOUSE,2014Q2,PERSONNEL COMPENSATION,"","MILASI, FRANCESCO",04/01/14,06/30/14,SENIOR NETWORK TECHNICIAN (A),"24,127.26",FISCAL YEAR 2014,"","","","MILASI, FRANCESCO"
,CHIEF ADMIN OFCR OF THE HOUSE,2014Q2,PERSONNEL COMPENSATION,"","MILLER JR, LOUIS",04/01/14,06/30/14,PURCHASING AGENT,"13,936.50",FISCAL YEAR 2014,"","","","MILLER JR, LOUIS"
,CHIEF ADMIN OFCR OF THE HOUSE,2014Q2,PERSONNEL COMPENSATION,"","MILLER, KEITH E",04/01/14,06/30/14,BROADCAST PRODUCTION TECHNICIA,"22,776.51",FISCAL YEAR 2014,"","","","MILLER, KEITH E"
,CHIEF ADMIN OFCR OF THE HOUSE,2014Q2,PERSONNEL COMPENSATION,"","MILLER, KEITH E",05/01/14,05/20/14,BROADCAST PRODUCTION TECHNICIA (OTHER COMPENSATION),586.65,FISCAL YEAR 2014,"","","","MILLER, KEITH E"
,CHIEF ADMIN OFCR OF THE HOUSE,2014Q2,PERSONNEL COMPENSATION,"","MILLER,MICHAEL A",04/01/14,06/30/14,"MANAGER, PROD AND SUPPORT","26,687.01",FISCAL YEAR 2014,"","","","MILLER,MICHAEL A"
,CHIEF ADMIN OFCR OF THE HOUSE,2014Q2,PERSONNEL COMPENSATION,"","MILLER,SHAWN",04/01/14,06/30/14,GRAPHICS & DESKTOP PUBL SPEC,"16,734.99",FISCAL YEAR 2014,"","","","MILLER,SHAWN"
,CHIEF ADMIN OFCR OF THE HOUSE,2014Q2,PERSONNEL COMPENSATION,"","MILLER-LAMILL, ELOISE R",04/01/14,06/30/14,BROADCAST PRODUCTION TECHNICIA,"23,228.49",FISCAL YEAR 2014,"","","","MILLER-LAMILL, ELOISE R"
,CHIEF ADMIN OFCR OF THE HOUSE,2014Q2,PERSONNEL COMPENSATION,"","MILLER-LAMILL, ELOISE R",03/01/14,05/31/14,BROADCAST PRODUCTION TECHNICIA (OVERTIME),"3,104.54",FISCAL YEAR 2014,"","","","MILLER-LAMILL, ELOISE R"
,CHIEF ADMIN OFCR OF THE HOUSE,2014Q2,PERSONNEL COMPENSATION,"","MILLER-LAMILL, ELOISE R",05/01/14,05/20/14,BROADCAST PRODUCTION TECHNICIA (OTHER COMPENSATION),850.87,FISCAL YEAR 2014,"","","","MILLER-LAMILL, ELOISE R"
,CHIEF ADMIN OFCR OF THE HOUSE,2014Q2,PERSONNEL COMPENSATION,"","MINOR,LESLIE",04/01/14,06/30/14,FINANCIAL COUNSELOR,"16,734.99",FISCAL YEAR 2014,"","","","MINOR,LESLIE"
,CHIEF ADMIN OFCR OF THE HOUSE,2014Q2,PERSONNEL COMPENSATION,"","MINTON, DONNA",04/01/14,06/30/14,BUSINESS PROC APPLIC SPEC,"28,738.50",FISCAL YEAR 2014,"","","","MINTON, DONNA"
,CHIEF ADMIN OFCR OF THE HOUSE,2014Q2,PERSONNEL COMPENSATION,"","MINTURN, JOHN J",04/01/14,06/30/14,INFO SYSTEMS SECURITY MNGR,"33,041.76",FISCAL YEAR 2014,"","","","MINTURN, JOHN J"
,CHIEF ADMIN OFCR OF THE HOUSE,2014Q2,PERSONNEL COMPENSATION,"","MITTAL, RAHUL V",04/01/14,06/30/14,RISK AND INTERNAL CTRL ANALYST,"23,941.50",FISCAL YEAR 2014,"","","","MITTAL, RAHUL V"
,CHIEF ADMIN OFCR OF THE HOUSE,2014Q2,PERSONNEL COMPENSATION,"","MODICA, MICHAEL",04/01/14,06/30/14,CUSTOMER RELATIONS MANAGER,"31,827.75",FISCAL YEAR 2014,"","","","MODICA, MICHAEL"
,CHIEF ADMIN OFCR OF THE HOUSE,2014Q2,PERSONNEL COMPENSATION,"","MOE, NELSON P",04/01/14,06/30/14,CHIEF INFORMATION OFFICER,"42,102.75",FISCAL YEAR 2014,"","","","MOE, NELSON P"
,CHIEF ADMIN OFCR OF THE HOUSE,2014Q2,PERSONNEL COMPENSATION,"","MOLL, ANDREW C",04/01/14,06/30/14,SR INTERNET SYSTEMS SPECIALIST,"34,066.74",FISCAL YEAR 2014,"","","","MOLL, ANDREW C"
,CHIEF ADMIN OFCR OF THE HOUSE,2014Q2,PERSONNEL COMPENSATION,"","MONAHAN, TIMOTHY J",04/01/14,06/30/14,SPECIAL ASSISTANT,"18,906.51",FISCAL YEAR 2014,"","","","MONAHAN, TIMOTHY J"
,CHIEF ADMIN OFCR OF THE HOUSE,2014Q2,PERSONNEL COMPENSATION,"","MOORE II,GARY L",04/01/14,06/30/14,SENIOR NETWORK TECHNICIAN,"17,720.01",FISCAL YEAR 2014,"","","","MOORE II,GARY L"
,CHIEF ADMIN OFCR OF THE HOUSE,2014Q2,PERSONNEL COMPENSATION,"","MOORE, EDWARDA P",04/01/14,06/30/14,FINANCIAL COUNSELOR,"20,489.01",FISCAL YEAR 2014,"","","","MOORE, EDWARDA P"
,CHIEF ADMIN OFCR OF THE HOUSE,2014Q2,PERSONNEL COMPENSATION,"","MORA,CARLOS",04/01/14,06/30/14,BROADCAST ENGINEER/PROD SPEC,"21,879.75",FISCAL YEAR 2014,"","","","MORA,CARLOS"
,CHIEF ADMIN OFCR OF THE HOUSE,2014Q2,PERSONNEL COMPENSATION,"","MORA,CARLOS",03/01/14,03/31/14,BROADCAST ENGINEER/PROD SPEC. (OVERTIME),21.04,FISCAL YEAR 2014,"","","","MORA,CARLOS"
,CHIEF ADMIN OFCR OF THE HOUSE,2014Q2,PERSONNEL COMPENSATION,"","MORA,CARLOS",05/01/14,05/20/14,BROADCAST ENGINEER/PROD SPEC. (OTHER COMPENSATION),540.39,FISCAL YEAR 2014,"","","","MORA,CARLOS"
,CHIEF ADMIN OFCR OF THE HOUSE,2014Q2,PERSONNEL COMPENSATION,"","MORETTI, SCOTT A",04/01/14,06/30/14,NETWORK TECHNICIAN,"22,477.51",FISCAL YEAR 2014,"","","","MORETTI, SCOTT A"
,CHIEF ADMIN OFCR OF THE HOUSE,2014Q2,PERSONNEL COMPENSATION,"","MORGAN,CODY R",04/01/14,06/30/14,JOURNEYMAN TEXTILE SPEC,"16,734.99",FISCAL YEAR 2014,"","","","MORGAN,CODY R"
,CHIEF ADMIN OFCR OF THE HOUSE,2014Q2,PERSONNEL COMPENSATION,"","MOSES,ELIAS",04/01/14,06/30/14,APPLICATION SYSTEMS ADMINISTRA,"30,152.49",FISCAL YEAR 2014,"","","","MOSES,ELIAS"
,CHIEF ADMIN OFCR OF THE HOUSE,2014Q2,PERSONNEL COMPENSATION,"","MOSLEY, JOSEPH",04/01/14,06/30/14,TECHNICAL DIRECTOR (A),"24,392.01",FISCAL YEAR 2014,"","","","MOSLEY, JOSEPH"
,CHIEF ADMIN OFCR OF THE HOUSE,2014Q2,PERSONNEL COMPENSATION,"","MOSLEY, JOSEPH",03/01/14,05/31/14,TECHNICAL DIRECTOR (A) (OVERTIME),"2,181.18",FISCAL YEAR 2014,"","","","MOSLEY, JOSEPH"
,CHIEF ADMIN OFCR OF THE HOUSE,2014Q2,PERSONNEL COMPENSATION,"","MOSLEY, JOSEPH",05/01/14,05/20/14,TECHNICAL DIRECTOR (A) (OTHER COMPENSATION),493.84,FISCAL YEAR 2014,"","","","MOSLEY, JOSEPH"
,CHIEF ADMIN OFCR OF THE HOUSE,2014Q2,PERSONNEL COMPENSATION,"","MOXLEY,STEVEN",04/01/14,06/30/14,SR. SECURITY ENGINEER,"23,037.00",FISCAL YEAR 2014,"","","","MOXLEY,STEVEN"
,CHIEF ADMIN OFCR OF THE HOUSE,2014Q2,PERSONNEL COMPENSATION,"","MOYA, DAVID L",04/01/14,06/30/14,SYSTEMS ENGINEER,"25,295.01",FISCAL YEAR 2014,"","","","MOYA, DAVID L"
,CHIEF ADMIN OFCR OF THE HOUSE,2014Q2,PERSONNEL COMPENSATION,"","MUJAHID,WILLIAM L",04/01/14,06/30/14,NETWORK TECHNICIAN,"21,879.75",FISCAL YEAR 2014,"","","","MUJAHID,WILLIAM L"
,CHIEF ADMIN OFCR OF THE HOUSE,2014Q2,PERSONNEL COMPENSATION,"","MUNCY, JAMES P",04/01/14,06/30/14,SENIOR NETWORK TECHNICIAN,"23,228.49",FISCAL YEAR 2014,"","","","MUNCY, JAMES P"
,CHIEF ADMIN OFCR OF THE HOUSE,2014Q2,PERSONNEL COMPENSATION,"","MURPHY,LORI O",04/01/14,06/30/14,PAYROLL & BENEFITS GENERALIST,"15,947.01",FISCAL YEAR 2014,"","","","MURPHY,LORI O"
,CHIEF ADMIN OFCR OF THE HOUSE,2014Q2,PERSONNEL COMPENSATION,"","MURPHY,ROBERT",04/01/14,06/30/14,"MANAGER, FINANCIAL SYSTEMS","39,229.26",FISCAL YEAR 2014,"","","","MURPHY,ROBERT"
,CHIEF ADMIN OFCR OF THE HOUSE,2014Q2,PERSONNEL COMPENSATION,"","MYERS, ANTHONY C",04/01/14,06/30/14,NETWORK COMM SPECIALIST,"21,879.75",FISCAL YEAR 2014,"","","","MYERS, ANTHONY C"
,CHIEF ADMIN OFCR OF THE HOUSE,2014Q2,PERSONNEL COMPENSATION,"","NADEAU,JOHN J",04/01/14,06/30/14,DIRECTOR FINANCIAL COUNSELING,"33,656.49",FISCAL YEAR 2014,"","","","NADEAU,JOHN J"
,CHIEF ADMIN OFCR OF THE HOUSE,2014Q2,PERSONNEL COMPENSATION,"","NASH, MICHAEL R",04/01/14,06/30/14,BRANCH MANAGER,"34,892.76",FISCAL YEAR 2014,"","","","NASH, MICHAEL R"
,CHIEF ADMIN OFCR OF THE HOUSE,2014Q2,PERSONNEL COMPENSATION,"","NASR,HAITHAM M",04/01/14,06/30/14,BROADCAST ENGINEER/PROD SPEC,"21,426.99",FISCAL YEAR 2014,"","","","NASR,HAITHAM M"
,CHIEF ADMIN OFCR OF THE HOUSE,2014Q2,PERSONNEL COMPENSATION,"","NASR,HAITHAM M",03/01/14,05/31/14,BROADCAST ENGINEER/PROD SPEC. (OVERTIME),752.00,FISCAL YEAR 2014,"","","","NASR,HAITHAM M"
